{"text_format":"1","workbook":"xlsx","n_sheets":12,"sheets":["Directory","WINN-DIXIE","BI-LO NEW","HARVEYS NEW","FRESCO NEW","5 Authorization Planogram List ","6 Warehouse New Item Form","7 DSD new New Item For","8 DSD Store Assortment","DROP DOWN BOX SOURCE","9 Shipper Componet form","10 SLU_Requests"],"not_rendered":{"charts":0,"images":6,"macros":1,"external_links":0,"defined_names":19,"comments":7,"pivot_tables":0},"unopened":[],"bounds":{"document_bytes":16777216,"sheet_cells":100000,"rows_first":2000,"rows_last":500,"rows_between":2000,"halvings":0,"cell_chars":16384,"cell_head_chars":4096},"cells_cut":0,"cells_raw":0,"read":"whole","date_system":"1900"}

{"sheet":"Directory","index":0,"n_rows":29,"n_cols":1,"rows_kept":29,"cut":false,"hidden":false,"merged":[[28,0,28,11],[17,0,17,11],[24,0,24,11],[25,0,25,11],[26,0,26,11],[27,0,27,11],[19,0,19,11],[20,0,20,11],[21,0,21,11],[22,0,22,11]]}
[]
[]
[]
[]
[]
[]
[]
[]
[]
[]
[]
[]
[]
[]
[]
[]
[]
["FORMS DIRECTORY:"]
[]
[" 1) WINN-DIXIE Banner POG form"]
[" 2) BI-LO Banner POG form"]
[" 3) HARVEYS Banner POG form"]
[" 4) FRESCO Y MAS Banner POG form"]
[" 5) Authorization Planogram List "]
[" 6) Warehouse New Item Form"]
[" 7) DSD New Item Form"]
[" 8) DSD Store Assortment"]
[" 9) Shipper Component Form"]
[" 10) SLU Requests"]

{"sheet":"WINN-DIXIE","index":1,"n_rows":96,"n_cols":28,"rows_kept":96,"cut":false,"hidden":false,"merged":[[96,1,99,27],[69,9,69,16],[25,1,25,6],[42,18,42,27],[0,9,3,21],[8,4,10,19],[19,1,20,5],[15,14,15,19],[15,6,15,9],[18,6,18,16],[20,14,20,16],[20,11,20,13],[4,11,4,20],[12,6,12,9],[11,10,11,19],[12,14,12,19],[29,18,29,27],[20,20,22,27],[26,18,26,27],[13,14,13,19],[8,1,10,3],[11,1,11,3],[27,18,27,27],[28,18,28,27],[11,4,11,9],[13,2,13,3],[13,6,13,9],[13,4,13,5],[12,10,12,13],[12,2,12,3],[13,10,13,13],[12,4,12,5],[24,1,24,6],[36,18,36,27],[35,18,35,27],[38,18,38,27],[47,18,47,27],[39,18,39,27],[45,18,45,27],[24,7,24,16],[25,7,25,16],[25,18,25,27],[42,1,42,7],[34,18,34,27],[33,18,33,27],[32,18,32,27],[31,18,31,27],[30,18,30,27],[37,18,37,27],[20,7,20,10],[15,2,15,3],[14,14,14,19],[14,10,14,13],[15,10,15,13],[19,11,19,13],[15,4,15,5],[18,1,18,5],[14,6,14,9],[19,14,19,16],[16,1,16,20],[14,2,14,3],[19,7,19,10],[18,20,19,27],[14,4,14,5],[60,1,60,6],[61,18,61,27],[60,7,60,27],[87,1,87,6],[87,7,87,27],[70,9,70,16],[70,18,70,26],[62,18,62,27],[70,1,70,6],[67,1,67,27],[61,9,66,16],[69,1,69,7],[66,18,66,27],[65,18,65,27],[64,18,64,27],[63,18,63,27],[59,18,59,27],[51,18,51,27],[52,18,52,27],[54,18,54,27],[55,18,55,27],[58,18,58,27],[53,1,53,6],[40,18,40,27],[57,18,57,27],[56,18,56,27],[44,18,44,27],[41,18,41,27],[43,18,43,27],[53,7,53,16],[49,18,49,27],[50,18,50,27],[43,9,52,16],[46,18,46,27],[48,18,48,27]]}
[null,null,null,null,null,null,null,null,null,"PLANOGRAM CHANGE REQUEST FORM"]
[]
[]
[]
[null,null,null,null,null,null,null,null,null,null,null,"2017-07-20"]
[]
[]
[]
[null,null,null,null,"Please enter information in Only 1 Section:  Inline Planogram or Promo Planogram"]
[]
[]
[null,"Category Owner Information",null,null,"Inline Planogram Information",null,null,null,null,null,"Promo Planogram Information"]
[null,"DATE SUBMITTED"," ",null,"CATEGORY NAME:",null,null,null,null,null,"TEMPORARY AUTHORIZATION"]
[null,"DEPARTMENT"," ",null,"SPECIFIC PLANOGRAM NAME ",null,null,null,null,null,"**If Store Specific, State Store Number(s):"]
[null,"CATEGORY OWNER"," ",null,"PLANOGRAM UPDATE TYPE:",null,null,null,null,null,"AUTHORIZATION PLANOGRAM"]
[null,"**FORM COMPLETED BY",null,null,null,null,"BASE PLANOGRAM(S) MUST BE COMPLETED WITH FORM FOR MAJOR RESETS OF A CATEGORY"]
[]
[]
[null,"Planogram Change Request Form Email & Work Flow",null,null,null,null," "]
[null,"Category Owner >>>>>>>>>>> Planogram Change Requests Mailbox>>>>>>>>>>> Space Planning Completes Project >>>>>>>>>>> Demand Planning & Send a Copy to Category Owner"]
[]
[]
[]
[]
[null,"ITEM(S) TO BE ADDED OR UPDATED ",null,null,null,null,null,"**NEW WAREHOUSE ITEMS REQUIRE 1 VALID DELETE FOR EVERY 1 ADD PER DISTRIBUTION CENTER**"]
[null,"NEW ITEM(S)",null,null,null,null,null,"SELECT DISTRIBUTION CENTER(S) THAT WILL SERVICE ITEMS ",null,null,null,null,null,null,null,null,null,null," PLEASE DETAIL ANY SPECIFICS ABOUT EACH ITEM IN THE SPACE BELOW"]
[null,"SEG ITEM CODE","HUB PRIMARY UNIT UPC","CASE PACK","SIZE","UOM","PRODUCT DESCRIPTION","NEW SUPPLIER ",null,"GMD WHSE -FACILITY 21-  JAX","ALL GROCERY WHSE","FACILITY 01 - JAX","FACILITY 02 - P- CITY","FACILITY 03 - MIAMI","FACILITY 07 - MTG","FACILITY 08 - NOL","FACILITY 12 - ORL",null,"ITEM SPECIFIC COMMENTS"]
[]
[]
[]
[]
[]
[]
[]
[]
[]
[]
[]
[]
[]
[]
[]
[null,"CODE & UPC CHANGE(S)"]
[null,"SEG ITEM CODE","HUB PRIMARY UNIT UPC","CASE PACK","SIZE","UOM","PRODUCT DESCRIPTION","OLD SEG CODE or UPC",null,"OLD CODE AND NEW CODE MUST BE LINKED BEFORE SUBMITTING AND HAVE THE SAME RETAIL ",null,null,null,null,null,null,null,null,"ITEM SPECIFIC COMMENTS"]
[]
[]
[]
[]
[]
[]
[]
[]
[]
[null,"EXPANDING DISTRIBUTION",null,null,null,null,null,"SELECT DC(S) ITEM IS EXPANDING"]
[null,"SEG ITEM CODE","HUB PRIMARY UNIT UPC","CASE PACK","SIZE","UOM","PRODUCT DESCRIPTION"," ",null,"GMD WHSE -FACILITY 21-  JAX","ALL GROCERY WHSE","FACILITY 01 - JAX","FACILITY 02 - P- CITY","FACILITY 03 - MIAMI","FACILITY 07 - MTG","FACILITY 08 - NOL","FACILITY 12 - ORL",null,"ITEM SPECIFIC COMMENTS"]
[]
[]
[]
[]
[]
[null,"ITEM RELOCATION"]
[null,"SEG ITEM CODE","HUB PRIMARY UNIT UPC","CASE PACK","SIZE","UOM","PRODUCT DESCRIPTION"," ",null,"PLEASE COMMENT ON WHAT SECTION THE ITEM(S) ARE BEING ADDED TO OR BEING REMOVED FROM ",null,null,null,null,null,null,null,null,"ITEM SPECIFIC COMMENTS"]
[null,null,null,null,null,null,null," "]
[]
[]
[]
[]
[]
[]
[null,"DELETED ITEM(S) ONLY           **ITEMS SUBMITTED ON THE BELOW WILL BE FLAGGED DISCONTINUED IN PURCHASING IMMEDIATELY.**",null,null,null,null,null,null,null,"                **MARKDOWN PROCESS**   AUTO-MARKDOWNS WILL BE LOADED ONCE ALL POGS ARE PUBLISHED"]
[null,"DELETED ITEM(S) ONLY",null,null,null,null,null,null,null,"MARKDOWNS",null,null,null,null,null,null,null,null,"SELECT DISTRIBUTION CENTER(S) THAT WILL NO LONGER SERVICE ITEMS "]
[null,"SEG ITEM CODE","HUB PRIMARY UNIT UPC","CASE PACK","SIZE","UOM","PRODUCT DESCRIPTION","LAST SHIPPED DATE",null,"MARKDOWN?                                                    YES/NO","1ST MARKDOWN DATE","MARKDOWN % ","VENDOR BILLBACK                              YES/NO","BILL BACK %","2ND MARKDOWN DATE","MARKDOWN % ","VENDOR BILLBACK                              YES/NO",null,"GMD WHSE -FACILITY 21-  JAX","ALL GROCERY WHSE","FACILITY 01 - JAX","FACILITY 02 - P- CITY","FACILITY 03 - MIAMI","FACILITY 07 - MTG","FACILITY 08 - NOL","FACILITY 12 - ORL",null,"ITEM SPECIFIC COMMENTS"]
[]
[]
[]
[]
[]
[]
[]
[]
[]
[]
[]
[]
[]
[]
[]
[null,"ADDITIONAL PLANOGRAM ANALYST IDENTIFIED DELETE(S)"]
[]
[]
[]
[]
[]
[]
[]
[null,"Comments "]

{"sheet":"BI-LO NEW","index":2,"n_rows":96,"n_cols":28,"rows_kept":96,"cut":false,"hidden":false,"merged":[[96,1,99,27],[61,9,66,16],[61,18,61,27],[69,1,69,7],[69,9,69,16],[66,18,66,27],[62,18,62,27],[63,18,63,27],[64,18,64,27],[65,18,65,27],[87,1,87,6],[87,7,87,27],[67,1,67,27],[70,1,70,6],[70,9,70,16],[70,18,70,26],[60,7,60,27],[50,18,50,27],[51,18,51,27],[52,18,52,27],[53,1,53,6],[53,7,53,16],[54,18,54,27],[43,9,52,16],[55,18,55,27],[56,18,56,27],[57,18,57,27],[58,18,58,27],[59,18,59,27],[60,1,60,6],[49,18,49,27],[45,18,45,27],[48,18,48,27],[42,18,42,27],[42,1,42,7],[43,18,43,27],[38,18,38,27],[39,18,39,27],[40,18,40,27],[41,18,41,27],[44,18,44,27],[34,18,34,27],[35,18,35,27],[36,18,36,27],[46,18,46,27],[47,18,47,27],[37,18,37,27],[31,18,31,27],[20,14,20,16],[20,20,22,27],[24,1,24,6],[24,7,24,16],[25,1,25,6],[25,7,25,16],[25,18,25,27],[26,18,26,27],[27,18,27,27],[28,18,28,27],[29,18,29,27],[30,18,30,27],[32,18,32,27],[33,18,33,27],[13,6,13,9],[16,1,16,20],[18,1,18,5],[18,6,18,16],[18,20,19,27],[19,1,20,5],[19,7,19,10],[19,11,19,13],[19,14,19,16],[20,7,20,10],[20,11,20,13],[14,2,14,3],[14,4,14,5],[14,6,14,9],[14,10,14,13],[14,14,14,19],[15,2,15,3],[15,4,15,5],[15,6,15,9],[15,10,15,13],[15,14,15,19],[13,10,13,13],[13,14,13,19],[12,2,12,3],[12,4,12,5],[0,9,3,21],[4,11,4,20],[8,1,10,3],[8,4,10,19],[11,1,11,3],[11,4,11,9],[11,10,11,19],[12,6,12,9],[12,10,12,13],[12,14,12,19],[13,2,13,3],[13,4,13,5]]}
[null,null,null,null,null,null,null,null,null,"PLANOGRAM CHANGE REQUEST FORM"]
[]
[]
[]
[null,null,null,null,null,null,null,null,null,null,null,"2017-07-20"]
[]
[]
[]
[null,null,null,null,"Please enter information in Only 1 Section:  Inline Planogram or Promo Planogram"]
[]
[]
[null,"Category Owner Information",null,null,"Inline Planogram Information",null,null,null,null,null,"Promo Planogram Information"]
[null,"DATE SUBMITTED"," ",null,"CATEGORY NAME:",null,null,null,null,null,"TEMPORARY AUTHORIZATION"]
[null,"DEPARTMENT"," ",null,"SPECIFIC PLANOGRAM NAME ",null,null,null,null,null,"**If Store Specific, State Store Number(s):"]
[null,"CATEGORY OWNER"," ",null,"PLANOGRAM UPDATE TYPE:",null,null,null,null,null,"AUTHORIZATION PLANOGRAM"]
[null,"**FORM COMPLETED BY",null,null,null,null,"BASE PLANOGRAM(S) MUST BE COMPLETED WITH FORM FOR MAJOR RESETS OF A CATEGORY"]
[]
[]
[null,"Planogram Change Request Form Email & Work Flow",null,null,null,null," "]
[null,"Category Owner >>>>>>>>>>> Planogram Change Requests Mailbox>>>>>>>>>>> Space Planning Completes Project >>>>>>>>>>> Demand Planning & Send a Copy to Category Owner"]
[]
[]
[]
[]
[null,"ITEM(S) TO BE ADDED OR UPDATED ",null,null,null,null,null,"**NEW WAREHOUSE ITEMS REQUIRE 1 VALID DELETE FOR EVERY 1 ADD PER DISTRIBUTION CENTER**"]
[null,"NEW ITEM(S)",null,null,null,null,null,"SELECT DISTRIBUTION CENTER(S) THAT WILL SERVICE ITEMS ",null,null,null,null,null,null,null,null,null,null," PLEASE DETAIL ANY SPECIFICS ABOUT EACH ITEM IN THE SPACE BELOW"]
[null,"SEG ITEM CODE","HUB PRIMARY UNIT UPC","CASE PACK","SIZE","UOM","PRODUCT DESCRIPTION","NEW SUPPLIER",null,"FACILITY 04 MAULDIN","ALL GROCERY WHSE","FACILITY 01 - JAX","FACILITY 02 - PLANT CITY","FACILITY 03 - MIAMI","FACILITY 07 - MONTGOMERY","FACILITY 08 - NEW ORLEANS","FACILITY 12 - ORLANDO",null,"ITEM SPECIFIC COMMENTS"]
[]
[]
[]
[]
[]
[]
[]
[]
[]
[]
[]
[]
[]
[]
[]
[null,"CODE & UPC CHANGE(S)"]
[null,"SEG ITEM CODE","HUB PRIMARY UNIT UPC","CASE PACK","SIZE","UOM","PRODUCT DESCRIPTION","OLD SEG CODE or UPC",null,"OLD CODE AND NEW CODE MUST BE RELATED (LINKED) IN HUB, BEFORE SUBMITTING AND HAVE THE SAME RETAIL ",null,null,null,null,null,null,null,null,"ITEM SPECIFIC COMMENTS"]
[]
[]
[]
[]
[]
[]
[]
[]
[]
[null,"EXPANDING DISTRIBUTION",null,null,null,null,null,"SELECT DC(S) ITEM IS EXPANDING"]
[null,"SEG ITEM CODE","HUB PRIMARY UNIT UPC","CASE PACK","SIZE","UOM","PRODUCT DESCRIPTION"," ",null,"FACILITY 04 MAULDIN","ALL GROCERY WHSE","FACILITY 01 - JAX","FACILITY 02 - PLANT CITY","FACILITY 03 - MIAMI","FACILITY 07 - MONTGOMERY","FACILITY 08 - NEW ORLEANS","FACILITY 12 - ORLANDO",null,"ITEM SPECIFIC COMMENTS"]
[]
[]
[]
[]
[]
[null,"ITEM RELOCATION"]
[null,"SEG ITEM CODE","HUB PRIMARY UNIT UPC","CASE PACK","SIZE","UOM","PRODUCT DESCRIPTION",null,null,"PLEASE COMMENT ON WHAT SECTION THE ITEM(S) ARE BEING ADDED TO OR BEING REMOVED FROM ",null,null,null,null,null,null,null,null,"ITEM SPECIFIC COMMENTS"]
[]
[]
[]
[]
[]
[]
[]
[null,"DELETED ITEM(S) ONLY           **ITEMS SUBMITTED ON THE BELOW WILL BE FLAGGED DISCONTINUED IN PURCHASING IMMEDIATELY.**",null,null,null,null,null,null,null,"                **MARKDOWN PROCESS**   AUTO-MARKDOWNS WILL BE LOADED ONCE ALL POGS ARE PUBLISHED"]
[null,"DELETED ITEM(S) ONLY",null,null,null,null,null,null,null,"MARKDOWNS",null,null,null,null,null,null,null,null,"SELECT DISTRIBUTION CENTER(S) THAT WILL NO LONGER SERVICE ITEMS "]
[null,"SEG ITEM CODE","HUB PRIMARY UNIT UPC","CASE PACK","SIZE","UOM","PRODUCT DESCRIPTION","LAST SHIPPED DATE",null,"MARKDOWN?                                                    YES/NO","1ST MARKDOWN DATE","MARKDOWN % ","VENDOR BILLBACK                              YES/NO","BILL BACK %","2ND MARKDOWN DATE","MARKDOWN % ","VENDOR BILLBACK                              YES/NO",null,"FACILITY 04 MAULDIN","ALL GROCERY WHSE","FACILITY 01 - JAX","FACILITY 02 - PLANT CITY","FACILITY 03 - MIAMI","FACILITY 07 - MONTGOMERY","FACILITY 08 - NEW ORLEANS","FACILITY 12 - ORLANDO",null,"ITEM SPECIFIC COMMENTS"]
[]
[]
[]
[]
[]
[]
[]
[]
[]
[]
[]
[]
[]
[]
[]
[null,"ADDITIONAL PLANOGRAM ANALYST IDENTIFIED DELETE(S)"]
[]
[]
[]
[]
[]
[]
[]
[null,"Comments "]

{"sheet":"HARVEYS NEW","index":3,"n_rows":96,"n_cols":28,"rows_kept":96,"cut":false,"hidden":false,"merged":[[96,1,99,27],[53,1,53,6],[87,1,87,6],[87,7,87,27],[61,18,61,27],[69,1,69,7],[69,9,69,16],[67,1,67,27],[70,1,70,6],[70,9,70,16],[70,18,70,26],[58,18,58,27],[59,18,59,27],[60,1,60,6],[60,7,60,27],[61,9,66,16],[62,18,62,27],[63,18,63,27],[64,18,64,27],[65,18,65,27],[66,18,66,27],[53,7,53,16],[54,18,54,27],[55,18,55,27],[56,18,56,27],[57,18,57,27],[38,18,38,27],[39,18,39,27],[40,18,40,27],[41,18,41,27],[47,18,47,27],[42,18,42,27],[42,1,42,7],[43,9,52,16],[43,18,43,27],[44,18,44,27],[45,18,45,27],[46,18,46,27],[52,18,52,27],[48,18,48,27],[49,18,49,27],[50,18,50,27],[51,18,51,27],[37,18,37,27],[26,18,26,27],[27,18,27,27],[28,18,28,27],[29,18,29,27],[30,18,30,27],[31,18,31,27],[32,18,32,27],[33,18,33,27],[34,18,34,27],[35,18,35,27],[36,18,36,27],[24,1,24,6],[24,7,24,16],[25,1,25,6],[25,7,25,16],[25,18,25,27],[16,1,16,20],[18,1,18,5],[18,6,18,16],[18,20,19,27],[19,1,20,5],[19,7,19,10],[19,11,19,13],[19,14,19,16],[20,7,20,10],[20,11,20,13],[20,14,20,16],[20,20,22,27],[14,2,14,3],[14,4,14,5],[14,6,14,9],[14,10,14,13],[14,14,14,19],[15,2,15,3],[15,4,15,5],[15,6,15,9],[15,10,15,13],[15,14,15,19],[12,2,12,3],[12,4,12,5],[12,6,12,9],[12,10,12,13],[12,14,12,19],[13,2,13,3],[13,4,13,5],[13,6,13,9],[13,10,13,13],[13,14,13,19],[0,9,3,21],[4,11,4,20],[8,1,10,3],[8,4,10,19],[11,1,11,3],[11,4,11,9],[11,10,11,19]]}
[null,null,null,null,null,null,null,null,null,"PLANOGRAM CHANGE REQUEST FORM"]
[]
[]
[]
[null,null,null,null,null,null,null,null,null,null,null,"2017-07-20"]
[]
[]
[]
[null,null,null,null,"Please enter information in Only 1 Section:  Inline Planogram or Promo Planogram"]
[]
[]
[null,"Category Owner Information",null,null,"Inline Planogram Information",null,null,null,null,null,"Promo Planogram Information"]
[null,"DATE SUBMITTED"," ",null,"CATEGORY NAME:",null,null,null,null,null,"TEMPORARY AUTHORIZATION"]
[null,"DEPARTMENT"," ",null,"SPECIFIC PLANOGRAM NAME ",null,null,null,null,null,"**If Store Specific, State Store Number(s):"]
[null,"CATEGORY OWNER"," ",null,"PLANOGRAM UPDATE TYPE:",null,null,null,null,null,"AUTHORIZATION PLANOGRAM"]
[null,"**FORM COMPLETED BY",null,null,null,null,"BASE PLANOGRAM(S) MUST BE COMPLETED WITH FORM FOR MAJOR RESETS OF A CATEGORY"]
[]
[]
[null,"Planogram Change Request Form Email & Work Flow",null,null,null,null," "]
[null,"Category Owner >>>>>>>>>>> Planogram Change Requests Mailbox>>>>>>>>>>> Space Planning Completes Project >>>>>>>>>>> Demand Planning & Send a Copy to Category Owner"]
[]
[]
[]
[]
[null,"ITEM(S) TO BE ADDED OR UPDATED ",null,null,null,null,null,"**NEW WAREHOUSE ITEMS REQUIRE 1 VALID DELETE FOR EVERY 1 ADD PER DISTRIBUTION CENTER**"]
[null,"NEW ITEM(S)",null,null,null,null,null,"SELECT DISTRIBUTION CENTER(S) THAT WILL SERVICE ITEMS ",null,null,null,null,null,null,null,null,null,null," PLEASE DETAIL ANY SPECIFICS ABOUT EACH ITEM IN THE SPACE BELOW"]
[null,"SEG ITEM CODE","HUB PRIMARY UNIT UPC","CASE PACK","SIZE","UOM","PRODUCT DESCRIPTION","NEW SUPPLIER",null,"FACILITY 04 MAULDIN","ALL GROCERY WHSE","FACILITY 01 - JAX","FACILITY 02 - PLANT CITY","FACILITY 03 - MIAMI","FACILITY 07 - MONTGOMERY","FACILITY 08 - NEW ORLEANS","FACILITY 12 - ORLANDO",null,"ITEM SPECIFIC COMMENTS"]
[]
[]
[]
[]
[]
[]
[]
[]
[]
[]
[]
[]
[]
[]
[]
[null,"CODE & UPC CHANGE(S)"]
[null,"SEG ITEM CODE","HUB PRIMARY UNIT UPC","CASE PACK","SIZE","UOM","PRODUCT DESCRIPTION","OLD SEG CODE or UPC",null,"OLD CODE AND NEW CODE MUST BE LINKED BEFORE SUBMITTING AND HAVE THE SAME RETAIL ",null,null,null,null,null,null,null,null,"ITEM SPECIFIC COMMENTS"]
[]
[]
[]
[]
[]
[]
[]
[]
[]
[null,"EXPANDING DISTRIBUTION",null,null,null,null,null,"SELECT DC(S) ITEM IS EXPANDING"]
[null,"SEG ITEM CODE","HUB PRIMARY UNIT UPC","CASE PACK","SIZE","UOM","PRODUCT DESCRIPTION"," ",null,"FACILITY 04 MAULDIN","ALL GROCERY WHSE","FACILITY 01 - JAX","FACILITY 02 - PLANT CITY","FACILITY 03 - MIAMI","FACILITY 07 - MONTGOMERY","FACILITY 08 - NEW ORLEANS","FACILITY 12 - ORLANDO",null,"ITEM SPECIFIC COMMENTS"]
[]
[]
[]
[]
[]
[null,"ITEM RELOCATION"]
[null,"SEG ITEM CODE","HUB PRIMARY UNIT UPC","CASE PACK","SIZE","UOM","PRODUCT DESCRIPTION",null,null,"PLEASE COMMENT ON WHAT SECTION THE ITEM(S) ARE BEING ADDED TO OR BEING REMOVED FROM ",null,null,null,null,null,null,null,null,"ITEM SPECIFIC COMMENTS"]
[]
[]
[]
[]
[]
[]
[]
[null,"DELETED ITEM(S) ONLY           **ITEMS SUBMITTED ON THE BELOW WILL BE FLAGGED DISCONTINUED IN PURCHASING IMMEDIATELY.**",null,null,null,null,null,null,null,"                **MARKDOWN PROCESS**   AUTO-MARKDOWNS WILL BE LOADED ONCE ALL POGS ARE PUBLISHED"]
[null,"DELETED ITEM(S) ONLY",null,null,null,null,null,null,null,"MARKDOWNS",null,null,null,null,null,null,null,null,"SELECT DISTRIBUTION CENTER(S) THAT WILL NO LONGER SERVICE ITEMS "]
[null,"SEG ITEM CODE","HUB PRIMARY UNIT UPC","CASE PACK","SIZE","UOM","PRODUCT DESCRIPTION","LAST SHIPPED DATE",null,"MARKDOWN?                                                    YES/NO","1ST MARKDOWN DATE","MARKDOWN % ","VENDOR BILLBACK                              YES/NO","BILL BACK %","2ND MARKDOWN DATE","MARKDOWN % ","VENDOR BILLBACK                              YES/NO",null,"FACILITY 04 MAULDIN","ALL GROCERY WHSE","FACILITY 01 - JAX","FACILITY 02 - PLANT CITY","FACILITY 03 - MIAMI","FACILITY 07 - MONTGOMERY","FACILITY 08 - NEW ORLEANS","FACILITY 12 - ORLANDO",null,"ITEM SPECIFIC COMMENTS"]
[]
[]
[]
[]
[]
[]
[]
[]
[]
[]
[]
[]
[]
[]
[]
[null,"ADDITIONAL PLANOGRAM ANALYST IDENTIFIED DELETE(S)"]
[]
[]
[]
[]
[]
[]
[]
[null,"Comments "]

{"sheet":"FRESCO NEW","index":4,"n_rows":96,"n_cols":28,"rows_kept":96,"cut":false,"hidden":false,"merged":[[96,1,99,27],[87,1,87,6],[87,7,87,27],[69,1,69,7],[69,9,69,16],[62,18,62,27],[63,18,63,27],[64,18,64,27],[65,18,65,27],[66,18,66,27],[67,1,67,27],[70,1,70,6],[70,9,70,16],[70,18,70,26],[53,1,53,6],[53,7,53,16],[54,18,54,27],[55,18,55,27],[56,18,56,27],[57,18,57,27],[58,18,58,27],[59,18,59,27],[60,1,60,6],[60,7,60,27],[61,9,66,16],[61,18,61,27],[38,18,38,27],[39,18,39,27],[40,18,40,27],[41,18,41,27],[47,18,47,27],[42,18,42,27],[42,1,42,7],[43,9,52,16],[43,18,43,27],[44,18,44,27],[45,18,45,27],[46,18,46,27],[52,18,52,27],[48,18,48,27],[49,18,49,27],[50,18,50,27],[51,18,51,27],[37,18,37,27],[26,18,26,27],[27,18,27,27],[28,18,28,27],[29,18,29,27],[30,18,30,27],[31,18,31,27],[32,18,32,27],[33,18,33,27],[34,18,34,27],[35,18,35,27],[36,18,36,27],[24,1,24,6],[24,7,24,16],[25,1,25,6],[25,7,25,16],[25,18,25,27],[16,1,16,20],[18,1,18,5],[18,6,18,16],[18,20,19,27],[19,1,20,5],[19,7,19,10],[19,11,19,13],[19,14,19,16],[20,7,20,10],[20,11,20,13],[20,14,20,16],[20,20,22,27],[14,2,14,3],[14,4,14,5],[14,6,14,9],[14,10,14,13],[14,14,14,19],[15,2,15,3],[15,4,15,5],[15,6,15,9],[15,10,15,13],[15,14,15,19],[12,2,12,3],[12,4,12,5],[12,6,12,9],[12,10,12,13],[12,14,12,19],[13,2,13,3],[13,4,13,5],[13,6,13,9],[13,10,13,13],[13,14,13,19],[0,9,3,21],[4,11,4,20],[8,1,10,3],[8,4,10,19],[11,1,11,3],[11,4,11,9],[11,10,11,19]]}
[null,null,null,null,null,null,null,null,null,"PLANOGRAM CHANGE REQUEST FORM"]
[]
[]
[]
[null,null,null,null,null,null,null,null,null,null,null,"2017-07-20"]
[]
[]
[]
[null,null,null,null,"Please enter information in Only 1 Section:  Inline Planogram or Promo Planogram"]
[]
[]
[null,"Category Owner Information",null,null,"Inline Planogram Information",null,null,null,null,null,"Promo Planogram Information"]
[null,"DATE SUBMITTED"," ",null,"CATEGORY NAME:",null,null,null,null,null,"TEMPORARY AUTHORIZATION"]
[null,"DEPARTMENT"," ",null,"SPECIFIC PLANOGRAM NAME ",null,null,null,null,null,"**If Store Specific, State Store Number(s):"]
[null,"CATEGORY OWNER"," ",null,"PLANOGRAM UPDATE TYPE:",null,null,null,null,null,"AUTHORIZATION PLANOGRAM"]
[null,"**FORM COMPLETED BY",null,null,null,null,"BASE PLANOGRAM(S) MUST BE COMPLETED WITH FORM FOR MAJOR RESETS OF A CATEGORY"]
[]
[]
[null,"Planogram Change Request Form Email & Work Flow",null,null,null,null," "]
[null,"Category Owner >>>>>>>>>>> Planogram Change Requests Mailbox>>>>>>>>>>> Space Planning Completes Project >>>>>>>>>>> Demand Planning & Send a Copy to Category Owner"]
[]
[]
[]
[]
[null,"ITEM(S) TO BE ADDED OR UPDATED ",null,null,null,null,null,"**NEW WAREHOUSE ITEMS REQUIRE 1 VALID DELETE FOR EVERY 1 ADD PER DISTRIBUTION CENTER**"]
[null,"NEW ITEM(S)",null,null,null,null,null,"SELECT DISTRIBUTION CENTER(S) THAT WILL SERVICE ITEMS ",null,null,null,null,null,null,null,null,null,null," PLEASE DETAIL ANY SPECIFICS ABOUT EACH ITEM IN THE SPACE BELOW"]
[null,"SEG ITEM CODE","HUB PRIMARY UNIT UPC","CASE PACK","SIZE","UOM","PRODUCT DESCRIPTION","NEW SUPPLIER",null,"FACILITY 04 MAULDIN","ALL GROC WHSE","FACILITY 01 - JAX","FACILITY 02 - P- CITY","FACILITY 03 - MIAMI","FACILITY 07 - MTG","FACILITY 08 - NOL","FACILITY 12 - ORL",null,"ITEM SPECIFIC COMMENTS"]
[]
[]
[]
[]
[]
[]
[]
[]
[]
[]
[]
[]
[]
[]
[]
[null,"CODE & UPC CHANGE(S)"]
[null,"SEG ITEM CODE","HUB PRIMARY UNIT UPC","CASE PACK","SIZE","UOM","PRODUCT DESCRIPTION","OLD SEG CODE or UPC",null,"OLD CODE AND NEW CODE MUST BE LINKED BEFORE SUBMITTING AND HAVE THE SAME RETAIL ",null,null,null,null,null,null,null,null,"ITEM SPECIFIC COMMENTS"]
[]
[]
[]
[]
[]
[]
[]
[]
[]
[null,"EXPANDING DISTRIBUTION",null,null,null,null,null,"SELECT DC(S) ITEM IS EXPANDING"]
[null,"SEG ITEM CODE","HUB PRIMARY UNIT UPC","CASE PACK","SIZE","UOM","PRODUCT DESCRIPTION"," ",null,"FACILITY 04 MAULDIN","ALL GROC WHSE","FACILITY 01 - JAX","FACILITY 02 - P- CITY","FACILITY 03 - MIAMI","FACILITY 07 - MTG","FACILITY 08 - NOL","FACILITY 12 - ORL",null,"ITEM SPECIFIC COMMENTS"]
[]
[]
[]
[]
[]
[null,"ITEM RELOCATION"]
[null,"SEG ITEM CODE","HUB PRIMARY UNIT UPC","CASE PACK","SIZE","UOM","PRODUCT DESCRIPTION",null,null,"PLEASE COMMENT ON WHAT SECTION THE ITEM(S) ARE BEING ADDED TO OR BEING REMOVED FROM ",null,null,null,null,null,null,null,null,"ITEM SPECIFIC COMMENTS"]
[]
[]
[]
[]
[]
[]
[]
[null,"DELETED ITEM(S) ONLY           **ITEMS SUBMITTED ON THE BELOW WILL BE FLAGGED DISCONTINUED IN PURCHASING IMMEDIATELY.**",null,null,null,null,null,null,null,"                **MARKDOWN PROCESS**   AUTO-MARKDOWNS WILL BE LOADED ONCE ALL POGS ARE PUBLISHED"]
[null,"DELETED ITEM(S) ONLY",null,null,null,null,null,null,null,"MARKDOWNS",null,null,null,null,null,null,null,null,"SELECT DISTRIBUTION CENTER(S) THAT WILL NO LONGER SERVICE ITEMS "]
[null,"SEG ITEM CODE","HUB PRIMARY UNIT UPC","CASE PACK","SIZE","UOM","PRODUCT DESCRIPTION","LAST SHIPPED DATE",null,"MARKDOWN?                                                    YES/NO","1ST MARKDOWN DATE","MARKDOWN % ","VENDOR BILLBACK                              YES/NO","BILL BACK %","2ND MARKDOWN DATE","MARKDOWN % ","VENDOR BILLBACK                              YES/NO",null,"FACILITY 04 MAULDIN","ALL GROC WHSE","FACILITY 01 - JAX","FACILITY 02 - P- CITY","FACILITY 03 - MIAMI","FACILITY 07 - MTG","FACILITY 08 - NOL","FACILITY 12 - ORL",null,"ITEM SPECIFIC COMMENTS"]
[]
[]
[]
[]
[]
[]
[]
[]
[]
[]
[]
[]
[]
[]
[]
[null,"ADDITIONAL PLANOGRAM ANALYST IDENTIFIED DELETE(S)"]
[]
[]
[]
[]
[]
[]
[]
[null,"Comments "]

{"sheet":"5 Authorization Planogram List ","index":5,"n_rows":29,"n_cols":2,"rows_kept":29,"cut":false,"hidden":false,"merged":[]}
["Sctn Desc","Assigned to all stores unless specified "]
["1 DISCONTINUED PROMO_ALL BANNERS & DC'S","Used for deleted product to be allocated or code changes "]
["1 SHIPPERS & PALLETS_ALL BANNERS & DCs","Used for allocation of shippers, pallets or modules "]
["2 BAKERY_ALL BANNERS & DC'S","Authorization for Bakery items Only "]
["2 DELI_ALL BANNERS & DC'S","Authorization for Deli  items Only "]
["2 DSD AIR FILTERS_ALL BANNERS & DC'S","Authorization for DSD Air Filter items not Planogramed "]
["2 DSD BEACH_ALL BANNERS & DC'S","Authorization for DSD Beach (only assigned to Beach Stores)"]
["2 DSD BEER_ALL BANNERS & DC'S","Authorization for DSD Beer not Planogramed "]
["2 DSD BREAD AND SWEET GOODS PROMO_ALL BANNERS & DC'S","Authorization for  DSD Bread and Sweet Goods "]
["2 DSD CHIPS_ALL BANNERS & DC'S","Authorization for  DSD Chips not Planogrammed "]
["2 DSD CLIPS STRIPS_ALL BANNERS & DC'S","Authorization for  DSD Clip Strip items "]
["2 DSD CSD_ALL BANNERS & DC'S","Authorization for  DSD CSD items not planogrammed "]
["2 DSD KOSHER_ALL BANNERS & DC'S","Authorization for  DSD Kosher items not Planogrammed, "]
["2 DSD LOCAL_ALL BANNERS & DC'S","Authorization for  DSD local item not Planogrammed "]
["2 DSD PRODUCE_ALL BANNERS & DC'S","Authorization for  Produce items only "]
["2 DSD SNACKS_ALL BANNERS & DC'S","Authorization for  DSD Snack (Cookies / Crackers) items not Planogrammed "]
["2 DSD SPIRITS_ALL BANNERS & DC'S","Authorization for  DSD Spirit "]
["2 FIRELOGS_ALL BANNERS & DC'S","Authorization for Seasonal firelogs not planogramed "]
["2 HURRICANE EMERGENCY_ALL BANNERS & DC'S","Authorization for all Hurricane emergency items "]
["2 INDIAN_ALL BANNERS & DC'S","Authorization for Indian items only "]
["2 MARKET SEAFOOD_ALL BANNERS & DC'S","Authorization for Seafood Market items only "]
["2 MEAT_ALL BANNERS & DC'S","Authorization for Meat Market items only "]
["2 PHARMACY_ALL BANNERS & DC'S","Authorization for Pharmacy items not planogrammed "]
["2 SEASONAL CANDY_ALL BANNERS & DC'S","Authorization for Seasonal Candy only not planogrammed "]
["2 SEASONAL DAIRY FROZEN_ALL BANNERS & DC'S","Authorization for Seasonal Dairy FZ only not planogrammed or CGO "]
["2 SEASONAL GMD_ALL BANNERS & DC'S","Authorization for Seasonal GMD  only not planogrammed "]
["2 SEASONAL GROCERY_ALL BANNERS AND DC'S","Authorization for Seasonal Grocery  only not planogrammed "]
["2 TOBACCO_ALL BANNERS & DC'S","Authorization for Cartons only "]
["2 UNFI 1_ALL BANNERS & DC'S","Authorization of all UNFI items (assigned to selected stores )"]

{"sheet":"6 Warehouse New Item Form","index":6,"n_rows":288,"n_cols":64,"rows_kept":288,"cut":false,"hidden":false,"merged":[[72,0,72,35],[73,0,73,35],[74,0,74,35],[75,0,75,35],[76,0,76,4],[76,5,76,19],[76,20,76,21],[76,22,76,35],[65,7,65,14],[65,15,65,16],[67,0,68,16],[69,30,69,35],[70,0,70,35],[71,0,71,11],[71,15,71,35],[61,18,68,35],[63,1,63,2],[63,3,63,4],[63,5,63,6],[63,7,63,14],[63,15,63,16],[64,7,64,14],[64,15,64,16],[61,3,61,4],[61,5,61,6],[61,7,61,14],[61,15,61,16],[62,1,62,2],[62,3,62,4],[62,5,62,6],[62,7,62,14],[62,15,62,16],[59,0,59,2],[59,3,59,4],[59,5,59,6],[59,7,59,8],[60,0,60,2],[60,24,60,28],[57,0,57,2],[57,3,57,4],[57,5,57,6],[57,7,57,8],[57,9,57,15],[58,0,58,2],[58,3,58,4],[58,5,58,6],[55,0,55,2],[55,3,55,4],[55,5,55,6],[55,7,55,8],[55,18,55,35],[56,0,56,2],[56,3,56,4],[56,5,56,6],[56,7,56,8],[56,9,56,15],[52,0,52,14],[52,18,52,35],[53,6,53,16],[53,18,53,35],[54,3,54,4],[54,5,54,6],[54,7,54,8],[54,22,54,27],[54,29,54,30],[50,18,50,22],[50,23,50,26],[51,0,51,5],[51,6,51,16],[51,18,51,23],[51,25,51,30],[48,18,48,24],[48,29,48,35],[49,18,49,20],[49,21,49,22],[49,23,49,26],[49,27,49,28],[49,29,49,33],[49,34,49,35],[51,31,51,32],[46,4,46,16],[46,18,46,22],[46,23,46,24],[46,27,46,31],[46,32,46,35],[47,0,47,3],[47,18,47,20],[47,22,47,23],[43,0,43,3],[43,18,43,23],[43,25,43,28],[43,29,43,35],[44,29,44,35],[45,0,45,3],[45,18,45,23],[45,24,45,35],[41,0,41,5],[41,18,41,24],[41,26,41,29],[41,30,41,35],[42,18,42,27],[42,29,42,32],[42,33,42,35],[39,6,39,16],[39,18,39,28],[39,29,39,35],[40,0,40,5],[40,6,40,16],[40,18,40,24],[40,26,40,32],[37,28,37,29],[37,30,37,34],[38,0,38,5],[38,6,38,16],[38,18,38,24],[38,26,38,30],[38,32,38,34],[36,6,36,16],[36,18,36,24],[37,0,37,5],[37,6,37,16],[37,18,37,21],[37,22,37,23],[37,24,37,27],[33,0,33,5],[33,18,33,23],[33,26,33,27],[34,18,34,24],[35,0,35,5],[35,6,35,16],[35,18,35,35],[28,24,28,35],[31,0,31,5],[31,6,32,16],[31,18,31,23],[31,24,31,29],[32,0,32,5],[32,18,32,29],[25,5,25,8],[25,18,25,21],[25,31,25,34],[26,5,26,8],[26,24,26,35],[27,5,27,8],[27,18,27,21],[27,31,27,34],[12,30,12,33],[15,2,15,10],[16,28,16,30],[17,14,17,22],[21,12,21,35],[23,1,23,8],[23,13,23,21],[23,24,23,26],[23,28,23,33],[11,5,11,16],[12,0,12,5],[12,6,12,16],[12,17,12,21],[12,22,12,24],[12,26,12,29],[7,32,7,33],[8,13,8,14],[8,16,8,17],[9,0,9,35],[10,0,10,5],[10,6,10,16],[10,18,10,24],[10,25,10,29],[7,13,7,14],[7,16,7,18],[7,20,7,21],[7,23,7,24],[7,26,7,27],[7,29,7,30],[4,0,4,5],[4,6,4,10],[4,11,4,21],[4,22,4,25],[6,15,6,16],[6,18,6,19],[6,21,6,23],[6,25,6,27],[0,0,0,35],[1,0,1,35],[2,0,2,10],[2,11,2,35],[3,0,3,10],[3,11,3,35]]}
["SOUTHEASTERN GROCERS NEW ITEM AGREEMENT"]
["FIELDS THAT ARE GRAYED OUT INDICATE THAT THE FIELD IS TO BE COMPLETED BY A BL HOLDINGS ASSOCIATE."]
["SUPPLIER ITEM DESCRIPTION ",null,null,null,null,null,null,null,null,null,null," "]
["POINT OF SALE DESCRIPTION"]
["BLH ITEM NUMBER",null,null,null,null,null," ",null,null,null,null,"FIRST DATE AVAILABLE TO SHIP"]
[]
["ITEM TO BE AUTHORIZED FOR BANNERS AS INDICATED: (X)",null,null,null,null,null,null,null,null,null,null,null,null,null,null,"WD",null," ","BILO",null," ","HARVEY'S",null,null," ","ALL"]
["ITEM WILL BE AUTHORIZED IN THE FOLLOWING DC'S",null,null,null,null,null,null,null,null,null,null,null,null,"JAX",null," ","Plant City",null,null," ","MIA",null,null,"MAU",null,null,"MTG",null,null,"NOL",null,null,"ORL",null,null,null,null,null,null,null,null,null,null,null,null,null,null,null,null,null,null,null,null,null,null,null,null,null,null,null,"N"]
[null,null,null,null,null,null,null,null,null,null,null,null,null,"FAC 19",null," ","GMD",null,null,null,null,null,null,null,null,null,null,null,null,null,null,null,null,null,null,null,null,null,null,null,null,null,null,null,null,null,null,null,null,null,null,null,null,null,null,null,null,null,null,null,"R"]
["FUNCTION 01"]
["SIZE",null,null,null,null,null," ",null,null,null,null,null,null,null,null,null,null,null,"MANUFACTURER CODE",null,null,null,null,null,null," "]
[" ",null,null,null,null,"If size =1 DS a shipper component worksheet must be attached",null,null,null,null,null,null,null,null,null,null,null,null,null,null,null,null,null,null,null,null,null,null,null,null,null,null,null,null,null,null,null,null,null,null,null,null,null,null,null,null,null,null,null,null,null,null,null,null,null,null,null,null,null,null,"VENDOR TIE"]
["MODEL CODE",null,null,null,null,null," ",null,null,null,null,null,null,null,null,null,null,"COST LINK",null,null,null,null,null,null,null,null,"LIST COST",null,null,null,null,null,null,null,null,null,null,null,null,null,null,null,null,null,null,null,null,null,null,null,null,null,null,null,null,null,null,null,null,null,"VENDOR PALLET"]
[null,null,null,null,null,null,null,null,null,null,null,null,null,null,null,null,null,null,null,null,null,null,null,null,null,null,null,null,null,null,null,null,null,null,null,null,null,null,null,null,null,null,null,null,null,null,null,null,null,null,null,null,null,null,null,null,null,null,null,null,"WHS TIE"]
["INITIAL RECOMMENDED UNIT RETAIL PRICING",null,null,null,null,null,null,null,null,null,null,null,null,null,null,null,null,null,null,null,null,null,null,null,null,null,null,null,null,null,null,null,null,null,null,null,null,null,null,null,null,null,null,null,null,null,null,null,null,null,null,null,null,null,null,null,null,null,null,null,"WHS PALLET"]
[null,null,null,null,null,null,null,null,null,null,null,null,null,null,null,null,null,null,null,null,null,null,null,null,null,null,null,null,null,null,null,null,null,null,null,null,null,null,null,null,null,null,null,null,null,null,null,null,null,null,null,null,null,null,null,null,null,null,null,null,"UNITS"]
[null,null,null,null,null,null,null,null,"PRICE STRATEGY ITEM Y/N  "," ",null,null,null,null,null,null,null,null,null,"PRE-PRICED ITEM Y/N  "," ",null,null,null,null,null,null,"PRE-PRICED PRICE  "," "]
[]
[]
["If not Pre-priced, then MUST enter a \"RECOMMENDED\" Initial Retail Price via 1 of the 3 ways identified below:"]
[]
[null,null,null,null,null,null,null,null,null,null,null,null,"Assign Initial pricing by Adding to Price Association Code (PAC) or Price \"like\" Item"]
[]
["1)","Initial Sell Unit Retail Price",null,null,null,null,null,null,null,null,null,null,"2)","Enter existing PAC # to add to:",null,null,null,null,null,null,null,null,null,"3)","Price like",null,null,null,"Add to PAC containing"]
[null,null,null,null,null,null,null,null,null,null,null,null,null,"Price Association Code (PAC) groups like items for Pricing"]
[null,"WINN DIXIE",null,null,null,null,null,null,null,null,null,null,null,null,null,null,null,"WD / Harveys PAC#",null,null,null,null,null,null,null,null,null,null,null,null,"WD / Harveys Item Code"]
[null,"BI-LO",null,null,null,null,null,null,null,null,"OR",null,null,null,"LIST CURRENT PAC # or \"Y\" IF NEW PAC IS NEEDED",null,null,null,null,null,null,null,null,"OR","New item will be added to the PAC containing the item entered above  "]
[null,"HARVEYS",null,null,null,null,null,null,null,null,null,null,null,null,null,null,null,"Bi-LO PAC#",null,null,null,null,null,null,null,null,null,null,null,null,"Bi-LO Item Code"]
[null,null,null,null,null,null,null,null,null,null,null,null,null,null,"LIST CURRENT PAC# or \"Y\" IF NEW PAC IS NEEDED",null,null,null,null,null,null,null,null,null,"New item will be added to the PAC containing the item entered above  "]
[]
[]
["EXISTING BLH CODE IF",null,null,null,null,null,null,null,null,null,null,null,null,null,null,null,null,null,"ORDER RESTRICTION"]
["REPLACEMENT ITEM",null,null,null,null,null,null,null,null,null,null,null,null,null,null,null,null,null,"VENDOR TIE, VENDOR PALLET, WHS TIE, WHS PALLET, UNITS",null,null,null,null,null,null,null,null,null,null,null,null,null,null,null,null,null,null,null,null,null,null,null,null,null,null,null,null,null,null,null,null,null,null,null,null,null,null,null,null,null,"02=GROCERY"]
[" ",null,null,null,null,null," "," ",null,null,null,null,null,null,null,null,null,null,"NEW ITEM REASON",null,null,null,null,null,null,null,"WIC",null,"AL",null,"FL",null,"GA",null,"TN",null,null,null,null,null,null,null,null,null,null,null,null,null,null,null,null,null,null,null,null,null,null,null,null,null,"03=PRODUCE"]
[null,null,null,null,null,null,null,null,null,null,null,null,null,null,null,null,null,null,"(N=NEW OR R=REPLACEMENT)",null,null,null,null,null,null,null,null,null,"NC",null,"SC",null,"LA",null," ",null,null,null,null,null,null,null,null,null,null,null,null,null,null,null,null,null,null,null,null,null,null,null,null,null,"04=MEAT"]
["WAREHOUSE",null,null,null,null,null,null,null,null,null,null,null,null,null,null,null,null,null,"FUNCTION 01 SUPPORT",null,null,null,null,null,null,null,null,null,null,null,null,null,null,null,null,null,null,null,null,null,null,null,null,null,null,null,null,null,null,null,null,null,null,null,null,null,null,null,null,null,"05=GMD"]
[null,null,null,null,null,null,"02=GROC, 03=PROD, 04=MEAT, 05=GM, 07=D/FF",null,null,null,null,null,null,null,null,null,null,null,"ON PRCBK SHLF LBLS Y/N",null,null,null,null,null,null," ",null,null,null,null,null,null,null,null,null,null,null,null,null,null,null,null,null,null,null,null,null,null,null,null,null,null,null,null,null,null,null,null,null,null,"07=DAIRY/FROZEN"]
["VENDOR NAME",null,null,null,null,null," ",null,null,null,null,null,null,null,null,null,null,null,"DAYS FRESH",null,null,null," ",null,"DAYS NOTICE",null,null,null," ",null,"FORCED DATE Y/N",null,null,null,null," "]
["VENDOR NUMBER",null,null,null,null,null," ",null,null,null,null,null,null,null,null,null,null,null,"COMPANY PRODUCT Y/N",null,null,null,null,null,null," ","SUPPLY ITEM Y/N ",null,null,null,null,{"$f":"IF(MID(V50,2,1)=\"1\",\"Y\",\" \")","v":" "},"COS Y/N",null,null,{"$f":"IF(MID(Z50,2,1)=\"1\",\"Y\",\" \")","v":" "},null,null,null,null,null,null,null,null,null,null,null,null,null,null,null,null,null,null,null,null,null,null,null,null,"13 TOM BARR"]
[null,null,null,null,null,null,"EXAMPLE: 2 IS GROCERY, VNDR# IS 1570 = 201570",null,null,null,null,null,null,null,null,null,null,null,"UPC of NAT'L EQUIV (Own Brand Items)",null,null,null,null,null,null,null,null,null,null,null,null,null,null,null,null,null,null,null,null,null,null,null,null,null,null,null,null,null,null,null,null,null,null,null,null,null,null,null,null,null,"17 DEREK DEFOE"]
["SWELL AMOUNT",null,null,null,null,null," ",null,null,null,null,null,null,null,null,null,null,null,"ALLOW INV ONLY Y/N",null,null,null,null,null,null," ","PRINT ON LOC REQ Y/N",null,null,null,null,null,null," ",null,null,null,null,null,null,null,null,null,null,null,null,null,null,null,null,null,null,null,null,null,null,null,null,null,null,"25 DEREK FREDERICKSON"]
["(% OR $)",null,null,null,null,null,"REQUIRED IF SWELL VENDOR",null,null,null,null,null,null,null,null,null,null,null,"ALLOW INV CREDIT Y/N",null,null,null,null,null,null," ","LOOKUP #",null,null,null," ",null,null,null,null,null,null,null,null,null,null,null,null,null,null,null,null,null,null,null,null,null,null,null,null,null,null,null,null,null,"27 SCOTT SILVERMAN"]
[null,null,null,null,null,null,null,null,null,null,null,null,null,null,null,null,null,null,"PERISH INV BY C=case,E=each,L=lb",null,null,null,null,null,null,null,null,null," ","LOC REQ SEQ",null,null,null," ",null,null,null,null,null,null,null,null,null,null,null,null,null,null,null,null,null,null,null,null,null,null,null,null,null,null,"32 DELI CATEGORY MANAGER",null,"C=case"]
["CASE UPC",null,null,null,null,null,null,null,null,null,null,null,null,null,null,null,null,null,"Price Book Only Y/N",null,null,null,null,null," ","Primal Code",null,null,null," ",null,null,null,null,null,null,null,null,null,null,null,null,null,null,null,null,null,null,null,null,null,null,null,null,null,null,null,{"$f":"IF(AF39=\"Y\",1,0)","v":0},null,null,"37 SHIRLEY WATSON",null,"E=each"]
[null,null,null,null,null,null,null,null,null,null,null,null,null,null,null,null,null,null,null,null,null,null,null,null,null,"FUNCTION 02",null,null,null," ",null,null,null,null,null,null,null,null,null,null,null,null,null,null,null,null,null,null,null,null,null,null,null,null,null,null,null,null,null,null,"51 DAN RYNDAK",null,"L=pound"]
["UNIT UPC",null,null,null,null,null,null,null,null,null,null,null,null,null,null,null,null,null,"PACKAGING",null,null,null,null,null,null,null,null,null,null,null,null,null,null,null,null,null,null,null,null,null,null,null,null,null,null,null,null,null,null,null,null,null,null,null,null,null,null,null,null,null,"52 PAUL MCNEAL"]
[null,null,null,null,"ATTACHED PHOTO COPY OF UPC BAR CODE REQUIRED",null,null,null,null,null,null,null,null,null,null,null,null,null,"UNIT FACTOR 1/COF",null,null,null,null,null,null,null,null,"SHELF LIFE DAYS",null,null,null,null," ",null,null,null,null,null,null,null,null,null,null,null,null,null,null,null,null,null,null,null,null,null,null,null,null,null,null,null,"61 MARK AHLSTROM"]
["GTIN",null,null,null,null,null,null,null,null,null,null,null,null,null,null,null,null,null,"BIO Y/N",null,null,null,"COOL",null,null,null,null,null,null,null,null,null,null,null,null,null,null,null,null,null,null,null,null,null,null,null,null,null,null,null,null,null,null,null,null,null,null,null,null,null,"62 SCOTT WYNN"]
[null,null,null,null,null,null,null,null,null,null,null,null,null,null,null,null,null,null," ",null,null,null,null,null,null,"FUNCTION 05",null,null,null," ",null,null,null,null,null,null,null,null,null,null,null,null,null,null,null,null,null,null,null,null,null,null,null,null,null,null,null,null,null,null,"63 CHUCK MEARS"]
[" "," "," "," "," "," "," "," "," "," "," "," "," ",null,null,null,null,null,"BILL DEPT",null,null," ",null,"INV CLASS",null,null,null," ",null,"MAX QTY ALLOC",null,null,null,null," ",null,null,null,null,null,null,null,null,null,null,null,null,null,null,null,null,null,null,null,null,null,null,null,null,null,"64 TERRY WEST",null,null,"ALUMINUM FOIL"]
[null,null,null,null,null,null,null,null," ",null,null,null," ",null,null," ",null,null,"RESTRICTOR CODE",null,null,null,null,null,null,null,null,null,null,null,null,null,null,null,null,null,null,null,null,null,null,null,null,null,null,null,null,null,null,null,null,null,null,null,null,null,null,null,null,null,"65 MARCUS ADAIR",null,null,"BAG, PAPER"]
["ORDER SEQUENCE",null,null,null,null,null," ",null,null,null,null,null,null,null,null,null,null,null,"PALLET SHIPPER Y/N",null,null,null,null,null," ","QTY PER SHIPPER",null,null,null,null,null," ",null,null,null,null,null,null,null,null,null,null,null,null,null,null,null,null,null,null,null,null,null,null,null,null,null,{"$f":"IF(AND(G52>199999,G52<799999),(LEFT(G52,1))*1,0)","v":0},null,null,"66 JOHN BOYLE",null,null,"BAG, PLASTIC"]
["EXAMPLE: 5 IS GM COMMODITY. 100 IS THE CATEGORY. 05 IS THE SUB CATEGORY = 510005",null,null,null,null,null,null,null,null,null,null,null,null,null,null,null,null,null,"If the item is a pallet shipper, a shipper component worksheet must be attached",null,null,null,null,null,null,null,null,null,null,null,null,null,null,null,null,null,null,null,null,null,null,null,null,null,null,null,null,null,null,null,null,null,null,null,null,null,null,null,null,null,"67 SUSAN MOORE",{"$f":"V50&AB50","v":"  "},null,"BIN, PLASTIC (BULK)"]
[null,null,null,null,null,null," ",null,null,null,null,null,null,null,null,null,null,null,"FUNCTION 09",null,null,null,null,null,null,null,null,null,null,null,null,null,null,null,null,null,null,null,null,null,null,null,null,null,null,null,null,null,null,null,null,null,null,null,null,null,null,{"$f":"IF(OR(V50=201,V50=204,V50=208,V50=210,V50=211,V50=212,V50=215,V50=216),2,IF(OR(V50=302,V50=310,V50=312),3,IF(OR(V50=403,V50=404,V50=405,V50=411,V50=415,V50=416),4,IF(OR(V50=501,V50=502,V50=503,V50=504,V50=508,V50=509,V50=510,V50=511,V50=512,V50=513,V50=515,V50=516),5,IF(OR(V50=701,V50=706,V50=707),7,0)))))","v":0},{"$f":"VLOOKUP(V50,BG58:BG89,1,FALSE)","v":{"$error":"#N/A"}},null,"68 STEVE MCGINTY",null,null,"BOTTLE OR JAR, GLASS"]
[null,null,null,"MSTR",null,"SHIP",null,null,null," ",null,null,null,null,null,null,null,null,null,null,null,null,"VARIABLE WEIGHT Y/N",null,null,null,null,null,null,null,null,null,null,null,null,null,null,null,null,null,null,null,null,null,null,null,null,null,null,null,null,null,null,null,null,null,null,null,null,null,"69 COLER AMBROSE",{"$f":"IF(ISNA(VLOOKUP(BJ53,BJ58:BK66,2,FALSE))=TRUE,\"\",VLOOKUP(BJ53,BJ58:BK66,2,FALSE))","v":""},null,"BOTTLE OR JAR, PLASTIC"]
["PACK",null,null,null,null,null,null,null,null,null,null,null,null,null,null,null,null,null,"HUB",null,null,null,null,null,null,null,null,null,null,null,null,null,null,null,null,null,null,null,null,null,null,null,null,null,null,null,null,null,null,null,null,null,null,null,null,null,null,{"$f":"IF(AND(V50>199,V50<708),(MID(V50,2,1))*1,0)","v":0},null,null,"70 ANGIE WELCH",null,null,"BOTTLE, RETURNABLE"]
["LENGTH",null,null,null,null,null,null,null,null,"TAG DESCRIPTION LINE 1",null,null,null,null,null,null,null,null,null,null,null,null,null,null,null,null,null,null,null,null,null,null,null,null,null,null,null,null,null,null,null,null,null,null,null,null,null,null,null,null,null,null,null,null,null,null,null,{"$f":"SUM(BF58:BF98)","v":1},null,null,"71 TIM MCNAMARA",null,null,"BOX, PAPER ANY SHAPE"]
["WIDTH",null,null,null,null,null,null,null,null,"TAG DESCRIPTION LINE 2",null,null,null,null,null,null,null,null,null,null,null,null,null,null,null,null,null,null,null,null,null,null,null,null,null,null,null,null,null,null,null,null,null,null,null,null,null,null,null,null,null,null,null,null,null,null,null,{"$f":"IF(AND(V$50=201,OR(AB$50=\"02\",AB$50=\"03\",AB$50 =\"99\")),1,0)","v":0},201,3,"72 ROBY MCNEELY",null,null,"CAN, ALUMINUM"]
["HEIGHT",null,null,null,null,null,null,null,null,null,null,null,null,null,null,null,null,null,null,null,null,null,null,null,null,null,null,null,null,null,null,null,null,null,null,null,null,null,null,null,null,null,null,null,null,null,null,null,null,null,null,null,null,null,null,null,null,{"$f":"IF(AND(V$50=204,AB$50 =\"99\"),1,0)","v":0},204,1,"73 LOUIS ARCHER","20102","ALCOHOL","CAN, NON-ALUMINUM"]
["WEIGHT",null,null,null,null,null,null,null,null,null,null,null,null,null," ",null,null,null,null,null,null,null,null,"NATURAL",null,null," ","ORGANIC",null,null,null,"KOSHER",null,null,null,null,null,null,null,null,null,null,null,null,null,null,null,null,null,null,null,null,null,null,null,null,null,{"$f":"IF(AND(V$50=208,OR(AB$50=\"01\",AB$50=\"02\",AB$50=\"39\",AB$50=\"45\",AB$50 =\"60\")),1,0)","v":0},208,5,"74 KEVIN MILLER","20103","TOBACCO","CAN, AEROSOL"]
[null,null,null,null,null,null,null,null,null,null,null,null,null,null,null,null,null,null,null,null,null,null,null,null,"UPC BAR CODE",null,null,null,null,null,null,null,null,null,null,null,null,null,null,null,null,null,null,null,null,null,null,null,null,null,null,null,null,null,null,null,null,{"$f":"IF(AND(V$50=210,OR(AB$50=\"24\",AB$50=\"25\",AB$50=\"40\",AB$50=\"41\",AB$50 =\"43\",AB$50=\"45\",AB$50=\"46\",AB$50=\"48\",AB$50=\"66\",AB$50=\"77\",AB$50=\"98\")),1,0)","v":0},210,11,"75 PAUL TREMBLAY","20199","GROCERY","CARTON, PAPER"]
[null,null,null,"VNDR",null,"WHS",null,"NON-PROD FRESH PK/CASE",null,null,null,null,null,null,null,null,null,null," ",null,null,null,null,null,null,null,null,null,null,null,null,null,null,null,null,null,null,null,null,null,null,null,null,null,null,null,null,null,null,null,null,null,null,null,null,null,null,{"$f":"IF(AND(V$50=211,OR(AB$50=\"25\",AB$50=\"41\")),1,0)","v":0},211,2,"76 TIMMY HINKLE","20499","DELI","CARTON, STYROFOAM"]
[null,"TIE ",null,null,null,null,null,"GP RATE",null,null,null,null,null,null,null,null,null,null,null,null,null,null,null,null,null,null,null,null,null,null,null,null,null,null,null,null,null,null,null,null,null,null,null,null,null,null,null,null,null,null,null,null,null,null,null,null,null,{"$f":"IF(AND(V$50=212,OR(AB$50=\"16\",AB$50=\"25\",AB$50=\"41\",AB$50=\"43\",AB$50 =\"44\")),1,0)","v":0},212,5,"77 KAREN LAGARDE","20801","GM DRUGS","CONTAINER, FOIL"]
[" ","TIER",null,null,null,null,null,"26 WEEK PROJECTED UNITS",null,null,null,null,null,null,null,null,null,null,null,null,null,null,null,null,null,null,null,null,null,null,null,null,null,null,null,null,null,null,null,null,null,null,null,null,null,null,null,null,null,null,null,null,null,null,null,null,null,{"$f":"IF(AND(V$50=215,OR(AB$50=\"17\",AB$50=\"25\",AB$50=\"40\",AB$50=\"41\",AB$50 =\"44\",AB$50=\"46\",AB$50=\"54\",AB$50=\"61\",AB$50=\"62\")),1,0)","v":0},215,9,"78 DOUG OWENBY","20802","GM HOUSEWARES","CONTAINER, PLASTIC"]
[null,null," ",null,null,null,null,"MANDATORY ITEM",null,null,null,null,null,null,null,null,null,null,null,null,null,null,null,null,null,null,null,null,null,null,null,null,null,null,null,null,null,null,null,null,null,null,null,null,null,null,null,null,null,null,null,null,null,null,null,null,null,{"$f":"IF(AND(V$50=216,OR(AB$50=\"16\",AB$50=\"25\",AB$50=\"41\",AB$50=\"43\")),1,0)","v":0},216,4,"79 ERIC HAINES","20839","GM CONTINUITY","CONTAINER, TIN"]
[null,null,null,null,null,null,null,null,null,null,null,null,null,null,null,null,null,null,null,null,null,null,null,null,null,null,null,null,null,null,null,null,null,null,null,null,null,null,null,null,null,null,null,null,null,null,null,null,null,null,null,null,null,null,null,null,null,{"$f":"IF(AND(V$50=302,OR(AB$50=\"01\",AB$50=\"15\",AB$50=\"40\",AB$50=\"50\",AB$50=\"60\",AB$50 =\"99\")),1,0)","v":0},302,5,"80 CHARLIE VAN PELT","20845","GM SEASONAL","ENVELOPE/POUCH, PAPER"]
[null,"CATEGORY MANAGER APPROVAL",null,null,null,null,null,null,null,null,null,null,null,null,null,null,null,null,null,null,null,null,null,null,null,null,null,null,null,null,null,null,null,null,null,null,null,null,null,null,null,null,null,null,null,null,null,null,null,null,null,null,null,null,null,null,null,{"$f":"IF(AND(V$50=310,AB$50 =\"25\"),1,0)","v":0},310,1,"81 MIKE JEFFREYS","20860","PHOTO LAB","ENVELOPE/POUCH, PLASTIC"]
[null,null,null,null,null,null,null,null,null,null,null,null,null,null,null,null,null,null,null,null,null,null,null,null,null,null,null,null,null,null,null,null,null,null,null,null,null,null,null,null,null,null,null,null,null,null,null,null,null,null,null,null,null,null,null,null,null,{"$f":"IF(AND(V$50=312,OR(AB$50=\"23\",AB$50=\"24\",AB$50=\"25\",AB$50=\"40\",AB$50 =\"41\",AB$50=\"44\",AB$50=\"50\")),1,0)","v":0},312,7,"82 JEFF ELWELL","21024","PHOTO LAB SUPPLIES","KEG, STAINLESS STEEL"]
[null,null,null,null,null,null,null,null,null,null,null,null,null,null,null,null,null,null,null,null,null,null,null,null,null,null,null,null,null,null,null,null,null,null,null,null,null,null,null,null,null,null,null,null,null,null,null,null,null,null,null,null,null,null,null,null,null,{"$f":"IF(AND(V$50=403,OR(AB$50=\"02\",AB$50=\"12\",AB$50=\"15\",AB$50=\"19\",AB$50 =\"68\",AB$50=\"99\")),1,0)","v":0},403,6,"83 ROBERT STEWART","21025","GROCERY SUPPLIES","OVERWRAP, FOIL"]
[null,null,null,null,null,null,null,null,null,null,null,null,null,null,null,null,null,null,null,null,null,null,null,null,null,null,null,null,null,null,"revised 07/01/14",null,null,null,null,null,null,null,null,null,null,null,null,null,null,null,null,null,null,null,null,null,null,null,null,null,null,{"$f":"IF(AND(V$50=404,OR(AB$50=\"15\",AB$50=\"19\",AB$50=\"29\",AB$50=\"50\",AB$50 =\"65\",AB$50=\"69\",AB$50=\"79\",AB$50=\"99\")),1,0)","v":0},404,8,"84 DAVID VOEKS","21040","PAPER/PLASTIC BAGS","OVERWRAP, PAPER"]
[" I, THE SELLER, AGREE THAT UPON ACCEPTANCE OF THIS ITEM, TO FULLY GUARANTEE ITS SUCCESS.  AFTER 180 DAYS OF BEING PLACED IN THE RETAIL",null,null,null,null,null,null,null,null,null,null,null,null,null,null,null,null,null,null,null,null,null,null,null,null,null,null,null,null,null,null,null,null,null,null,null,null,null,null,null,null,null,null,null,null,null,null,null,null,null,null,null,null,null,null,null,null,{"$f":"IF(AND(V$50=405,OR(AB$50=\"15\",AB$50=\"19\",AB$50=\"99\")),1,0)","v":0},405,2,"85 ADONIS PASERIO","21041","CLEANING SUPPLIES","OVERWRAP, PLASTIC"]
["STORES, MY NEW ITEM WEEKLY MOVEMENT WILL BE",null,null,null,null,null,null,null,null,null,null,null,null," ",null,"CASES. BI-LO HOLDINGS MAY RETURN THIS PRODUCT TO THEIR RECLAIM CENTER. INVENTORY",null,null,null,null,null,null,null,null,null,null,null,null,null,null,null,null,null,null,null,null,null,null,null,null,null,null,null,null,null,null,null,null,null,null,null,null,null,null,null,null,null,{"$f":"IF(AND(V$50=411,OR(AB$50=\"25\",AB$50=\"40\",AB$50=\"41\",AB$50=\"42\",AB$50 =\"43\",AB$50=\"44\",AB$50=\"45\")),1,0)","v":0},411,7,"86 JOHN JANSEN","21043","SECURITY LABELS","PAPER"]
["STILL IN THEIR DISTRIBUTION FACILITIES WILL BE RETURNED TO SUPPLIER AT THEIR EXPENSE. BI-LO HOLDINGS MAY BILL OUR COMPANY AT THE CURRENT",null,null,null,null,null,null,null,null,null,null,null,null,null,null,null,null,null,null,null,null,null,null,null,null,null,null,null,null,null,null,null,null,null,null,null,null,null,null,null,null,null,null,null,null,null,null,null,null,null,null,null,null,null,null,null,null,{"$f":"IF(AND(V$50=415,OR(AB$50=\"17\",AB$50=\"24\",AB$50=\"25\",AB$50=\"40\",AB$50 =\"41\",AB$50=\"42\",AB$50=\"43\",AB$50=\"44\",AB$50=\"45\",AB$50=\"46\",AB$50=\"47\",AB$50=\"53\",AB$50=\"54\",AB$50=\"55\",AB$50=\"56\",AB$50=\"57\",AB$50=\"58\",AB$50=\"59\",AB$50=\"60\",AB$50=\"61\",AB$50=\"62\")),1,0)","v":0},415,14,"87 KEVIN COCHRAN","21045","PACKAGING/LABELS","PLASTIC TOP FOIL BASE"]
["RECLAIM BILLING PRICE. I UNDERSTAND THAT MY PRODUCT WILL BE AVAILABLE FOR DONATION, PICKUP, DESTROY, RETURN AND/OR DISPOSEAL BY",null,null,null,null,null,null,null,null,null,null,null,null,null,null,null,null,null,null,null,null,null,null,null,null,null,null,null,null,null,null,null,null,null,null,null,null,null,null,null,null,null,null,null,null,null,null,null,null,null,null,null,null,null,null,null,null,{"$f":"IF(AND(V$50=416,OR(AB$50=\"25\",AB$50=\"40\",AB$50=\"41\",AB$50=\"42\",AB$50 =\"43\",AB$50=\"44\",AB$50=\"45\",AB$50=\"46\",AB$50=\"47\")),1,0)","v":0},416,9,"88 DEBORAH SHAPIRO","21046","OFFICE/POS SUPPLIES"]
["METHOD  OF DISPOSITION UNDER NORMAL BI-LO HOLDINGS RECLAIM POLICY. PLEASE PROVIDE A MINIMUM OF TWO LIVE SAMPLES AND A PHOTO COPY OF THE",null,null,null,null,null,null,null,null,null,null,null,null,null,null,null,null,null,null,null,null,null,null,null,null,null,null,null,null,null,null,null,null,null,null,null,null,null,null,null,null,null,null,null,null,null,null,null,null,null,null,null,null,null,null,null,null,{"$f":"IF(AND(V$50=501,OR(AB$50=\"03\",AB$50=\"60\",AB$50 =\"99\")),1,0)","v":0},501,3,"89 JASON COOK","21048","FLOORCARE SUPPLIES"]
["UPC BAR CODE FOR EACH NEW ITEM SUBMITTED. PLEASE SEE YOUR CATEGORY MANAGER FOR ADDITIONAL INFORMATION.",null,null,null,null,null,null,null,null,null,null,null,null,null,null,null,null,null,null,null,null,null,null,null,null,null,null,null,null,null,null,null,null,null,null,null,null,null,null,null,null,null,null,null,null,null,null,null,null,null,null,null,null,null,null,null,null,{"$f":"IF(AND(V$50=502,AB$50 =\"40\"),1,0)","v":0},502,1,"90 DAVID WELCH","21066","PHOTO PKGING/LABELS"]
["SUBMITTED BY:",null,null,null,null,null,null,null,null,null,null,null,null,null,null,null,null,null,null,null,"DATE:",null,null,null,null,null,null,null,null,null,null,null,null,null,null,null,null,null,null,null,null,null,null,null,null,null,null,null,null,null,null,null,null,null,null,null,null,{"$f":"IF(AND(V$50=503,AB$50 =\"99\"),1,0)","v":0},503,1,"91 GROCERY CATEGORY MANAGER","21077","PHARMACY SUPPLIES"]
[null,null,null,null,null,null,null,null,null,null,null,null,null,null,null,null,null,null,null,null,null,null,null,null,null,null,null,null,null,null,null,null,null,null,null,null,null,null,null,null,null,null,null,null,null,null,null,null,null,null,null,null,null,null,null,null,null,{"$f":"IF(AND(V$50=504,AB$50 =\"99\"),1,0)","v":0},504,1,"92 JERRY DAVIS","21098","PHARM SUPPLIES MISC"]
[null,null,null,null,null,null,null,null,null,null,null,null,null,null,null,null,null,null,null,null,null,null,null,null,null,null,null,null,null,null,null,null,null,null,null,null,null,null,null,null,null,null,null,null,null,null,null,null,null,null,null,null,null,null,null,null,null,{"$f":"IF(AND(V$50=508,OR(AB$50=\"03\",AB$50=\"04\",AB$50=\"39\",AB$50=\"45\",AB$50 =\"46\",AB$50=\"47\",AB$50=\"60\",AB$50=\"65\",AB$50=\"70\",AB$50=\"71\",AB$50=\"99\")),1,0)","v":0},508,11,"93 RON MORWAY","21125","MEAT SUPPLIES"]
[null,null,null,null,null,null,null,null,null,null,null,null,null,null,null,null,null,null,null,null,null,null,null,null,null,null,null,null,null,null,null,null,null,null,null,null,null,null,null,null,null,null,null,null,null,null,null,null,null,null,null,null,null,null,null,null,null,{"$f":"IF(AND(V$50=509,AB$50 =\"99\"),1,0)","v":0},509,1,"94 SARAH HEXIMER","21141","MEAT PKGING/LABELS"]
[null,null,null,null,null,null,null,null,null,null,null,null,null,null,null,null,null,null,null,null,null,null,null,null,null,null,null,null,null,null,null,null,null,null,null,null,null,null,null,null,null,null,null,null,null,null,null,null,null,null,null,null,null,null,null,null,null,{"$f":"IF(AND(V$50=510,OR(AB$50=\"16\",AB$50=\"23\",AB$50=\"24\",AB$50=\"25\",AB$50 =\"28\",AB$50=\"29\",AB$50=\"40\",AB$50=\"41\",AB$50=\"42\",AB$50=\"43\",AB$50=\"44\",AB$50=\"45\",AB$50=\"46\",AB$50=\"47\",AB$50=\"48\",AB$50=\"49\",AB$50=\"50\",AB$50=\"51\",AB$50=\"52\",AB$50=\"53\",AB$50=\"65\",AB$50=\"66\",AB$50=\"75\",AB$50=\"76\",AB$50=\"77\",AB$50=\"78\",AB$50=\"98\")),1,0)","v":0},510,27,"95 RICHARD STURGILL","21216","PROD COS SUPPLIES"]
[null,null,null,null,null,null,null,null,null,null,null,null,null,null,null,null,null,null,null,null,null,null,null,null,null,null,null,null,null,null,null,null,null,null,null,null,null,null,null,null,null,null,null,null,null,null,null,null,null,null,null,null,null,null,null,null,null,{"$f":"IF(AND(V$50=511,OR(AB$50=\"16\",AB$50=\"25\",AB$50=\"40\",AB$50=\"41\",AB$50=\"42\",AB$50=\"43\",AB$50=\"44\",AB$50=\"45\",AB$50=\"46\",AB$50=\"47\",AB$50=\"48\",AB$50=\"49\",AB$50=\"50\",AB$50=\"51\",AB$50=\"52\",AB$50=\"53\",AB$50=\"54\")),1,0)","v":0},511,17,"96 MIKE RUSSELL","21225","PROD EXP SUPPLIES"]
[null,null,null,null,null,null,null,null,null,null,null,null,null,null,null,null,null,null,null,null,null,null,null,null,null,null,null,null,null,null,null,null,null,null,null,null,null,null,null,null,null,null,null,null,null,null,null,null,null,null,null,null,null,null,null,null,null,{"$f":"IF(AND(V$50=512,OR(AB$50=\"16\",AB$50=\"23\",AB$50=\"24\",AB$50=\"25\",AB$50=\"40\",AB$50=\"41\",AB$50=\"42\",AB$50=\"43\",AB$50=\"44\",AB$50=\"45\",AB$50=\"46\",AB$50=\"47\",AB$50=\"48\",AB$50=\"49\",AB$50=\"50\")),1,0)","v":0},512,15,null,"21241","PROD PKGING/LABELS"]
[null,null,null,null,null,null,null,null,null,null,null,null,null,null,null,null,null,null,null,null,null,null,null,null,null,null,null,null,null,null,null,null,null,null,null,null,null,null,null,null,null,null,null,null,null,null,null,null,null,null,null,null,null,null,null,null,null,{"$f":"IF(AND(V$50=513,AB$50 =\"25\"),1,0)","v":0},513,1,null,"21243","PROD POP SUPPLIES"]
[null,null,null,null,null,null,null,null,null,null,null,null,null,null,null,null,null,null,null,null,null,null,null,null,null,null,null,null,null,null,null,null,null,null,null,null,null,null,null,null,null,null,null,null,null,null,null,null,null,null,null,null,null,null,null,null,null,{"$f":"IF(AND(V$50=515,OR(AB$50=\"17\",AB$50=\"25\",AB$50 =\"40\",AB$50=\"41\",AB$50=\"42\",AB$50=\"43\",AB$50=\"44\",AB$50=\"45\",AB$50=\"46\",AB$50=\"47\",AB$50=\"48\",AB$50=\"49\",AB$50=\"50\",AB$50=\"51\",AB$50=\"52\",AB$50=\"53\",AB$50=\"54\",AB$50=\"55\",AB$50=\"56\",AB$50=\"57\",AB$50=\"58\",AB$50=\"59\",AB$50=\"60\",AB$50=\"61\",AB$50=\"62\")),1,0)","v":0},515,25,null,"21244","PRODUCE BAGS"]
[null,null,null,null,null,null,null,null,null,null,null,null,null,null,null,null,null,null,null,null,null,null,null,null,null,null,null,null,null,null,null,null,null,null,null,null,null,null,null,null,null,null,null,null,null,null,null,null,null,null,null,null,null,null,null,null,null,{"$f":"IF(AND(V$50=516,OR(AB$50=\"16\",AB$50=\"25\",AB$50=\"40\",AB$50=\"41\",AB$50 =\"42\",AB$50=\"43\",AB$50=\"44\",AB$50=\"45\",AB$50=\"46\",AB$50=\"47\")),1,0)","v":0},516,10,null,"21517","DELI COS SUPPLIES"]
[null,null,null,null,null,null,null,null,null,null,null,null,null,null,null,null,null,null,null,null,null,null,null,null,null,null,null,null,null,null,null,null,null,null,null,null,null,null,null,null,null,null,null,null,null,null,null,null,null,null,null,null,null,null,null,null,null,{"$f":"IF(AND(V$50=701,AB$50 =\"99\"),1,0)","v":0},701,1,null,"21525","DELI EXP SUPPLIES"]
[null,null,null,null,null,null,null,null,null,null,null,null,null,null,null,null,null,null,null,null,null,null,null,null,null,null,null,null,null,null,null,null,null,null,null,null,null,null,null,null,null,null,null,null,null,null,null,null,null,null,null,null,null,null,null,null,null,{"$f":"IF(AND(V$50=706,OR(AB$50=\"07\",AB$50=\"08\",AB$50=\"09\",AB$50=\"19\",AB$50 =\"99\")),1,0)","v":0},706,5,null,"21540","DELI SECURITY LABELS"]
[null,null,null,null,null,null,null,null,null,null,null,null,null,null,null,null,null,null,null,null,null,null,null,null,null,null,null,null,null,null,null,null,null,null,null,null,null,null,null,null,null,null,null,null,null,null,null,null,null,null,null,null,null,null,null,null,null,{"$f":"IF(AND(V$50=707,OR(AB$50=\"02\",AB$50=\"99\")),1,0)","v":0},707,2,null,"21541","DELI PKGING/LABELS"]
[null,null,null,null,null,null,null,null,null,null,null,null,null,null,null,null,null,null,null,null,null,null,null,null,null,null,null,null,null,null,null,null,null,null,null,null,null,null,null,null,null,null,null,null,null,null,null,null,null,null,null,null,null,null,null,null,null,{"$f":"IF(AND(V$50<201,AB$50>1),1,0)","v":0},null,null,null,"21544","DELI BAGS"]
[null,null,null,null,null,null,null,null,null,null,null,null,null,null,null,null,null,null,null,null,null,null,null,null,null,null,null,null,null,null,null,null,null,null,null,null,null,null,null,null,null,null,null,null,null,null,null,null,null,null,null,null,null,null,null,null,null,null,null,null,null,"21546","DELI TRNING MTRL"]
[null,null,null,null,null,null,null,null,null,null,null,null,null,null,null,null,null,null,null,null,null,null,null,null,null,null,null,null,null,null,null,null,null,null,null,null,null,null,null,null,null,null,null,null,null,null,null,null,null,null,null,null,null,null,null,null,null,null,null,null,null,"21554","BAKERY PKGING/LABELS"]
[null,null,null,null,null,null,null,null,null,null,null,null,null,null,null,null,null,null,null,null,null,null,null,null,null,null,null,null,null,null,null,null,null,null,null,null,null,null,null,null,null,null,null,null,null,null,null,null,null,null,null,null,null,null,null,null,null,null,null,null,null,"21561","BAKERY CPS SUPPLIES"]
[null,null,null,null,null,null,null,null,null,null,null,null,null,null,null,null,null,null,null,null,null,null,null,null,null,null,null,null,null,null,null,null,null,null,null,null,null,null,null,null,null,null,null,null,null,null,null,null,null,null,null,null,null,null,null,null,null,null,null,null,null,"21562","BAKERY EXP SUPPLIES"]
[null,null,null,null,null,null,null,null,null,null,null,null,null,null,null,null,null,null,null,null,null,null,null,null,null,null,null,null,null,null,null,null,null,null,null,null,null,null,null,null,null,null,null,null,null,null,null,null,null,null,null,null,null,null,null,null,null,null,null,null,null,"21616","SEAFOOD COS SUPPLIES"]
[null,null,null,null,null,null,null,null,null,null,null,null,null,null,null,null,null,null,null,null,null,null,null,null,null,null,null,null,null,null,null,null,null,null,null,null,null,null,null,null,null,null,null,null,null,null,null,null,null,null,null,null,null,null,null,null,null,null,null,null,null,"21625","SEAFOOD EXP SUPPLIES"]
[null,null,null,null,null,null,null,null,null,null,null,null,null,null,null,null,null,null,null,null,null,null,null,null,null,null,null,null,null,null,null,null,null,null,null,null,null,null,null,null,null,null,null,null,null,null,null,null,null,null,null,null,null,null,null,null,null,{"$f":"IF(AND(G52=\" \",V50=\" \",AB50=\" \"),1,0)","v":1},null,null,null,"21641","SEAFOOD PKGING/LBLS"]
[null,null,null,null,null,null,null,null,null,null,null,null,null,null,null,null,null,null,null,null,null,null,null,null,null,null,null,null,null,null,null,null,null,null,null,null,null,null,null,null,null,null,null,null,null,null,null,null,null,null,null,null,null,null,null,null,null,null,null,null,null,"21643","SEAFOOD POP SUPPLIES"]
[null,null,null,null,null,null,null,null,null,null,null,null,null,null,null,null,null,null,null,null,null,null,null,null,null,null,null,null,null,null,null,null,null,null,null,null,null,null,null,null,null,null,null,null,null,null,null,null,null,null,null,null,null,null,null,null,null,null,null,null,null,"30201","PROD SPECIAL ORDERS"]
[null,null,null,null,null,null,null,null,null,null,null,null,null,null,null,null,null,null,null,null,null,null,null,null,null,null,null,null,null,null,null,null,null,null,null,null,null,null,null,null,null,null,null,null,null,null,null,null,null,null,null,null,null,null,null,null,null,null,null,null,null,"30215","PROD COS SUPPLIES"]
[null,null,null,null,null,null,null,null,null,null,null,null,null,null,null,null,null,null,null,null,null,null,null,null,null,null,null,null,null,null,null,null,null,null,null,null,null,null,null,null,null,null,null,null,null,null,null,null,null,null,null,null,null,null,null,null,null,null,null,null,null,"30240","FLORAL"]
[null,null,null,null,null,null,null,null,null,null,null,null,null,null,null,null,null,null,null,null,null,null,null,null,null,null,null,null,null,null,null,null,null,null,null,null,null,null,null,null,null,null,null,null,null,null,null,null,null,null,null,null,null,null,null,null,null,null,null,null,null,"30250","FLORAL COS SUPPLIES"]
[null,null,null,null,null,null,null,null,null,null,null,null,null,null,null,null,null,null,null,null,null,null,null,null,null,null,null,null,null,null,null,null,null,null,null,null,null,null,null,null,null,null,null,null,null,null,null,null,null,null,null,null,null,null,null,null,null,null,null,null,null,"30260","MELON BAR"]
[null,null,null,null,null,null,null,null,null,null,null,null,null,null,null,null,null,null,null,null,null,null,null,null,null,null,null,null,null,null,null,null,null,null,null,null,null,null,null,null,null,null,null,null,null,null,null,null,null,null,null,null,null,null,null,null,null,null,null,null,null,"30299","PRODUCE"]
[null,null,null,null,null,null,null,null,null,null,null,null,null,null,null,null,null,null,null,null,null,null,null,null,null,null,null,null,null,null,null,null,null,null,null,null,null,null,null,null,null,null,null,null,null,null,null,null,null,null,null,null,null,null,null,null,null,null,null,null,null,"31025","GROC EXP SUPPLIES"]
[null,null,null,null,null,null,null,null,null,null,null,null,null,null,null,null,null,null,null,null,null,null,null,null,null,null,null,null,null,null,null,null,null,null,null,null,null,null,null,null,null,null,null,null,null,null,null,null,null,null,null,null,null,null,null,null,null,null,null,null,null,"31223","FLORAL PKGING/LBLS"]
[null,null,null,null,null,null,null,null,null,null,null,null,null,null,null,null,null,null,null,null,null,null,null,null,null,null,null,null,null,null,null,null,null,null,null,null,null,null,null,null,null,null,null,null,null,null,null,null,null,null,null,null,null,null,null,null,null,null,null,null,null,"31224","FLORAL COS SUPPLIES"]
[null,null,null,null,null,null,null,null,null,null,null,null,null,null,null,null,null,null,null,null,null,null,null,null,null,null,null,null,null,null,null,null,null,null,null,null,null,null,null,null,null,null,null,null,null,null,null,null,null,null,null,null,null,null,null,null,null,null,null,null,null,"31225","PROD EXP SUPPLIES"]
[null,null,null,null,null,null,null,null,null,null,null,null,null,null,null,null,null,null,null,null,null,null,null,null,null,null,null,null,null,null,null,null,null,null,null,null,null,null,null,null,null,null,null,null,null,null,null,null,null,null,null,null,null,null,null,null,null,null,null,null,null,"31240","PROD SECURITY LABELS"]
[null,null,null,null,null,null,null,null,null,null,null,null,null,null,null,null,null,null,null,null,null,null,null,null,null,null,null,null,null,null,null,null,null,null,null,null,null,null,null,null,null,null,null,null,null,null,null,null,null,null,null,null,null,null,null,null,null,null,null,null,null,"31241","PROD PKGING/LABELS"]
[null,null,null,null,null,null,null,null,null,null,null,null,null,null,null,null,null,null,null,null,null,null,null,null,null,null,null,null,null,null,null,null,null,null,null,null,null,null,null,null,null,null,null,null,null,null,null,null,null,null,null,null,null,null,null,null,null,null,null,null,null,"31244","BAGS"]
[null,null,null,null,null,null,null,null,null,null,null,null,null,null,null,null,null,null,null,null,null,null,null,null,null,null,null,null,null,null,null,null,null,null,null,null,null,null,null,null,null,null,null,null,null,null,null,null,null,null,null,null,null,null,null,null,null,null,null,null,null,"31250","FLORAL EXP SUPPLIES"]
[null,null,null,null,null,null,null,null,null,null,null,null,null,null,null,null,null,null,null,null,null,null,null,null,null,null,null,null,null,null,null,null,null,null,null,null,null,null,null,null,null,null,null,null,null,null,null,null,null,null,null,null,null,null,null,null,null,null,null,null,null,"40302","PACKAGED MEAT"]
[null,null,null,null,null,null,null,null,null,null,null,null,null,null,null,null,null,null,null,null,null,null,null,null,null,null,null,null,null,null,null,null,null,null,null,null,null,null,null,null,null,null,null,null,null,null,null,null,null,null,null,null,null,null,null,null,null,null,null,null,null,"40312","PCKAGED MEAT FROZEN"]
[null,null,null,null,null,null,null,null,null,null,null,null,null,null,null,null,null,null,null,null,null,null,null,null,null,null,null,null,null,null,null,null,null,null,null,null,null,null,null,null,null,null,null,null,null,null,null,null,null,null,null,null,null,null,null,null,null,null,null,null,null,"40315","MEAT COS SUPPLIES"]
[null,null,null,null,null,null,null,null,null,null,null,null,null,null,null,null,null,null,null,null,null,null,null,null,null,null,null,null,null,null,null,null,null,null,null,null,null,null,null,null,null,null,null,null,null,null,null,null,null,null,null,null,null,null,null,null,null,null,null,null,null,"40319","MEAT FROZEN"]
[null,null,null,null,null,null,null,null,null,null,null,null,null,null,null,null,null,null,null,null,null,null,null,null,null,null,null,null,null,null,null,null,null,null,null,null,null,null,null,null,null,null,null,null,null,null,null,null,null,null,null,null,null,null,null,null,null,null,null,null,null,"40368","PKGED MEAT COS SUPL"]
[null,null,null,null,null,null,null,null,null,null,null,null,null,null,null,null,null,null,null,null,null,null,null,null,null,null,null,null,null,null,null,null,null,null,null,null,null,null,null,null,null,null,null,null,null,null,null,null,null,null,null,null,null,null,null,null,null,null,null,null,null,"40399","MEAT"]
[null,null,null,null,null,null,null,null,null,null,null,null,null,null,null,null,null,null,null,null,null,null,null,null,null,null,null,null,null,null,null,null,null,null,null,null,null,null,null,null,null,null,null,null,null,null,null,null,null,null,null,null,null,null,null,null,null,null,null,null,null,"40415","DELI COS SUPL INV"]
[null,null,null,null,null,null,null,null,null,null,null,null,null,null,null,null,null,null,null,null,null,null,null,null,null,null,null,null,null,null,null,null,null,null,null,null,null,null,null,null,null,null,null,null,null,null,null,null,null,null,null,null,null,null,null,null,null,null,null,null,null,"40419","DELI FROZEN"]
[null,null,null,null,null,null,null,null,null,null,null,null,null,null,null,null,null,null,null,null,null,null,null,null,null,null,null,null,null,null,null,null,null,null,null,null,null,null,null,null,null,null,null,null,null,null,null,null,null,null,null,null,null,null,null,null,null,null,null,null,null,"40429","DELI FROZN SPECIALTY"]
[null,null,null,null,null,null,null,null,null,null,null,null,null,null,null,null,null,null,null,null,null,null,null,null,null,null,null,null,null,null,null,null,null,null,null,null,null,null,null,null,null,null,null,null,null,null,null,null,null,null,null,null,null,null,null,null,null,null,null,null,null,"40450","BAKERY"]
[null,null,null,null,null,null,null,null,null,null,null,null,null,null,null,null,null,null,null,null,null,null,null,null,null,null,null,null,null,null,null,null,null,null,null,null,null,null,null,null,null,null,null,null,null,null,null,null,null,null,null,null,null,null,null,null,null,null,null,null,null,"40465","BAKERY COS SUPPLIES"]
[null,null,null,null,null,null,null,null,null,null,null,null,null,null,null,null,null,null,null,null,null,null,null,null,null,null,null,null,null,null,null,null,null,null,null,null,null,null,null,null,null,null,null,null,null,null,null,null,null,null,null,null,null,null,null,null,null,null,null,null,null,"40469","BAKERY FROZEN"]
[null,null,null,null,null,null,null,null,null,null,null,null,null,null,null,null,null,null,null,null,null,null,null,null,null,null,null,null,null,null,null,null,null,null,null,null,null,null,null,null,null,null,null,null,null,null,null,null,null,null,null,null,null,null,null,null,null,null,null,null,null,"40479","BAKERY FRZN SPECALTY"]
[null,null,null,null,null,null,null,null,null,null,null,null,null,null,null,null,null,null,null,null,null,null,null,null,null,null,null,null,null,null,null,null,null,null,null,null,null,null,null,null,null,null,null,null,null,null,null,null,null,null,null,null,null,null,null,null,null,null,null,null,null,"40499","DELI"]
[null,null,null,null,null,null,null,null,null,null,null,null,null,null,null,null,null,null,null,null,null,null,null,null,null,null,null,null,null,null,null,null,null,null,null,null,null,null,null,null,null,null,null,null,null,null,null,null,null,null,null,null,null,null,null,null,null,null,null,null,null,"40515","SEAFOOD COS SUPPLIES"]
[null,null,null,null,null,null,null,null,null,null,null,null,null,null,null,null,null,null,null,null,null,null,null,null,null,null,null,null,null,null,null,null,null,null,null,null,null,null,null,null,null,null,null,null,null,null,null,null,null,null,null,null,null,null,null,null,null,null,null,null,null,"40519","SEAFOOD FROZEN"]
[null,null,null,null,null,null,null,null,null,null,null,null,null,null,null,null,null,null,null,null,null,null,null,null,null,null,null,null,null,null,null,null,null,null,null,null,null,null,null,null,null,null,null,null,null,null,null,null,null,null,null,null,null,null,null,null,null,null,null,null,null,"40599","SEAFOOD"]
[null,null,null,null,null,null,null,null,null,null,null,null,null,null,null,null,null,null,null,null,null,null,null,null,null,null,null,null,null,null,null,null,null,null,null,null,null,null,null,null,null,null,null,null,null,null,null,null,null,null,null,null,null,null,null,null,null,null,null,null,null,"41125","MEAT EXP SUPPLIES"]
[null,null,null,null,null,null,null,null,null,null,null,null,null,null,null,null,null,null,null,null,null,null,null,null,null,null,null,null,null,null,null,null,null,null,null,null,null,null,null,null,null,null,null,null,null,null,null,null,null,null,null,null,null,null,null,null,null,null,null,null,null,"41140","MEAT SECURITY LABELS"]
[null,null,null,null,null,null,null,null,null,null,null,null,null,null,null,null,null,null,null,null,null,null,null,null,null,null,null,null,null,null,null,null,null,null,null,null,null,null,null,null,null,null,null,null,null,null,null,null,null,null,null,null,null,null,null,null,null,null,null,null,null,"41141","MEAT PKGING/LABELS"]
[null,null,null,null,null,null,null,null,null,null,null,null,null,null,null,null,null,null,null,null,null,null,null,null,null,null,null,null,null,null,null,null,null,null,null,null,null,null,null,null,null,null,null,null,null,null,null,null,null,null,null,null,null,null,null,null,null,null,null,null,null,"41142","MEAT FILM/CELLOPHN"]
[null,null,null,null,null,null,null,null,null,null,null,null,null,null,null,null,null,null,null,null,null,null,null,null,null,null,null,null,null,null,null,null,null,null,null,null,null,null,null,null,null,null,null,null,null,null,null,null,null,null,null,null,null,null,null,null,null,null,null,null,null,"41143","MEAT POP SUPPLIES"]
[null,null,null,null,null,null,null,null,null,null,null,null,null,null,null,null,null,null,null,null,null,null,null,null,null,null,null,null,null,null,null,null,null,null,null,null,null,null,null,null,null,null,null,null,null,null,null,null,null,null,null,null,null,null,null,null,null,null,null,null,null,"41144","MEAT CLEANG SUPPLIES"]
[null,null,null,null,null,null,null,null,null,null,null,null,null,null,null,null,null,null,null,null,null,null,null,null,null,null,null,null,null,null,null,null,null,null,null,null,null,null,null,null,null,null,null,null,null,null,null,null,null,null,null,null,null,null,null,null,null,null,null,null,null,"41145","MEAT PREP SUPPLIES"]
[null,null,null,null,null,null,null,null,null,null,null,null,null,null,null,null,null,null,null,null,null,null,null,null,null,null,null,null,null,null,null,null,null,null,null,null,null,null,null,null,null,null,null,null,null,null,null,null,null,null,null,null,null,null,null,null,null,null,null,null,null,"41517","DELI COS SUPPLIES"]
[null,null,null,null,null,null,null,null,null,null,null,null,null,null,null,null,null,null,null,null,null,null,null,null,null,null,null,null,null,null,null,null,null,null,null,null,null,null,null,null,null,null,null,null,null,null,null,null,null,null,null,null,null,null,null,null,null,null,null,null,null,"41524","BAKERY SUPPLIES"]
[null,null,null,null,null,null,null,null,null,null,null,null,null,null,null,null,null,null,null,null,null,null,null,null,null,null,null,null,null,null,null,null,null,null,null,null,null,null,null,null,null,null,null,null,null,null,null,null,null,null,null,null,null,null,null,null,null,null,null,null,null,"41525","DELI EXP SUPPLIES"]
[null,null,null,null,null,null,null,null,null,null,null,null,null,null,null,null,null,null,null,null,null,null,null,null,null,null,null,null,null,null,null,null,null,null,null,null,null,null,null,null,null,null,null,null,null,null,null,null,null,null,null,null,null,null,null,null,null,null,null,null,null,"41540","DELI SECURITY LABELS"]
[null,null,null,null,null,null,null,null,null,null,null,null,null,null,null,null,null,null,null,null,null,null,null,null,null,null,null,null,null,null,null,null,null,null,null,null,null,null,null,null,null,null,null,null,null,null,null,null,null,null,null,null,null,null,null,null,null,null,null,null,null,"41541","DELI PKGING/LABELS"]
[null,null,null,null,null,null,null,null,null,null,null,null,null,null,null,null,null,null,null,null,null,null,null,null,null,null,null,null,null,null,null,null,null,null,null,null,null,null,null,null,null,null,null,null,null,null,null,null,null,null,null,null,null,null,null,null,null,null,null,null,null,"41542","DELI FILM/CELLOPHN"]
[null,null,null,null,null,null,null,null,null,null,null,null,null,null,null,null,null,null,null,null,null,null,null,null,null,null,null,null,null,null,null,null,null,null,null,null,null,null,null,null,null,null,null,null,null,null,null,null,null,null,null,null,null,null,null,null,null,null,null,null,null,"41543","DELI POP SUPPLIES"]
[null,null,null,null,null,null,null,null,null,null,null,null,null,null,null,null,null,null,null,null,null,null,null,null,null,null,null,null,null,null,null,null,null,null,null,null,null,null,null,null,null,null,null,null,null,null,null,null,null,null,null,null,null,null,null,null,null,null,null,null,null,"41544","DELI BAGS"]
[null,null,null,null,null,null,null,null,null,null,null,null,null,null,null,null,null,null,null,null,null,null,null,null,null,null,null,null,null,null,null,null,null,null,null,null,null,null,null,null,null,null,null,null,null,null,null,null,null,null,null,null,null,null,null,null,null,null,null,null,null,"41545","DELI CLEANG SUPPLIES"]
[null,null,null,null,null,null,null,null,null,null,null,null,null,null,null,null,null,null,null,null,null,null,null,null,null,null,null,null,null,null,null,null,null,null,null,null,null,null,null,null,null,null,null,null,null,null,null,null,null,null,null,null,null,null,null,null,null,null,null,null,null,"41546","DELI TRNING MTRL"]
[null,null,null,null,null,null,null,null,null,null,null,null,null,null,null,null,null,null,null,null,null,null,null,null,null,null,null,null,null,null,null,null,null,null,null,null,null,null,null,null,null,null,null,null,null,null,null,null,null,null,null,null,null,null,null,null,null,null,null,null,null,"41547","DELI UNIFORMS"]
[null,null,null,null,null,null,null,null,null,null,null,null,null,null,null,null,null,null,null,null,null,null,null,null,null,null,null,null,null,null,null,null,null,null,null,null,null,null,null,null,null,null,null,null,null,null,null,null,null,null,null,null,null,null,null,null,null,null,null,null,null,"41553","BAKERY SECURITY LBLS"]
[null,null,null,null,null,null,null,null,null,null,null,null,null,null,null,null,null,null,null,null,null,null,null,null,null,null,null,null,null,null,null,null,null,null,null,null,null,null,null,null,null,null,null,null,null,null,null,null,null,null,null,null,null,null,null,null,null,null,null,null,null,"41554","BAKERY PKGNG/LABELS"]
[null,null,null,null,null,null,null,null,null,null,null,null,null,null,null,null,null,null,null,null,null,null,null,null,null,null,null,null,null,null,null,null,null,null,null,null,null,null,null,null,null,null,null,null,null,null,null,null,null,null,null,null,null,null,null,null,null,null,null,null,null,"41555","BAKERY FILM/CELLOPHN"]
[null,null,null,null,null,null,null,null,null,null,null,null,null,null,null,null,null,null,null,null,null,null,null,null,null,null,null,null,null,null,null,null,null,null,null,null,null,null,null,null,null,null,null,null,null,null,null,null,null,null,null,null,null,null,null,null,null,null,null,null,null,"41556","BAKERY POP SUPPLIES"]
[null,null,null,null,null,null,null,null,null,null,null,null,null,null,null,null,null,null,null,null,null,null,null,null,null,null,null,null,null,null,null,null,null,null,null,null,null,null,null,null,null,null,null,null,null,null,null,null,null,null,null,null,null,null,null,null,null,null,null,null,null,"41557","BAKERY BAGS"]
[null,null,null,null,null,null,null,null,null,null,null,null,null,null,null,null,null,null,null,null,null,null,null,null,null,null,null,null,null,null,null,null,null,null,null,null,null,null,null,null,null,null,null,null,null,null,null,null,null,null,null,null,null,null,null,null,null,null,null,null,null,"41558","BAKERY CLNING SUPL"]
[null,null,null,null,null,null,null,null,null,null,null,null,null,null,null,null,null,null,null,null,null,null,null,null,null,null,null,null,null,null,null,null,null,null,null,null,null,null,null,null,null,null,null,null,null,null,null,null,null,null,null,null,null,null,null,null,null,null,null,null,null,"41559","BAKERY TRNING SUPL"]
[null,null,null,null,null,null,null,null,null,null,null,null,null,null,null,null,null,null,null,null,null,null,null,null,null,null,null,null,null,null,null,null,null,null,null,null,null,null,null,null,null,null,null,null,null,null,null,null,null,null,null,null,null,null,null,null,null,null,null,null,null,"41560","BAKERY UNIFORMS"]
[null,null,null,null,null,null,null,null,null,null,null,null,null,null,null,null,null,null,null,null,null,null,null,null,null,null,null,null,null,null,null,null,null,null,null,null,null,null,null,null,null,null,null,null,null,null,null,null,null,null,null,null,null,null,null,null,null,null,null,null,null,"41561","BAKERY COS SUPPLIES"]
[null,null,null,null,null,null,null,null,null,null,null,null,null,null,null,null,null,null,null,null,null,null,null,null,null,null,null,null,null,null,null,null,null,null,null,null,null,null,null,null,null,null,null,null,null,null,null,null,null,null,null,null,null,null,null,null,null,null,null,null,null,"41562","BAKERY EXP SUPPLIES"]
[null,null,null,null,null,null,null,null,null,null,null,null,null,null,null,null,null,null,null,null,null,null,null,null,null,null,null,null,null,null,null,null,null,null,null,null,null,null,null,null,null,null,null,null,null,null,null,null,null,null,null,null,null,null,null,null,null,null,null,null,null,"41625","SEAFOOD EXP SUPPLIES"]
[null,null,null,null,null,null,null,null,null,null,null,null,null,null,null,null,null,null,null,null,null,null,null,null,null,null,null,null,null,null,null,null,null,null,null,null,null,null,null,null,null,null,null,null,null,null,null,null,null,null,null,null,null,null,null,null,null,null,null,null,null,"41640","SEAFD SECRTY LABELS"]
[null,null,null,null,null,null,null,null,null,null,null,null,null,null,null,null,null,null,null,null,null,null,null,null,null,null,null,null,null,null,null,null,null,null,null,null,null,null,null,null,null,null,null,null,null,null,null,null,null,null,null,null,null,null,null,null,null,null,null,null,null,"41641","SEAFD PKGNG/LABELS"]
[null,null,null,null,null,null,null,null,null,null,null,null,null,null,null,null,null,null,null,null,null,null,null,null,null,null,null,null,null,null,null,null,null,null,null,null,null,null,null,null,null,null,null,null,null,null,null,null,null,null,null,null,null,null,null,null,null,null,null,null,null,"41642","SEAFD FILM/CELLOPHN"]
[null,null,null,null,null,null,null,null,null,null,null,null,null,null,null,null,null,null,null,null,null,null,null,null,null,null,null,null,null,null,null,null,null,null,null,null,null,null,null,null,null,null,null,null,null,null,null,null,null,null,null,null,null,null,null,null,null,null,null,null,null,"41643","SEAFD POP SUPPLIES"]
[null,null,null,null,null,null,null,null,null,null,null,null,null,null,null,null,null,null,null,null,null,null,null,null,null,null,null,null,null,null,null,null,null,null,null,null,null,null,null,null,null,null,null,null,null,null,null,null,null,null,null,null,null,null,null,null,null,null,null,null,null,"41644","SEAFOOD BAGS"]
[null,null,null,null,null,null,null,null,null,null,null,null,null,null,null,null,null,null,null,null,null,null,null,null,null,null,null,null,null,null,null,null,null,null,null,null,null,null,null,null,null,null,null,null,null,null,null,null,null,null,null,null,null,null,null,null,null,null,null,null,null,"41645","SEAFD CLNING SUPPLIES"]
[null,null,null,null,null,null,null,null,null,null,null,null,null,null,null,null,null,null,null,null,null,null,null,null,null,null,null,null,null,null,null,null,null,null,null,null,null,null,null,null,null,null,null,null,null,null,null,null,null,null,null,null,null,null,null,null,null,null,null,null,null,"41646","SEAFD TRNING SUPPLIES"]
[null,null,null,null,null,null,null,null,null,null,null,null,null,null,null,null,null,null,null,null,null,null,null,null,null,null,null,null,null,null,null,null,null,null,null,null,null,null,null,null,null,null,null,null,null,null,null,null,null,null,null,null,null,null,null,null,null,null,null,null,null,"41647","SEAFOOD UNIFORMS"]
[null,null,null,null,null,null,null,null,null,null,null,null,null,null,null,null,null,null,null,null,null,null,null,null,null,null,null,null,null,null,null,null,null,null,null,null,null,null,null,null,null,null,null,null,null,null,null,null,null,null,null,null,null,null,null,null,null,null,null,null,null,"50103","TOBACCO"]
[null,null,null,null,null,null,null,null,null,null,null,null,null,null,null,null,null,null,null,null,null,null,null,null,null,null,null,null,null,null,null,null,null,null,null,null,null,null,null,null,null,null,null,null,null,null,null,null,null,null,null,null,null,null,null,null,null,null,null,null,null,"50160","PHOTO LAB"]
[null,null,null,null,null,null,null,null,null,null,null,null,null,null,null,null,null,null,null,null,null,null,null,null,null,null,null,null,null,null,null,null,null,null,null,null,null,null,null,null,null,null,null,null,null,null,null,null,null,null,null,null,null,null,null,null,null,null,null,null,null,"50199","GROCERY"]
[null,null,null,null,null,null,null,null,null,null,null,null,null,null,null,null,null,null,null,null,null,null,null,null,null,null,null,null,null,null,null,null,null,null,null,null,null,null,null,null,null,null,null,null,null,null,null,null,null,null,null,null,null,null,null,null,null,null,null,null,null,"50240","FLORAL"]
[null,null,null,null,null,null,null,null,null,null,null,null,null,null,null,null,null,null,null,null,null,null,null,null,null,null,null,null,null,null,null,null,null,null,null,null,null,null,null,null,null,null,null,null,null,null,null,null,null,null,null,null,null,null,null,null,null,null,null,null,null,"50399","MEAT"]
[null,null,null,null,null,null,null,null,null,null,null,null,null,null,null,null,null,null,null,null,null,null,null,null,null,null,null,null,null,null,null,null,null,null,null,null,null,null,null,null,null,null,null,null,null,null,null,null,null,null,null,null,null,null,null,null,null,null,null,null,null,"50499","DELI"]
[null,null,null,null,null,null,null,null,null,null,null,null,null,null,null,null,null,null,null,null,null,null,null,null,null,null,null,null,null,null,null,null,null,null,null,null,null,null,null,null,null,null,null,null,null,null,null,null,null,null,null,null,null,null,null,null,null,null,null,null,null,"50803","DRUGS"]
[null,null,null,null,null,null,null,null,null,null,null,null,null,null,null,null,null,null,null,null,null,null,null,null,null,null,null,null,null,null,null,null,null,null,null,null,null,null,null,null,null,null,null,null,null,null,null,null,null,null,null,null,null,null,null,null,null,null,null,null,null,"50804","HOUSEWARES"]
[null,null,null,null,null,null,null,null,null,null,null,null,null,null,null,null,null,null,null,null,null,null,null,null,null,null,null,null,null,null,null,null,null,null,null,null,null,null,null,null,null,null,null,null,null,null,null,null,null,null,null,null,null,null,null,null,null,null,null,null,null,"50839","CONTINUITIES"]
[null,null,null,null,null,null,null,null,null,null,null,null,null,null,null,null,null,null,null,null,null,null,null,null,null,null,null,null,null,null,null,null,null,null,null,null,null,null,null,null,null,null,null,null,null,null,null,null,null,null,null,null,null,null,null,null,null,null,null,null,null,"50845","SEASONAL"]
[null,null,null,null,null,null,null,null,null,null,null,null,null,null,null,null,null,null,null,null,null,null,null,null,null,null,null,null,null,null,null,null,null,null,null,null,null,null,null,null,null,null,null,null,null,null,null,null,null,null,null,null,null,null,null,null,null,null,null,null,null,"50846","SPECIAL CORR"]
[null,null,null,null,null,null,null,null,null,null,null,null,null,null,null,null,null,null,null,null,null,null,null,null,null,null,null,null,null,null,null,null,null,null,null,null,null,null,null,null,null,null,null,null,null,null,null,null,null,null,null,null,null,null,null,null,null,null,null,null,null,"50847","PHOTO LAB SPEC SHIPM"]
[null,null,null,null,null,null,null,null,null,null,null,null,null,null,null,null,null,null,null,null,null,null,null,null,null,null,null,null,null,null,null,null,null,null,null,null,null,null,null,null,null,null,null,null,null,null,null,null,null,null,null,null,null,null,null,null,null,null,null,null,null,"50860","PHOTO LAB"]
[null,null,null,null,null,null,null,null,null,null,null,null,null,null,null,null,null,null,null,null,null,null,null,null,null,null,null,null,null,null,null,null,null,null,null,null,null,null,null,null,null,null,null,null,null,null,null,null,null,null,null,null,null,null,null,null,null,null,null,null,null,"50865","PHOTO LAB COS SUPPL"]
[null,null,null,null,null,null,null,null,null,null,null,null,null,null,null,null,null,null,null,null,null,null,null,null,null,null,null,null,null,null,null,null,null,null,null,null,null,null,null,null,null,null,null,null,null,null,null,null,null,null,null,null,null,null,null,null,null,null,null,null,null,"50870","DRUGS PROMO"]
[null,null,null,null,null,null,null,null,null,null,null,null,null,null,null,null,null,null,null,null,null,null,null,null,null,null,null,null,null,null,null,null,null,null,null,null,null,null,null,null,null,null,null,null,null,null,null,null,null,null,null,null,null,null,null,null,null,null,null,null,null,"50871","HOUSEWARES PROMO"]
[null,null,null,null,null,null,null,null,null,null,null,null,null,null,null,null,null,null,null,null,null,null,null,null,null,null,null,null,null,null,null,null,null,null,null,null,null,null,null,null,null,null,null,null,null,null,null,null,null,null,null,null,null,null,null,null,null,null,null,null,null,"50899","PHARM NON-RX"]
[null,null,null,null,null,null,null,null,null,null,null,null,null,null,null,null,null,null,null,null,null,null,null,null,null,null,null,null,null,null,null,null,null,null,null,null,null,null,null,null,null,null,null,null,null,null,null,null,null,null,null,null,null,null,null,null,null,null,null,null,null,"50999","PHARM GMD-RX"]
[null,null,null,null,null,null,null,null,null,null,null,null,null,null,null,null,null,null,null,null,null,null,null,null,null,null,null,null,null,null,null,null,null,null,null,null,null,null,null,null,null,null,null,null,null,null,null,null,null,null,null,null,null,null,null,null,null,null,null,null,null,"51016","MELN BAR COS SUPPL"]
[null,null,null,null,null,null,null,null,null,null,null,null,null,null,null,null,null,null,null,null,null,null,null,null,null,null,null,null,null,null,null,null,null,null,null,null,null,null,null,null,null,null,null,null,null,null,null,null,null,null,null,null,null,null,null,null,null,null,null,null,null,"51023","PHOTO LAB COS SUPL"]
[null,null,null,null,null,null,null,null,null,null,null,null,null,null,null,null,null,null,null,null,null,null,null,null,null,null,null,null,null,null,null,null,null,null,null,null,null,null,null,null,null,null,null,null,null,null,null,null,null,null,null,null,null,null,null,null,null,null,null,null,null,"51024","PHOTO SUPPLIES"]
[null,null,null,null,null,null,null,null,null,null,null,null,null,null,null,null,null,null,null,null,null,null,null,null,null,null,null,null,null,null,null,null,null,null,null,null,null,null,null,null,null,null,null,null,null,null,null,null,null,null,null,null,null,null,null,null,null,null,null,null,null,"51025","GROC EXP SUPPLIES"]
[null,null,null,null,null,null,null,null,null,null,null,null,null,null,null,null,null,null,null,null,null,null,null,null,null,null,null,null,null,null,null,null,null,null,null,null,null,null,null,null,null,null,null,null,null,null,null,null,null,null,null,null,null,null,null,null,null,null,null,null,null,"51028","RX COS SUPPLIES"]
[null,null,null,null,null,null,null,null,null,null,null,null,null,null,null,null,null,null,null,null,null,null,null,null,null,null,null,null,null,null,null,null,null,null,null,null,null,null,null,null,null,null,null,null,null,null,null,null,null,null,null,null,null,null,null,null,null,null,null,null,null,"51029","GM EXP SUPPLIES"]
[null,null,null,null,null,null,null,null,null,null,null,null,null,null,null,null,null,null,null,null,null,null,null,null,null,null,null,null,null,null,null,null,null,null,null,null,null,null,null,null,null,null,null,null,null,null,null,null,null,null,null,null,null,null,null,null,null,null,null,null,null,"51040","GROC PPR/PLST BAGS"]
[null,null,null,null,null,null,null,null,null,null,null,null,null,null,null,null,null,null,null,null,null,null,null,null,null,null,null,null,null,null,null,null,null,null,null,null,null,null,null,null,null,null,null,null,null,null,null,null,null,null,null,null,null,null,null,null,null,null,null,null,null,"51041","GROC CLEANG SUPPLIES"]
[null,null,null,null,null,null,null,null,null,null,null,null,null,null,null,null,null,null,null,null,null,null,null,null,null,null,null,null,null,null,null,null,null,null,null,null,null,null,null,null,null,null,null,null,null,null,null,null,null,null,null,null,null,null,null,null,null,null,null,null,null,"51042","GROC COMPTR SUPPL"]
[null,null,null,null,null,null,null,null,null,null,null,null,null,null,null,null,null,null,null,null,null,null,null,null,null,null,null,null,null,null,null,null,null,null,null,null,null,null,null,null,null,null,null,null,null,null,null,null,null,null,null,null,null,null,null,null,null,null,null,null,null,"51043","GROC SECURITY LBLS"]
[null,null,null,null,null,null,null,null,null,null,null,null,null,null,null,null,null,null,null,null,null,null,null,null,null,null,null,null,null,null,null,null,null,null,null,null,null,null,null,null,null,null,null,null,null,null,null,null,null,null,null,null,null,null,null,null,null,null,null,null,null,"51044","GROC ATM/EFT SUPPL"]
[null,null,null,null,null,null,null,null,null,null,null,null,null,null,null,null,null,null,null,null,null,null,null,null,null,null,null,null,null,null,null,null,null,null,null,null,null,null,null,null,null,null,null,null,null,null,null,null,null,null,null,null,null,null,null,null,null,null,null,null,null,"51045","GROC PKGNG/LABELS"]
[null,null,null,null,null,null,null,null,null,null,null,null,null,null,null,null,null,null,null,null,null,null,null,null,null,null,null,null,null,null,null,null,null,null,null,null,null,null,null,null,null,null,null,null,null,null,null,null,null,null,null,null,null,null,null,null,null,null,null,null,null,"51046","GROC POP SUPPLIES"]
[null,null,null,null,null,null,null,null,null,null,null,null,null,null,null,null,null,null,null,null,null,null,null,null,null,null,null,null,null,null,null,null,null,null,null,null,null,null,null,null,null,null,null,null,null,null,null,null,null,null,null,null,null,null,null,null,null,null,null,null,null,"51047","GROC UNIFORMS"]
[null,null,null,null,null,null,null,null,null,null,null,null,null,null,null,null,null,null,null,null,null,null,null,null,null,null,null,null,null,null,null,null,null,null,null,null,null,null,null,null,null,null,null,null,null,null,null,null,null,null,null,null,null,null,null,null,null,null,null,null,null,"51048","GROC FLOORCARE"]
[null,null,null,null,null,null,null,null,null,null,null,null,null,null,null,null,null,null,null,null,null,null,null,null,null,null,null,null,null,null,null,null,null,null,null,null,null,null,null,null,null,null,null,null,null,null,null,null,null,null,null,null,null,null,null,null,null,null,null,null,null,"51049","ALL DEPT SUPPLIES"]
[null,null,null,null,null,null,null,null,null,null,null,null,null,null,null,null,null,null,null,null,null,null,null,null,null,null,null,null,null,null,null,null,null,null,null,null,null,null,null,null,null,null,null,null,null,null,null,null,null,null,null,null,null,null,null,null,null,null,null,null,null,"51050","ALL DEPT COS SUPPLIES"]
[null,null,null,null,null,null,null,null,null,null,null,null,null,null,null,null,null,null,null,null,null,null,null,null,null,null,null,null,null,null,null,null,null,null,null,null,null,null,null,null,null,null,null,null,null,null,null,null,null,null,null,null,null,null,null,null,null,null,null,null,null,"51051","ALL DEPT CLNING SUPPL"]
[null,null,null,null,null,null,null,null,null,null,null,null,null,null,null,null,null,null,null,null,null,null,null,null,null,null,null,null,null,null,null,null,null,null,null,null,null,null,null,null,null,null,null,null,null,null,null,null,null,null,null,null,null,null,null,null,null,null,null,null,null,"51052","ALL DEPT PKGNG/LBLS"]
[null,null,null,null,null,null,null,null,null,null,null,null,null,null,null,null,null,null,null,null,null,null,null,null,null,null,null,null,null,null,null,null,null,null,null,null,null,null,null,null,null,null,null,null,null,null,null,null,null,null,null,null,null,null,null,null,null,null,null,null,null,"51053","ALL DEPT FLOORCARE"]
[null,null,null,null,null,null,null,null,null,null,null,null,null,null,null,null,null,null,null,null,null,null,null,null,null,null,null,null,null,null,null,null,null,null,null,null,null,null,null,null,null,null,null,null,null,null,null,null,null,null,null,null,null,null,null,null,null,null,null,null,null,"51065","GM SECURITY LABELS"]
[null,null,null,null,null,null,null,null,null,null,null,null,null,null,null,null,null,null,null,null,null,null,null,null,null,null,null,null,null,null,null,null,null,null,null,null,null,null,null,null,null,null,null,null,null,null,null,null,null,null,null,null,null,null,null,null,null,null,null,null,null,"51066","PHOTO PKGNG/LBLS"]
[null,null,null,null,null,null,null,null,null,null,null,null,null,null,null,null,null,null,null,null,null,null,null,null,null,null,null,null,null,null,null,null,null,null,null,null,null,null,null,null,null,null,null,null,null,null,null,null,null,null,null,null,null,null,null,null,null,null,null,null,null,"51075","PHARM SECURITY LBLS"]
[null,null,null,null,null,null,null,null,null,null,null,null,null,null,null,null,null,null,null,null,null,null,null,null,null,null,null,null,null,null,null,null,null,null,null,null,null,null,null,null,null,null,null,null,null,null,null,null,null,null,null,null,null,null,null,null,null,null,null,null,null,"51076","PHARM PKGNG/LABELS"]
[null,null,null,null,null,null,null,null,null,null,null,null,null,null,null,null,null,null,null,null,null,null,null,null,null,null,null,null,null,null,null,null,null,null,null,null,null,null,null,null,null,null,null,null,null,null,null,null,null,null,null,null,null,null,null,null,null,null,null,null,null,"51077","PHARM SUPPLIES"]
[null,null,null,null,null,null,null,null,null,null,null,null,null,null,null,null,null,null,null,null,null,null,null,null,null,null,null,null,null,null,null,null,null,null,null,null,null,null,null,null,null,null,null,null,null,null,null,null,null,null,null,null,null,null,null,null,null,null,null,null,null,"51078","PHARM UNIFORMS"]
[null,null,null,null,null,null,null,null,null,null,null,null,null,null,null,null,null,null,null,null,null,null,null,null,null,null,null,null,null,null,null,null,null,null,null,null,null,null,null,null,null,null,null,null,null,null,null,null,null,null,null,null,null,null,null,null,null,null,null,null,null,"51098","MISC FEES"]
[null,null,null,null,null,null,null,null,null,null,null,null,null,null,null,null,null,null,null,null,null,null,null,null,null,null,null,null,null,null,null,null,null,null,null,null,null,null,null,null,null,null,null,null,null,null,null,null,null,null,null,null,null,null,null,null,null,null,null,null,null,"51116","MEAT COS SUPPLIES"]
[null,null,null,null,null,null,null,null,null,null,null,null,null,null,null,null,null,null,null,null,null,null,null,null,null,null,null,null,null,null,null,null,null,null,null,null,null,null,null,null,null,null,null,null,null,null,null,null,null,null,null,null,null,null,null,null,null,null,null,null,null,"51125","MEAT EXP SUPPLIES"]
[null,null,null,null,null,null,null,null,null,null,null,null,null,null,null,null,null,null,null,null,null,null,null,null,null,null,null,null,null,null,null,null,null,null,null,null,null,null,null,null,null,null,null,null,null,null,null,null,null,null,null,null,null,null,null,null,null,null,null,null,null,"51140","MEAT SECURITY LABELS"]
[null,null,null,null,null,null,null,null,null,null,null,null,null,null,null,null,null,null,null,null,null,null,null,null,null,null,null,null,null,null,null,null,null,null,null,null,null,null,null,null,null,null,null,null,null,null,null,null,null,null,null,null,null,null,null,null,null,null,null,null,null,"51141","MEAT PKGING/LABELS"]
[null,null,null,null,null,null,null,null,null,null,null,null,null,null,null,null,null,null,null,null,null,null,null,null,null,null,null,null,null,null,null,null,null,null,null,null,null,null,null,null,null,null,null,null,null,null,null,null,null,null,null,null,null,null,null,null,null,null,null,null,null,"51142","MEAT FILM/CELLOPHN"]
[null,null,null,null,null,null,null,null,null,null,null,null,null,null,null,null,null,null,null,null,null,null,null,null,null,null,null,null,null,null,null,null,null,null,null,null,null,null,null,null,null,null,null,null,null,null,null,null,null,null,null,null,null,null,null,null,null,null,null,null,null,"51143","MEAT POP SUPPLIES"]
[null,null,null,null,null,null,null,null,null,null,null,null,null,null,null,null,null,null,null,null,null,null,null,null,null,null,null,null,null,null,null,null,null,null,null,null,null,null,null,null,null,null,null,null,null,null,null,null,null,null,null,null,null,null,null,null,null,null,null,null,null,"51144","MEAT CLNING SUPPLIES"]
[null,null,null,null,null,null,null,null,null,null,null,null,null,null,null,null,null,null,null,null,null,null,null,null,null,null,null,null,null,null,null,null,null,null,null,null,null,null,null,null,null,null,null,null,null,null,null,null,null,null,null,null,null,null,null,null,null,null,null,null,null,"51145","MEAT PREP SUPPLIES"]
[null,null,null,null,null,null,null,null,null,null,null,null,null,null,null,null,null,null,null,null,null,null,null,null,null,null,null,null,null,null,null,null,null,null,null,null,null,null,null,null,null,null,null,null,null,null,null,null,null,null,null,null,null,null,null,null,null,null,null,null,null,"51146","MT/SFD/DL/BK SUPPL"]
[null,null,null,null,null,null,null,null,null,null,null,null,null,null,null,null,null,null,null,null,null,null,null,null,null,null,null,null,null,null,null,null,null,null,null,null,null,null,null,null,null,null,null,null,null,null,null,null,null,null,null,null,null,null,null,null,null,null,null,null,null,"51147","MT/SFD/DL/BK COS SUP"]
[null,null,null,null,null,null,null,null,null,null,null,null,null,null,null,null,null,null,null,null,null,null,null,null,null,null,null,null,null,null,null,null,null,null,null,null,null,null,null,null,null,null,null,null,null,null,null,null,null,null,null,null,null,null,null,null,null,null,null,null,null,"51148","MEAT SEAFD SUPPLIES"]
[null,null,null,null,null,null,null,null,null,null,null,null,null,null,null,null,null,null,null,null,null,null,null,null,null,null,null,null,null,null,null,null,null,null,null,null,null,null,null,null,null,null,null,null,null,null,null,null,null,null,null,null,null,null,null,null,null,null,null,null,null,"51149","MEAT/SEAFD COS SUPL"]
[null,null,null,null,null,null,null,null,null,null,null,null,null,null,null,null,null,null,null,null,null,null,null,null,null,null,null,null,null,null,null,null,null,null,null,null,null,null,null,null,null,null,null,null,null,null,null,null,null,null,null,null,null,null,null,null,null,null,null,null,null,"51150","MEAT/SEAFD FLM/CELLO"]
[null,null,null,null,null,null,null,null,null,null,null,null,null,null,null,null,null,null,null,null,null,null,null,null,null,null,null,null,null,null,null,null,null,null,null,null,null,null,null,null,null,null,null,null,null,null,null,null,null,null,null,null,null,null,null,null,null,null,null,null,null,"51151","MT/SFD/DL/BK/PR CLN S"]
[null,null,null,null,null,null,null,null,null,null,null,null,null,null,null,null,null,null,null,null,null,null,null,null,null,null,null,null,null,null,null,null,null,null,null,null,null,null,null,null,null,null,null,null,null,null,null,null,null,null,null,null,null,null,null,null,null,null,null,null,null,"51152","MT/SFD/DL/BK/PR PKG/LBL "]
[null,null,null,null,null,null,null,null,null,null,null,null,null,null,null,null,null,null,null,null,null,null,null,null,null,null,null,null,null,null,null,null,null,null,null,null,null,null,null,null,null,null,null,null,null,null,null,null,null,null,null,null,null,null,null,null,null,null,null,null,null,"51153","MT/SFD/DL/BK/PR FLM/CEL"]
[null,null,null,null,null,null,null,null,null,null,null,null,null,null,null,null,null,null,null,null,null,null,null,null,null,null,null,null,null,null,null,null,null,null,null,null,null,null,null,null,null,null,null,null,null,null,null,null,null,null,null,null,null,null,null,null,null,null,null,null,null,"51154","MT/SFD/DL/BK/PR FLRCR"]
[null,null,null,null,null,null,null,null,null,null,null,null,null,null,null,null,null,null,null,null,null,null,null,null,null,null,null,null,null,null,null,null,null,null,null,null,null,null,null,null,null,null,null,null,null,null,null,null,null,null,null,null,null,null,null,null,null,null,null,null,null,"51216","PROD COS SUPPLIES"]
[null,null,null,null,null,null,null,null,null,null,null,null,null,null,null,null,null,null,null,null,null,null,null,null,null,null,null,null,null,null,null,null,null,null,null,null,null,null,null,null,null,null,null,null,null,null,null,null,null,null,null,null,null,null,null,null,null,null,null,null,null,"51223","FLRL PKGING/LABELS"]
[null,null,null,null,null,null,null,null,null,null,null,null,null,null,null,null,null,null,null,null,null,null,null,null,null,null,null,null,null,null,null,null,null,null,null,null,null,null,null,null,null,null,null,null,null,null,null,null,null,null,null,null,null,null,null,null,null,null,null,null,null,"51224","FLRL COS SUPPLIES"]
[null,null,null,null,null,null,null,null,null,null,null,null,null,null,null,null,null,null,null,null,null,null,null,null,null,null,null,null,null,null,null,null,null,null,null,null,null,null,null,null,null,null,null,null,null,null,null,null,null,null,null,null,null,null,null,null,null,null,null,null,null,"51225","PROD EXP SUPPLIES"]
[null,null,null,null,null,null,null,null,null,null,null,null,null,null,null,null,null,null,null,null,null,null,null,null,null,null,null,null,null,null,null,null,null,null,null,null,null,null,null,null,null,null,null,null,null,null,null,null,null,null,null,null,null,null,null,null,null,null,null,null,null,"51240","PROD SECRTY LABELS"]
[null,null,null,null,null,null,null,null,null,null,null,null,null,null,null,null,null,null,null,null,null,null,null,null,null,null,null,null,null,null,null,null,null,null,null,null,null,null,null,null,null,null,null,null,null,null,null,null,null,null,null,null,null,null,null,null,null,null,null,null,null,"51241","PROD PKGNG/LABELS"]
[null,null,null,null,null,null,null,null,null,null,null,null,null,null,null,null,null,null,null,null,null,null,null,null,null,null,null,null,null,null,null,null,null,null,null,null,null,null,null,null,null,null,null,null,null,null,null,null,null,null,null,null,null,null,null,null,null,null,null,null,null,"51242","PROD FILM/CELLOPHN"]
[null,null,null,null,null,null,null,null,null,null,null,null,null,null,null,null,null,null,null,null,null,null,null,null,null,null,null,null,null,null,null,null,null,null,null,null,null,null,null,null,null,null,null,null,null,null,null,null,null,null,null,null,null,null,null,null,null,null,null,null,null,"51243","PROD POP SUPPLIES"]
[null,null,null,null,null,null,null,null,null,null,null,null,null,null,null,null,null,null,null,null,null,null,null,null,null,null,null,null,null,null,null,null,null,null,null,null,null,null,null,null,null,null,null,null,null,null,null,null,null,null,null,null,null,null,null,null,null,null,null,null,null,"51244","PROD BAGS"]
[null,null,null,null,null,null,null,null,null,null,null,null,null,null,null,null,null,null,null,null,null,null,null,null,null,null,null,null,null,null,null,null,null,null,null,null,null,null,null,null,null,null,null,null,null,null,null,null,null,null,null,null,null,null,null,null,null,null,null,null,null,"51245","PROD CLEANG SUPPLS"]
[null,null,null,null,null,null,null,null,null,null,null,null,null,null,null,null,null,null,null,null,null,null,null,null,null,null,null,null,null,null,null,null,null,null,null,null,null,null,null,null,null,null,null,null,null,null,null,null,null,null,null,null,null,null,null,null,null,null,null,null,null,"51246","PROD TRNING SUPPLIES"]
[null,null,null,null,null,null,null,null,null,null,null,null,null,null,null,null,null,null,null,null,null,null,null,null,null,null,null,null,null,null,null,null,null,null,null,null,null,null,null,null,null,null,null,null,null,null,null,null,null,null,null,null,null,null,null,null,null,null,null,null,null,"51247","PROD UNIFORMS"]
[null,null,null,null,null,null,null,null,null,null,null,null,null,null,null,null,null,null,null,null,null,null,null,null,null,null,null,null,null,null,null,null,null,null,null,null,null,null,null,null,null,null,null,null,null,null,null,null,null,null,null,null,null,null,null,null,null,null,null,null,null,"51248","PROD/MT SUPPLIES"]
[null,null,null,null,null,null,null,null,null,null,null,null,null,null,null,null,null,null,null,null,null,null,null,null,null,null,null,null,null,null,null,null,null,null,null,null,null,null,null,null,null,null,null,null,null,null,null,null,null,null,null,null,null,null,null,null,null,null,null,null,null,"51249","PROD/MT COS SUPPLIES"]
[null,null,null,null,null,null,null,null,null,null,null,null,null,null,null,null,null,null,null,null,null,null,null,null,null,null,null,null,null,null,null,null,null,null,null,null,null,null,null,null,null,null,null,null,null,null,null,null,null,null,null,null,null,null,null,null,null,null,null,null,null,"51250","FLORAL SUPPLIES"]
[null,null,null,null,null,null,null,null,null,null,null,null,null,null,null,null,null,null,null,null,null,null,null,null,null,null,null,null,null,null,null,null,null,null,null,null,null,null,null,null,null,null,null,null,null,null,null,null,null,null,null,null,null,null,null,null,null,null,null,null,null,"51325","CONSUMR SVC SUPPLIES"]
[null,null,null,null,null,null,null,null,null,null,null,null,null,null,null,null,null,null,null,null,null,null,null,null,null,null,null,null,null,null,null,null,null,null,null,null,null,null,null,null,null,null,null,null,null,null,null,null,null,null,null,null,null,null,null,null,null,null,null,null,null,"51517","DELI COS SUPPLIES"]
[null,null,null,null,null,null,null,null,null,null,null,null,null,null,null,null,null,null,null,null,null,null,null,null,null,null,null,null,null,null,null,null,null,null,null,null,null,null,null,null,null,null,null,null,null,null,null,null,null,null,null,null,null,null,null,null,null,null,null,null,null,"51525","DELI EXP SUPPLIES"]
[null,null,null,null,null,null,null,null,null,null,null,null,null,null,null,null,null,null,null,null,null,null,null,null,null,null,null,null,null,null,null,null,null,null,null,null,null,null,null,null,null,null,null,null,null,null,null,null,null,null,null,null,null,null,null,null,null,null,null,null,null,"51540","DELI SECURITY LABELS"]
[null,null,null,null,null,null,null,null,null,null,null,null,null,null,null,null,null,null,null,null,null,null,null,null,null,null,null,null,null,null,null,null,null,null,null,null,null,null,null,null,null,null,null,null,null,null,null,null,null,null,null,null,null,null,null,null,null,null,null,null,null,"51541","DELI PAKGING/LABELS"]
[null,null,null,null,null,null,null,null,null,null,null,null,null,null,null,null,null,null,null,null,null,null,null,null,null,null,null,null,null,null,null,null,null,null,null,null,null,null,null,null,null,null,null,null,null,null,null,null,null,null,null,null,null,null,null,null,null,null,null,null,null,"51542","DELI FILM/CELLOPHN"]
[null,null,null,null,null,null,null,null,null,null,null,null,null,null,null,null,null,null,null,null,null,null,null,null,null,null,null,null,null,null,null,null,null,null,null,null,null,null,null,null,null,null,null,null,null,null,null,null,null,null,null,null,null,null,null,null,null,null,null,null,null,"51543","DELI POP SUPPLIES"]
[null,null,null,null,null,null,null,null,null,null,null,null,null,null,null,null,null,null,null,null,null,null,null,null,null,null,null,null,null,null,null,null,null,null,null,null,null,null,null,null,null,null,null,null,null,null,null,null,null,null,null,null,null,null,null,null,null,null,null,null,null,"51544","DELI BAGS"]
[null,null,null,null,null,null,null,null,null,null,null,null,null,null,null,null,null,null,null,null,null,null,null,null,null,null,null,null,null,null,null,null,null,null,null,null,null,null,null,null,null,null,null,null,null,null,null,null,null,null,null,null,null,null,null,null,null,null,null,null,null,"51545","DELI CLEANG SUPPLIES"]
[null,null,null,null,null,null,null,null,null,null,null,null,null,null,null,null,null,null,null,null,null,null,null,null,null,null,null,null,null,null,null,null,null,null,null,null,null,null,null,null,null,null,null,null,null,null,null,null,null,null,null,null,null,null,null,null,null,null,null,null,null,"51546","DELI TRNING SUPPLIES"]
[null,null,null,null,null,null,null,null,null,null,null,null,null,null,null,null,null,null,null,null,null,null,null,null,null,null,null,null,null,null,null,null,null,null,null,null,null,null,null,null,null,null,null,null,null,null,null,null,null,null,null,null,null,null,null,null,null,null,null,null,null,"51547","DELI UNIFORMS"]
[null,null,null,null,null,null,null,null,null,null,null,null,null,null,null,null,null,null,null,null,null,null,null,null,null,null,null,null,null,null,null,null,null,null,null,null,null,null,null,null,null,null,null,null,null,null,null,null,null,null,null,null,null,null,null,null,null,null,null,null,null,"51548","DELI/BK/SFD SUPPLIES"]
[null,null,null,null,null,null,null,null,null,null,null,null,null,null,null,null,null,null,null,null,null,null,null,null,null,null,null,null,null,null,null,null,null,null,null,null,null,null,null,null,null,null,null,null,null,null,null,null,null,null,null,null,null,null,null,null,null,null,null,null,null,"51549","DL/BK/SFD COS SUPPL"]
[null,null,null,null,null,null,null,null,null,null,null,null,null,null,null,null,null,null,null,null,null,null,null,null,null,null,null,null,null,null,null,null,null,null,null,null,null,null,null,null,null,null,null,null,null,null,null,null,null,null,null,null,null,null,null,null,null,null,null,null,null,"51550","DELI/BK SUPPLIES"]
[null,null,null,null,null,null,null,null,null,null,null,null,null,null,null,null,null,null,null,null,null,null,null,null,null,null,null,null,null,null,null,null,null,null,null,null,null,null,null,null,null,null,null,null,null,null,null,null,null,null,null,null,null,null,null,null,null,null,null,null,null,"51551","DELI/BK COS SUPPLIES"]
[null,null,null,null,null,null,null,null,null,null,null,null,null,null,null,null,null,null,null,null,null,null,null,null,null,null,null,null,null,null,null,null,null,null,null,null,null,null,null,null,null,null,null,null,null,null,null,null,null,null,null,null,null,null,null,null,null,null,null,null,null,"51552","DELI/BK CLNING SUPPL"]
[null,null,null,null,null,null,null,null,null,null,null,null,null,null,null,null,null,null,null,null,null,null,null,null,null,null,null,null,null,null,null,null,null,null,null,null,null,null,null,null,null,null,null,null,null,null,null,null,null,null,null,null,null,null,null,null,null,null,null,null,null,"51553","BAKERY SECURITY LABELS"]
[null,null,null,null,null,null,null,null,null,null,null,null,null,null,null,null,null,null,null,null,null,null,null,null,null,null,null,null,null,null,null,null,null,null,null,null,null,null,null,null,null,null,null,null,null,null,null,null,null,null,null,null,null,null,null,null,null,null,null,null,null,"51554","BAKERY PKGING/LABELS"]
[null,null,null,null,null,null,null,null,null,null,null,null,null,null,null,null,null,null,null,null,null,null,null,null,null,null,null,null,null,null,null,null,null,null,null,null,null,null,null,null,null,null,null,null,null,null,null,null,null,null,null,null,null,null,null,null,null,null,null,null,null,"51555","BAKERY FILM/CELLOPHN"]
[null,null,null,null,null,null,null,null,null,null,null,null,null,null,null,null,null,null,null,null,null,null,null,null,null,null,null,null,null,null,null,null,null,null,null,null,null,null,null,null,null,null,null,null,null,null,null,null,null,null,null,null,null,null,null,null,null,null,null,null,null,"51556","BAKERY POP SUPPLIES"]
[null,null,null,null,null,null,null,null,null,null,null,null,null,null,null,null,null,null,null,null,null,null,null,null,null,null,null,null,null,null,null,null,null,null,null,null,null,null,null,null,null,null,null,null,null,null,null,null,null,null,null,null,null,null,null,null,null,null,null,null,null,"51557","BAKERY BAGS"]
[null,null,null,null,null,null,null,null,null,null,null,null,null,null,null,null,null,null,null,null,null,null,null,null,null,null,null,null,null,null,null,null,null,null,null,null,null,null,null,null,null,null,null,null,null,null,null,null,null,null,null,null,null,null,null,null,null,null,null,null,null,"51558","BAKERY CLEANG SUPPL"]
[null,null,null,null,null,null,null,null,null,null,null,null,null,null,null,null,null,null,null,null,null,null,null,null,null,null,null,null,null,null,null,null,null,null,null,null,null,null,null,null,null,null,null,null,null,null,null,null,null,null,null,null,null,null,null,null,null,null,null,null,null,"51559","BAKERY TRNING SUPPL"]
[null,null,null,null,null,null,null,null,null,null,null,null,null,null,null,null,null,null,null,null,null,null,null,null,null,null,null,null,null,null,null,null,null,null,null,null,null,null,null,null,null,null,null,null,null,null,null,null,null,null,null,null,null,null,null,null,null,null,null,null,null,"51560","BAKERY UNIFORMS"]
[null,null,null,null,null,null,null,null,null,null,null,null,null,null,null,null,null,null,null,null,null,null,null,null,null,null,null,null,null,null,null,null,null,null,null,null,null,null,null,null,null,null,null,null,null,null,null,null,null,null,null,null,null,null,null,null,null,null,null,null,null,"51561","BAKERY COS SUPPLIES"]
[null,null,null,null,null,null,null,null,null,null,null,null,null,null,null,null,null,null,null,null,null,null,null,null,null,null,null,null,null,null,null,null,null,null,null,null,null,null,null,null,null,null,null,null,null,null,null,null,null,null,null,null,null,null,null,null,null,null,null,null,null,"51562","BAKERY EXP SUPPLIES"]
[null,null,null,null,null,null,null,null,null,null,null,null,null,null,null,null,null,null,null,null,null,null,null,null,null,null,null,null,null,null,null,null,null,null,null,null,null,null,null,null,null,null,null,null,null,null,null,null,null,null,null,null,null,null,null,null,null,null,null,null,null,"51616","SEAFOOD COS SUPPLIES"]
[null,null,null,null,null,null,null,null,null,null,null,null,null,null,null,null,null,null,null,null,null,null,null,null,null,null,null,null,null,null,null,null,null,null,null,null,null,null,null,null,null,null,null,null,null,null,null,null,null,null,null,null,null,null,null,null,null,null,null,null,null,"51625","SEAFOOD EXP SUPPLIES"]
[null,null,null,null,null,null,null,null,null,null,null,null,null,null,null,null,null,null,null,null,null,null,null,null,null,null,null,null,null,null,null,null,null,null,null,null,null,null,null,null,null,null,null,null,null,null,null,null,null,null,null,null,null,null,null,null,null,null,null,null,null,"51640","SEAFOOD SECUR LABELS"]
[null,null,null,null,null,null,null,null,null,null,null,null,null,null,null,null,null,null,null,null,null,null,null,null,null,null,null,null,null,null,null,null,null,null,null,null,null,null,null,null,null,null,null,null,null,null,null,null,null,null,null,null,null,null,null,null,null,null,null,null,null,"51641","SEAFD PCKGING/LABELS"]
[null,null,null,null,null,null,null,null,null,null,null,null,null,null,null,null,null,null,null,null,null,null,null,null,null,null,null,null,null,null,null,null,null,null,null,null,null,null,null,null,null,null,null,null,null,null,null,null,null,null,null,null,null,null,null,null,null,null,null,null,null,"51642","SEAFD FILM/CELLOPHN"]
[null,null,null,null,null,null,null,null,null,null,null,null,null,null,null,null,null,null,null,null,null,null,null,null,null,null,null,null,null,null,null,null,null,null,null,null,null,null,null,null,null,null,null,null,null,null,null,null,null,null,null,null,null,null,null,null,null,null,null,null,null,"51643","SEAFD POP SUPPLIES"]
[null,null,null,null,null,null,null,null,null,null,null,null,null,null,null,null,null,null,null,null,null,null,null,null,null,null,null,null,null,null,null,null,null,null,null,null,null,null,null,null,null,null,null,null,null,null,null,null,null,null,null,null,null,null,null,null,null,null,null,null,null,"51644","SEAFOOD BAGS"]
[null,null,null,null,null,null,null,null,null,null,null,null,null,null,null,null,null,null,null,null,null,null,null,null,null,null,null,null,null,null,null,null,null,null,null,null,null,null,null,null,null,null,null,null,null,null,null,null,null,null,null,null,null,null,null,null,null,null,null,null,null,"51645","SEAFD CLEANG SUPPLIES"]
[null,null,null,null,null,null,null,null,null,null,null,null,null,null,null,null,null,null,null,null,null,null,null,null,null,null,null,null,null,null,null,null,null,null,null,null,null,null,null,null,null,null,null,null,null,null,null,null,null,null,null,null,null,null,null,null,null,null,null,null,null,"51646","SEAFD TRNING SUPPLIES"]
[null,null,null,null,null,null,null,null,null,null,null,null,null,null,null,null,null,null,null,null,null,null,null,null,null,null,null,null,null,null,null,null,null,null,null,null,null,null,null,null,null,null,null,null,null,null,null,null,null,null,null,null,null,null,null,null,null,null,null,null,null,"51647","SEAFOOD UNIFORMS"]
[null,null,null,null,null,null,null,null,null,null,null,null,null,null,null,null,null,null,null,null,null,null,null,null,null,null,null,null,null,null,null,null,null,null,null,null,null,null,null,null,null,null,null,null,null,null,null,null,null,null,null,null,null,null,null,null,null,null,null,null,null,"70199","GROCERY"]
[null,null,null,null,null,null,null,null,null,null,null,null,null,null,null,null,null,null,null,null,null,null,null,null,null,null,null,null,null,null,null,null,null,null,null,null,null,null,null,null,null,null,null,null,null,null,null,null,null,null,null,null,null,null,null,null,null,null,null,null,null,"70607","MILK"]
[null,null,null,null,null,null,null,null,null,null,null,null,null,null,null,null,null,null,null,null,null,null,null,null,null,null,null,null,null,null,null,null,null,null,null,null,null,null,null,null,null,null,null,null,null,null,null,null,null,null,null,null,null,null,null,null,null,null,null,null,null,"70608","EGGS"]
[null,null,null,null,null,null,null,null,null,null,null,null,null,null,null,null,null,null,null,null,null,null,null,null,null,null,null,null,null,null,null,null,null,null,null,null,null,null,null,null,null,null,null,null,null,null,null,null,null,null,null,null,null,null,null,null,null,null,null,null,null,"70609","CHILLED JUICE"]
[null,null,null,null,null,null,null,null,null,null,null,null,null,null,null,null,null,null,null,null,null,null,null,null,null,null,null,null,null,null,null,null,null,null,null,null,null,null,null,null,null,null,null,null,null,null,null,null,null,null,null,null,null,null,null,null,null,null,null,null,null,"70619","CMPNY MFG JUICE"]
[null,null,null,null,null,null,null,null,null,null,null,null,null,null,null,null,null,null,null,null,null,null,null,null,null,null,null,null,null,null,null,null,null,null,null,null,null,null,null,null,null,null,null,null,null,null,null,null,null,null,null,null,null,null,null,null,null,null,null,null,null,"70699","DAIRY"]
[null,null,null,null,null,null,null,null,null,null,null,null,null,null,null,null,null,null,null,null,null,null,null,null,null,null,null,null,null,null,null,null,null,null,null,null,null,null,null,null,null,null,null,null,null,null,null,null,null,null,null,null,null,null,null,null,null,null,null,null,null,"70702","ICE CREAM"]
[null,null,null,null,null,null,null,null,null,null,null,null,null,null,null,null,null,null,null,null,null,null,null,null,null,null,null,null,null,null,null,null,null,null,null,null,null,null,null,null,null,null,null,null,null,null,null,null,null,null,null,null,null,null,null,null,null,null,null,null,null,"70799","FROZEN"]
[null,null,null,null,null,null,null,null,null,null,null,null,null,null,null,null,null,null,null,null,null,null,null,null,null,null,null,null,null,null,null,null,null,null,null,null,null,null,null,null,null,null,null,null,null,null,null,null,null,null,null,null,null,null,null,null,null,null,null,null,null,"71025","DAIRY SUPPLIES"]

{"sheet":"7 DSD new New Item For","index":7,"n_rows":97,"n_cols":83,"rows_kept":97,"cut":false,"hidden":false,"merged":[[62,0,62,19],[63,0,63,24],[63,25,63,55],[64,49,64,55],[60,1,60,4],[60,5,60,8],[60,9,60,12],[60,13,60,16],[60,43,60,49],[60,50,60,54],[59,51,59,53],[57,5,57,8],[57,9,57,12],[57,13,57,16],[57,43,57,50],[57,51,57,53],[58,1,58,4],[58,5,58,8],[58,9,58,12],[58,13,58,16],[58,43,58,50],[55,43,55,50],[55,51,55,53],[56,1,56,4],[56,5,56,8],[56,9,56,12],[56,13,56,16],[56,43,56,50],[56,51,56,53],[54,5,54,8],[54,9,54,12],[54,13,54,16],[54,18,54,41],[55,1,55,4],[55,5,55,8],[55,9,55,12],[55,13,55,16],[55,18,61,41],[57,1,57,4],[58,51,58,53],[59,1,59,4],[59,5,59,8],[59,9,59,12],[59,13,59,16],[59,43,59,50],[50,2,50,5],[50,6,50,12],[50,26,50,32],[50,42,50,48],[53,42,53,45],[53,46,53,52],[44,20,44,50],[48,2,48,5],[48,6,48,12],[48,26,48,32],[48,42,48,48],[49,2,49,5],[49,6,49,12],[35,42,35,45],[35,46,35,52],[39,1,39,5],[39,7,39,12],[39,13,39,15],[39,22,39,27],[32,46,32,52],[34,0,34,4],[34,6,34,12],[34,14,34,19],[34,23,34,35],[34,36,34,40],[30,0,30,5],[30,6,30,19],[30,20,30,29],[30,30,30,43],[32,0,32,5],[32,6,32,19],[32,20,32,29],[32,30,32,36],[32,38,32,45],[26,0,26,5],[26,6,26,19],[26,20,26,29],[26,30,26,43],[26,47,26,52],[28,0,28,5],[28,6,28,19],[28,20,28,29],[28,30,28,43],[22,52,22,55],[24,0,24,2],[24,3,24,4],[24,6,24,13],[24,15,24,25],[24,26,24,31],[24,47,24,52],[20,44,20,54],[22,0,22,5],[22,6,22,8],[22,9,22,15],[22,16,22,18],[22,19,22,23],[22,24,22,26],[22,27,22,31],[22,32,22,46],[22,47,22,51],[20,30,20,31],[20,32,20,33],[20,34,20,35],[20,36,20,37],[20,38,20,39],[20,41,20,43],[18,0,18,5],[18,6,18,19],[18,20,18,29],[20,0,20,5],[20,6,20,19],[20,21,20,27],[20,28,20,29],[13,6,13,19],[14,0,14,5],[14,6,14,19],[14,20,14,29],[16,0,16,5],[16,6,16,19],[16,20,16,29],[10,0,10,6],[10,7,10,24],[10,25,10,37],[10,38,10,55],[12,0,12,5],[12,19,12,29],[12,30,12,55],[8,0,8,6],[8,7,8,13],[8,25,8,37],[8,38,8,44],[9,0,9,6],[9,7,9,13],[9,25,9,37],[9,38,9,44],[6,0,6,6],[6,7,6,24],[6,25,6,37],[6,38,6,55],[7,25,7,37],[7,38,7,44],[7,45,7,47],[7,48,7,50],[7,51,7,52],[7,53,7,55],[7,0,7,6],[7,7,7,13],[7,14,7,16],[7,17,7,19],[7,20,7,21],[7,22,7,24],[0,0,0,55],[1,0,1,55],[2,0,2,55],[3,0,3,4],[3,5,3,25],[3,26,3,27],[3,28,3,36],[4,0,4,55],[5,0,5,6],[5,7,5,24],[5,25,5,37],[5,38,5,55]]}
["SOUTHEASTERN GROCERS DSD NEW ITEM FORM"]
["NEW ITEM AGREEMENT"]
["Please submit completed form per BLH new item schedule.  Please provide a minimum of two live samples and a photo copy of the UPC bar code for each new item submitted.  Please see your category manager for additional information."]
["Submitted By",null,null,null,null,null,null,null,null,null,null,null,null,null,null,null,null,null,null,null,null,null,null,null,null,null,"Date"]
["FIELDS THAT ARE GRAYED OUT INDICATE THAT THE FIELD IS TO BE COMPLETED BY A BLH ASSOCIATE."]
["Vendor's Name",null,null,null,null,null,null,null,null,null,null,null,null,null,null,null,null,null,null,null,null,null,null,null,null,"Representative's Name",null,null,null,null,null,null,null,null,null,null,null,null,null,null,null,null,null,null,null,null,null,null,null,null,null,null,null,null,null,null,null,null,null,null,null,null,null,null,null,null,null,null,null,null,null,null,null,null,null,null,null,null,"DIRECTS CROSSDOCK","DRUGS","ALUMINUM FOIL",null,"BEEF"]
["Address",null,null,null,null,null,null,null,null,null,null,null,null,null,null,null,null,null,null,null,null,null,null,null,null,"Address",null,null,null,null,null,null,null,null,null,null,null,null,null,null,null,null,null,null,null,null,null,null,null,null,null,null,null,null,null,null,null,null,null,null,null,null,null,null,null,null,null,null,null,null,null,null,null,null,null,null,null,null,"HOUSEWARE DIRECTS","FOOD","BAG, PAPER",null,"FISH"]
["City",null,null,null,null,null,null,null,null,null,null,null,null,null,"State",null,null,null,null,null,"Zip",null,null,null,null,"City",null,null,null,null,null,null,null,null,null,null,null,null,null,null,null,null,null,null,null,"State",null,null,null,null,null,"Zip",null,null,null,null,null,null,null,null,null,null,null,null,null,null,null,null,null,null,null,null,null,null,null,null,null,null,"HEALTH & BEAUTY AIDS DIRECTS","NOT BIO","BAG, PLASTIC",null,"LAMB"]
["Phone",null,null,null,null,null,null,null,null,null,null,null,null,null,null,null,null,null,null,null,null,null,null,null,null,"Phone",null,null,null,null,null,null,null,null,null,null,null,null,null,null,null,null,null,null,null,null,null,null,null,null,null,null,null,null,null,null,null,null,null,null,null,null,null,null,null,null,null,null,null,null,null,null,null,null,null,null,null,null,"COSMETICS DIRECTS",null,"BIN, PLASTIC (BULK)",null,"NOT ON COOL"]
["Fax",null,null,null,null,null,null,null,null,null,null,null,null,null,null,null,null,null,null,null,null,null,null,null,null,"Fax",null,null,null,null,null,null,null,null,null,null,null,null,null,null,null,null,null,null,null,null,null,null,null,null,null,null,null,null,null,null,null,null,null,null,null,null,null,null,null,null,null,null,null,null,null,null,null,null,null,null,null,null,"GMD DIRECTS",null,"BOTTLE OR JAR, GLASS",null,"PEANUTS"]
["E-Mail",null,null,null,null,null,null,null,null,null,null,null,null,null,null,null,null,null,null,null,null,null,null,null,null,"E-Mail",null,null,null,null,null,null,null,null,null,null,null,null,null,null,null,null,null,null,null,null,null,null,null,null,null,null,null,null,null,null,null,null,null,null,null,null,null,null,null,null,null,null,null,null,null,null,null,null,null,null,null,null,"STATE LOTTERY",null,"BOTTLE OR JAR, PLASTIC",null,"PORK"]
[null,null,null,null,null,null,null,null,null,null,null,null,null,null,null,null,null,null,null,null,null,null,null,null,null,null,null,null,null,null,null,null,null,null,null,null,null,null,null,null,null,null,null,null,null,null,null,null,null,null,null,null,null,null,null,null,null,null,null,null,null,null,null,null,null,null,null,null,null,null,null,null,null,null,null,null,null,null,"EGG DIRECTS",null,"BOTTLE, RETURNABLE",null,"PRODUCE"]
["UPC",null,null,null,null,null,null,null,null,null,null,null,null,null,null,null,null,null,null,"Vendor's Item Description",null,null,null,null,null,null,null,null,null,null,null,null,null,null,null,null,null,null,null,null,null,null,null,null,null,null,null,null,null,null,null,null,null,null,null,null,null,null,null,null,null,null,null,null,null,null,null,null,null,null,null,null,null,null,null,null,null,null,"BULK FOOD DIRECTS",null,"BOX, PAPER ANY SHAPE"]
[null,null,null,null,null,null,"attached photo copy of UPC bar code required",null,null,null,null,null,null,null,null,null,null,null,null,null,null,null,null,null,null,null,null,null,null,null,null,null,null,null,null,null,null,null,null,null,null,null,null,null,null,null,null,null,null,null,null,null,null,null,null,null,null,null,null,null,null,null,null,null,null,null,null,null,null,null,null,null,null,null,null,null,null,null,"PHOTO LAB DIRECTS",null,"CAN, ALUMINUM"]
["Bill Department",null,null,null,null,null,null,null,null,null,null,null,null,null,null,null,null,null,null,null,"POS Description",null,null,null,null,null,null,null,null,null,null,null,null,null,null,null,null,null,null,null,null,null,null,null,null,null,null,null,null,null,null,null,null,null,null,null,null,null,null,null,null,null,null,null,null,null,null,null,null,null,null,null,null,null,null,null,null,null,"DAIRY DIRECTS",null,"CAN, NON-ALUMINUM"]
[null,null,null,null,null,null,null,null,null,null,null,null,null,null,null,null,null,null,null,null,null,null,null,null,null,null,null,null,null,null,null,null,null,null,null,null,null,null,null,null,null,null,null,null,null,null,null,null,null,null,null,null,null,null,null,null,null,null,null,null,null,null,null,null,null,null,null,null,null,null,null,null,null,null,null,null,null,null,"NUTRITIONAL DIRECTS",null,"CAN, AEROSOL"]
["Cat/Scat",null,null,null,null,null,null,null,null,null,null,null,null,null,null,null,null,null,null,null,"Tag Description Line 1",null,null,null,null,null,null,null,null,null,null,null,null,null,null,null,null,null,null,null,null,null,null,null,null,null,null,null,null,null,null,null,null,null,null,null,null,null,null,null,null,null,null,null,null,null,null,null,null,null,null,null,null,null,null,null,null,null,"FLORAL DIRECTS",null,"CARTON, PAPER"]
[null,null,null,null,null,null,null,null,null,null,null,null,null,null,null,null,null,null,null,null,null,null,null,null,null,null,null,null,null,null,null,null,null,null,null,null,null,null,null,null,null,null,null,null,null,null,null,null,null,null,null,null,null,null,null,null,null,null,null,null,null,null,null,null,null,null,null,null,null,null,null,null,null,null,null,null,null,null,"SEAFOOD DIRECTS",null,"CARTON, STYROFOAM"]
["UPF Value",null,null,null,null,null,null,null,null,null,null,null,null,null,null,null,null,null,null,null,"Tag Description Line 2",null,null,null,null,null,null,null,null,null,null,null,null,null,null,null,null,null,null,null,null,null,null,null,null,null,null,null,null,null,null,null,null,null,null,null,null,null,null,null,null,null,null,null,null,null,null,null,null,null,null,null,null,null,null,null,null,null,"CHEESE DIRECTS",null,"CONTAINER, FOIL"]
[null,null,null,null,null,null,null,null,null,null,null,null,null,null,null,null,null,null,null,null,null,null,null,null,null,null,null,null,null,null,null,null,null,null,null,null,null,null,null,null,null,null,null,null,null,null,null,null,null,null,null,null,null,null,null,null,null,null,null,null,null,null,null,null,null,null,null,null,null,null,null,null,null,null,null,null,null,null,"MILK DIRECTS",null,"CONTAINER, PLASTIC"]
["Size",null,null,null,null,null,null,null,null,null,null,null,null,null,null,null,null,null,null,null,null,"Selling Unit Dimensions:",null,null,null,null,null,null,"Length",null,null,null,"Width",null,null,null,"Height",null,null,null,null,"UPF-UOM",null,null,null,null,null,null,null,null,null,null,null,null,null,null,null,null,null,null,null,null,null,null,null,null,null,null,null,null,null,null,null,null,null,null,null,null,"FROZEN FOOD DIRECTS",null,"CONTAINER, TIN"]
[null,null,null,null,null,null,null,null,null,null,null,null,null,null,null,null,null,null,null,null,null,null,null,null,null,null,null,null,null,null,null,null,null,null,null,null,null,null,null,null,null,null,null,null,null,null,null,null,null,null,null,null,null,null,null,null,null,null,null,null,null,null,null,null,null,null,null,null,null,null,null,null,null,null,null,null,null,null,"ICE CREAM DIRECTS",null,"ENVELOPE/POUCH, PAPER"]
["Inventory UOM",null,null,null,null,null,null,null,null,"Receiving UOM",null,null,null,null,null,null,null,null,null,"BIO Type",null,null,null,null,null,null,null,"Packaging",null,null,null,null,null,null,null,null,null,null,null,null,null,null,null,null,null,null,null,"Cool Type",null,null,null,null,null,null,null,null,null,null,null,null,null,null,null,null,null,null,null,null,null,null,null,null,null,null,null,null,null,null,"PRIVATE LABEL BREAD DIRECTS",null,"ENVELOPE/POUCH, PLASTIC"]
[null,null,null,null,null,null,null,null,null,null,null,null,null,null,null,null,null,null,null,null,null,null,null,null,null,null,null,null,null,null,null,null,null,null,null,null,null,null,null,null,null,null,null,null,null,null,null,null,null,null,null,null,null,null,null,null,null,null,null,null,null,null,null,null,null,null,null,null,null,null,null,null,null,null,null,null,null,null,"WHISKEY DIRECTS",null,"KEG, STAINLESS STEEL"]
["Avg Wt",null,null,null,null,null,"Company Product Y/N",null,null,null,null,null,null,null,null,"Nat'l equivalent UPC (if Own Brand)",null,null,null,null,null,null,null,null,null,null,null,null,null,null,null,null,null,null,null,null,null,null,null,null,null,null,null,null,null,null,null,"Print Shelf Tags ",null,null,null,null,null,null,null,null,null,null,null,null,null,null,null,null,null,null,null,null,null,null,null,null,null,null,null,null,null,null,"BEER DIRECTS",null,"OVERWRAP, FOIL"]
[null,null,null,null,null,null,null,null,null,null,null,null,null,null,null,null,null,null,null,null,null,null,null,null,null,null,null,null,null,null,null,null,null,null,null,null,null,null,null,null,null,null,null,null,null,null,null,null,null,null,null,null,null,null,null,null,null,null,null,null,null,null,null,null,null,null,null,null,null,null,null,null,null,null,null,null,null,null,"WINE DIRECTS",null,"OVERWRAP, PAPER"]
["Vendor number",null,null,null,null,null,null,null,null,null,null,null,null,null,null,null,null,null,null,null,"BLH Code",null,null,null,null,null,null,null,null,null,null,null,null,null,null,null,null,null,null,null,null,null,null,null,null,null,null,"Supply Item Y/N",null,null,null,null,null,null,null,null,null,null,null,null,null,null,null,null,null,null,null,null,null,null,null,null,null,null,null,null,null,null,"NON-ALCOHOLIC BEER/WINE",null,"OVERWRAP, PLASTIC"]
[null,null,null,null,null,null,null,null,null,null,null,null,null,null,null,null,null,null,null,null,null,null,null,null,null,null,null,null,null,null,null,null,null,null,null,null,null,null,null,null,null,null,null,null,null,null,null,null,null,null,null,null,null,null,null,null,null,null,null,null,null,null,null,null,null,null,null,null,null,null,null,null,null,null,null,null,null,null,"NEW ORLEANS TAX 4% (NON-JOURN)",null,"PAPER"]
["Pack",null,null,null,null,null,null,null,null,null,null,null,null,null,null,null,null,null,null,null,"Vendor Case Weight",null,null,null,null,null,null,null,null,null,null,null,null,null,null,null,null,null,null,null,null,null,null,null,"lbs",null," ",null,null,null,null,null,null,null,null,null,null,null,null,null,null,null,null,null,null,null,null,null,null,null,null,null,null,null,null,null,null,null,"NEW ORLEANS TAX 5% (NON-JOURN)",null,"PLASTIC TOP FOIL BASE"]
[null,null,null,null,null,null,null,null,null,null,null,null,null,null,null,null,null,null,null,null,null,null,null,null,null,null,null,null,null,null,null,null,null,null,null,null,null,null,null,null,null,null,null,null,null,null," ",null,null,null,null,null,null,null,null,null,null,null,null,null,null,null,null,null,null,null,null,null,null,null,null,null,null,null,null,null,null,null,"NEW ORLEANS TAX 7% (NON-JOURN)"]
["Order Code",null,null,null,null,null,null,null,null,null,null,null,null,null,null,null,null,null,null,null,"Vendor's Item Number",null,null,null,null,null,null,null,null,null,null,null,null,null,null,null,null,null,null,null,null,null,null,null," ",null," ",null,null,null,null,null,null,null,null,null,null,null,null,null,null,null,null,null,null,null,null,null,null,null,null,null,null,null,null,null,null,null,"ALABAMA WINE"]
[null,null,null,null,null,null,null,null,null,null,null,null,null,null,null,null,null,null,null,null,null,null,null,null,null,null,null,null,null,null,null,null,null,null,null,null,null,null,null,null,null,null,null,null,null,null,null,null,null,null,null,null,null,null,null,null,null,null,null,null,null,null,null,null,null,null,null,null,null,null,null,null,null,null,null,null,null,null,"BOTTLE CREDITS"]
["Invoice Seq #",null,null,null,null,null,null,null,null,null,null,null,null,null,null,null,null,null,null,null,"Link Item Code",null,null,null,null,null,null,null,null,null,null,null,null,null,null,null,null,null,"Model Code",null,null,null,null,null,null,null,null,null,null,null,null,null,null,null,null,null,null,null,null,null,null,null,null,null,null,null,null,null,null,null,null,null,null,null,null,null,null,null,"DELI GREASE"]
[null,null,null,null,null,null,null,null,null,null,null,null,null,null,null,null,null,null,null,null,null,null,null,null,null,null,null,null,null,null,null,null,null,null,null,null,null,null,null,null,null,null,null,null,null,null,null,null,null,null,null,null,null,null,null,null,null,null,null,null,null,null,null,null,null,null,null,null,null,null,null,null,null,null,null,null,null,null,"BAKERY COS SUPPLIES"]
["Natural",null,null,null,null,null,"Organic",null,null,null,null,null,null,null,"Kosher",null,null,null,null,null,null," ",null,"Existing Bi-Lo Holdings code if a replacement item",null,null,null,null,null,null,null,null,null,null,null,null,null,null,null,null,null,null,null,null,null,null,null,null,null,null,null,null,null,null,null,null,null,null,null,null,null,null,null,null,null,null,null,null,null,null,null,null,null,null,null,null,null,null,"BAKERY EXPENSE SUPPLIES"]
[null,null,null,null,null,null,null,null,null,null,null,null,null,null,null,null,null,null,null,null,null,null,null,null,null,null,null,null,null,null,null,null,null,null,null,null,null,null,null,null,null,null,null,null,null,null,null,null,null,null,null,null,null,null,null,null,null,null,null,null,null,null,null,null,null,null,null,null,null,null,null,null,null,null,null,null,null,null,"DELI RETAIL"]
["INITIAL \"RECOMMENDED\" UNIT RETAIL PRICING",null,null,null,null,null,null,null,null,null,null,null,null,null,null,null,null,null,null,null,null,null,null,null,null,null,null,null,null,null,null,null,null,null,null,null,null,null,null,null,null,null,null,null,null,null,null,null,null,null,null,null,null,null,null,null,null,null,null,null,null,null,null,null,null,null,null,null,null,null,null,null,null,null,null,null,null,null,"BAKERY EXPENSE SUPPLIES"]
[null,null,null,null,null,null,null,null,null,null,null,null,null,null,null,null,null,null,null,null,null,null,null,null,null,null,null,null,null,null,null,null,null,null,null,null,null,null,null,null,null,null,null,null,null,null,null,null,null,null,null,null,null,null,null,null,null,null,null,null,null,null,null,null,null,null,null,null,null,null,null,null,null,null,null,null,null,null,"BAKERY "]
[null,null,null,null,null,null,null,null,null,null,null,null,null,null,null,null,null,null,null,null,null,null,null,null,null,null,null,null,null,null,null,null,null,null,null,null,null,null,null,null,null,null,null,null,null,null,null,null,null,null,null,null,null,null,null,null,null,null,null,null,null,null,null,null,null,null,null,null,null,null,null,null,null,null,null,null,null,null,"DELI COS SUPPLIES"]
[null,"Pre-Priced Y/N",null,null,null,null,null,"Pre-Priced Value",null,null,null,null,null,null,null,null,null,null,null,null,null,null,"Print Shelf Tags",null,null,null,null,null,null,null,null,null,null,null,null,null,null,null,null,null,null,null,null,null,null,null,null,null,null,null,null,null,null,null,null,null,null,null,null,null,null,null,null,null,null,null,null,null,null,null,null,null,null,null,null,null,null,null,"DELI/BAKERY LINEN"]
[null,null,null,null,null,null,null,null,null,null,null,null,null,null,null,null,null,null,null,null,null,null,null,null,null,null,null,null,null,null,null,null,null,null,null,null,null,null,null,null,null,null,null,null,null,null,null,null,null,null,null,null,null,null,null,null,null,null,null,null,null,null,null,null,null,null,null,null,null,null,null,null,null,null,null,null,null,null,"DELI EXPENSE SUPPLIES"]
[null,null,null,null,null,null,null,null,null,null,null,null,null,null,null,null,null,null,null,null,null,null,null,null,null,null,null,null,null,null,null,null,null,null,null,null,null,null,null,null,null,null,null,null,null,null,null,null,null,null,null,null,null,null,null,null,null,null,null,null,null,null,null,null,null,null,null,null,null,null,null,null,null,null,null,null,null,null,"PRODUCE"]
["If not Pre-priced, then MUST enter a \"RECOMMENDED\" Initial Retail Price via 1 of the 3 ways identified below:",null,null,null,null,null,null,null,null,null,null,null,null,null,null,null,null,null,null,null,null,null,null,null,null,null,null,null,null,null,null,null,null,null,null,null,null,null,null,null,null,null,null,null,null,null,null,null,null,null,null,null,null,null,null,null,null,null,null,null,null,null,null,null,null,null,null,null,null,null,null,null,null,null,null,null,null,null,"PHARMACY PRESCRIPTIONS"]
[null,null,null,null,null,null,null,null,null,null,null,null,null,null,null,null,null,null,null,null,null,null,null,null,null,null,null,null,null,null,null,null,null,null,null,null,null,null,null,null,null,null,null,null,null,null,null,null,null,null,null,null,null,null,null,null,null,null,null,null,null,null,null,null,null,null,null,null,null,null,null,null,null,null,null,null,null,null,"PHARMACY NON-PRESCRIPTIONS"]
[null,null,null,null,null,null,null,null,null,null,null,null,null,null,null,null,null,null,null,null,"Assign Initial pricing by Adding to Price Association Code (PAC) or Price \"like\" Item",null,null,null,null,null,null,null,null,null,null,null,null,null,null,null,null,null,null,null,null,null,null,null,null,null,null,null,null,null,null,null,null,null,null,null,null,null,null,null,null,null,null,null,null,null,null,null,null,null,null,null,null,null,null,null,null,null,"PRODUCE COS SUPPLIES"]
[null,null,null,null,null,null,null,null,null,null,null,null,null,null,null,null,null,null,null,null,null,null,null,null,null,null,null,null,null,null,null,null,null,null,null,null,null,null,null,null,null,null,null,null,null,null,null,null,null,null,null,null,null,null,null,null,null,null,null,null,null,null,null,null,null,null,null,null,null,null,null,null,null,null,null,null,null,null,"PHARMACY PRESCRIPTION COS SUPPLIES"]
[null,null,"1)","Enter Recommended Unit Retail Price",null,null,null,null,null,null,null,null,null,null,null,null,null,null,null,null,null,"2)","Enter existing PAC # to add to:",null,null,null,null,null,null,null,null,null,null,null,null,"3)",null,null,null,"Price like ",null,null,null,null,null,null,null,null,"Add to PAC containing ",null,null,null,null,null,null,null,null,null,null,null,null,null,null,null,null,null,null,null,null,null,null,null,null,null,null,null,null,null,"PHARMACY NON-PRESCRIPTION COS SUPPLIES"]
[null,null,null,null,null,null,null,null,null,null,null,null,null,null,null,null,null,null,null,null,null,null,null,null,null,null,null,null,null,null,null,null,null,null,null,null,null,null,null,null,null,null,null,null,null,null,null,null,null,null,null,null,null,null,null,null,null,null,null,null,null,null,null,null,null,null,null,null,null,null,null,null,null,null,null,null,null,null,"PRODUCE EXPENSE SUPPLIES"]
[null,null,"Winn Dixie ",null,null,null,null,null,null,null,null,null,null,null,null,null,null,null,null,null,null,null,null,null,null,"WD / Harveys PAC",null,null,null,null,null,null,null,null,null,null,null,null,null,null,null,"WD / Harveys Item Code",null,null,null,null,null,null,null,null,null,null,null,null,null,null,null,null,null,null,null,null,null,null,null,null,null,null,null,null,null,null,null,null,null,null,null,null,"PHOTO LAB COST SUPPLIES"]
[null,null,"Bi-LO ",null,null,null,null,null,null,null,null,null,null,null,null,null,"OR",null,null,null,null,null,null,null,null,null,null,null,null,null,null,null,null,null,"OR",null,null,null,null,null,null,null,null,null,null,null,null,null,null,null,null,null,null,null,null,null,null,null,null,null,null,null,null,null,null,null,null,null,null,null,null,null,null,null,null,null,null,null,"PHOTO LAB EXPENSE SUPPLIES"]
[null,null,"Harveys ",null,null,null,null,null,null,null,null,null,null,null,null,null,null,null,null,null,null,null,null,null,null,"BiLO PAC",null,null,null,null,null,null,null,null,null,null,null,null,null,null,null,"BiLO Item Code",null,null,null,null,null,null,null,null,null,null,null,null,null,null,null,null,null,null,null,null,null,null,null,null,null,null,null,null,null,null,null,null,null,null,null,null,"DRY CLEANING SERVICES"]
[null,null,null,null,null,null,null,null,null,null,null,null,null,null,null,null,null,null,null,null,null,null,null,null,null,null,null,null,null,null,null,null,null,null,null,null,null,null,null,null,null,null,null,null,null,null,null,null,null,null,null,null,null,null,null,null,null,null,null,null,null,null,null,null,null,null,null,null,null,null,null,null,null,null,null,null,null,null,"TOBACCO ORDERS"]
[null,null,null,null,null,null,null,null,null,null,null,null,null,null,null,null,null,null,null,null,null,null,null,null,null,null,null,null,null,null,null,null,null,null,null,null,null,null,null,null,null,null,null,null,null,null,null,null,null,null,null,null,null,null,null,null,null,null,null,null,null,null,null,null,null,null,null,null,null,null,null,null,null,null,null,null,null,null,"MISSISSIPPI TAX 7% (NON-JRN)"]
[null,null,null,null,null,null,null,null,null,null,null,null,null,null,null,null,null,null,null,null,null,null,null,null,null,null,null,null,null,null,null,null,null,null,null,null,null,null,null,null,null,null,null,null,null,null,null,null,null,null,null,null,null,null,null,null,null,null,null,null,null,null,null,null,null,null,null,null,null,null,null,null,null,null,null,null,null,null,"MARKET"]
[null,"Cost Zone",null,null,null,"List Cost",null,null,null,"Cost Zone",null,null,null,"List Cost",null,null,null,null,"UPC Bar Code",null,null,null,null,null,null,null,null,null,null,null,null,null,null,null,null,null,null,null,null,null,null,null,null,null,null,null,null,null,null,null,null,null,null,null,null,null,null,null,null,null,null,null,null,null,null,null,null,null,null,null,null,null,null,null,null,null,null,null,"SERVICE MEAT"]
[null,1,null,null,null,null,null,null,null,7,null,null,null,null,null,null,null,null,null,null,null,null,null,null,null,null,null,null,null,null,null,null,null,null,null,null,null,null,null,null,null,null,null,"Non-Prod fresh pk/case",null,null,null,null,null,null,null,null,null,null,null,null,null,null,null,null,null,null,null,null,null,null,null,null,null,null,null,null,null,null,null,null,null,null,"MARKET BONE & FAT"]
[null,2,null,null,null,null,null,null,null,8,null,null,null,null,null,null,null,null,null,null,null,null,null,null,null,null,null,null,null,null,null,null,null,null,null,null,null,null,null,null,null,null,null,"GP Rate",null,null,null,null,null,null,null,null,null,null,null,null,null,null,null,null,null,null,null,null,null,null,null,null,null,null,null,null,null,null,null,null,null,null,"MATKET COS SUPPLIES"]
[null,3,null,null,null,null,null,null,null,9,null,null,null,null,null,null,null,null,null,null,null,null,null,null,null,null,null,null,null,null,null,null,null,null,null,null,null,null,null,null,null,null,null,"26 Week Projected units",null,null,null,null,null,null,null,null,null,null,null,null,null,null,null,null,null,null,null,null,null,null,null,null,null,null,null,null,null,null,null,null,null,null,"SEAFOOD EXPENSE SUPPLIES"]
[null,4,null,null,null,null,null,null,null,10,null,null,null,null,null,null,null,null,null,null,null,null,null,null,null,null,null,null,null,null,null,null,null,null,null,null,null,null,null,null,null,null,null,"Mandatory item",null,null,null,null,null,null,null,null,null,null,null,null,null,null,null,null,null,null,null,null,null,null,null,null,null,null,null,null,null,null,null,null,null,null,"SEAFOOD COS SUPPLIES"]
[null,5,null,null,null,null,null,null,null,11,null,null,null,null,null,null,null,null,null,null,null,null,null,null,null,null,null,null,null,null,null,null,null,null,null,null,null,null,null,null,null,null,null,"Logistical Shipping Unit",null,null,null,null,null,null,null,null,null,null,null,null,null,null,null,null,null,null,null,null,null,null,null,null,null,null,null,null,null,null,null,null,null,null,"PKG MEAT ORDERS"]
[null,6,null,null,null,null,null,null,null,12,null,null,null,null,null,null,null,null,null,null,null,null,null,null,null,null,null,null,null,null,null,null,null,null,null,null,null,null,null,null,null,null,null,"CGO Shipping Type",null,null,null,null,null,null,null,null,null,null,null,null,null,null,null,null,null,null,null,null,null,null,null,null,null,null,null,null,null,null,null,null,null,null,"MARKET LINEN"]
[null,null,null,null,null,null,null,null,null,null,null,null,null,null,null,null,null,null,null,null,null,null,null,null,null,null,null,null,null,null,null,null,null,null,null,null,null,null,null,null,null,null,null,null,null,null,null,null,null,null,null,null,null,null,null,null,null,null,null,null,null,null,null,null,null,null,null,null,null,null,null,null,null,null,null,null,null,null,"MARKET EXP SUPPLIES"]
["Category Manager Approval",null,null,null,null,null,null,null,null,null,null,null,null,null,null,null,null,null,null,null,null,null,null,null,null,null,null,null,null,null,null,null,null,null,null,null,null,null,null,null,null,null,null,null,null,null,null,null,null,null,null,null,null,null,null,null,null,null,null,null,null,null,null,null,null,null,null,null,null,null,null,null,null,null,null,null,null,null,"FLOOR & WINDOW CLEANING"]
[null,null,null,null,null,null,null,null,null,null,null,null,null,null,null,null,null,null,null,null,null,null,null,null,null,"Category target margin will be used to determine retail for price strategy categories.",null,null,null,null,null,null,null,null,null,null,null,null,null,null,null,null,null,null,null,null,null,null,null,null,null,null,null,null,null,null,null,null,null,null,null,null,null,null,null,null,null,null,null,null,null,null,null,null,null,null,null,null,"LOUISIANA TAX 4%"]
[null,null,null,null,null,null,null,null,null,null,null,null,null,null,null,null,null,null,null,null,null,null,null,null,null,null,null,null,null,null,null,null,null,null,null,null,null,null,null,null,null,null,null,null,null,null,null,null,null,"Revised 08/22/14",null,null,null,null,null,null,null,null,null,null,null,null,null,null,null,null,null,null,null,null,null,null,null,null,null,null,null,null,"LOUISIANA TAX 1%"]
[null,null,null,null,null,null,null,null,null,null,null,null,null,null,null,null,null,null,null,null,null,null,null,null,null,null,null,null,null,null,null,null,null,null,null,null,null,null,null,null,null,null,null,null,null,null,null,null,null,null,null,null,null,null,null,null,null,null,null,null,null,null,null,null,null,null,null,null,null,null,null,null,null,null,null,null,null,null,"NEW ORLEANS TAX"]
[null,null,null,null,null,null,null,null,null,null,null,null,null,null,null,null,null,null,null,null,null,null,null,null,null,null,null,null,null,null,null,null,null,null,null,null,null,null,null,null,null,null,null,null,null,null,null,null,null,null,null,null,null,null,null,null,null,null,null,null,null,null,null,null,null,null,null,null,null,null,null,null,null,null,null,null,null,null,"MISSISSIPPI TAX 5% "]
[null,null,null,null,null,null,null,null,null,null,null,null,null,null,null,null,null,null,null,null,null,null,null,null,null,null,null,null,null,null,null,null,null,null,null,null,null,null,null,null,null,null,null,null,null,null,null,null,null,null,null,null,null,null,null,null,null,null,null,null,null,null,null,null,null,null,null,null,null,null,null,null,null,null,null,null,null,null,"FLORAL COS SUPPLIES"]
[null,null,null,null,null,null,null,null,null,null,null,null,null,null,null,null,null,null,null,null,null,null,null,null,null,null,null,null,null,null,null,null,null,null,null,null,null,null,null,null,null,null,null,null,null,null,null,null,null,null,null,null,null,null,null,null,null,null,null,null,null,null,null,null,null,null,null,null,null,null,null,null,null,null,null,null,null,null,"PURCHASED SERVICES"]
[null,null,null,null,null,null,null,null,null,null,null,null,null,null,null,null,null,null,null,null,null,null,null,null,null,null,null,null,null,null,null,null,null,null,null,null,null,null,null,null,null,null,null,null,null,null,null,null,null,null,null,null,null,null,null,null,null,null,null,null,null,null,null,null,null,null,null,null,null,null,null,null,null,null,null,null,null,null,"STORE LINEN"]
[null,null,null,null,null,null,null,null,null,null,null,null,null,null,null,null,null,null,null,null,null,null,null,null,null,null,null,null,null,null,null,null,null,null,null,null,null,null,null,null,null,null,null,null,null,null,null,null,null,null,null,null,null,null,null,null,null,null,null,null,null,null,null,null,null,null,null,null,null,null,null,null,null,null,null,null,null,null,"STORE EXP SUPPLIES"]
[null,null,null,null,null,null,null,null,null,null,null,null,null,null,null,null,null,null,null,null,null,null,null,null,null,null,null,null,null,null,null,null,null,null,null,null,null,null,null,null,null,null,null,null,null,null,null,null,null,null,null,null,null,null,null,null,null,null,null,null,null,null,null,null,null,null,null,null,null,null,null,null,null,null,null,null,null,null,"GROCERY"]
[null,null,null,null,null,null,null,null,null,null,null,null,null,null,null,null,null,null,null,null,null,null,null,null,null,null,null,null,null,null,null,null,null,null,null,null,null,null,null,null,null,null,null,null,null,null,null,null,null,null,null,null,null,null,null,null,null,null,null,null,null,null,null,null,null,null,null,null,null,null,null,null,null,null,null,null,null,null,"H ITEM SOURCE 0"]
[null,null,null,null,null,null,null,null,null,null,null,null,null,null,null,null,null,null,null,null,null,null,null,null,null,null,null,null,null,null,null,null,null,null,null,null,null,null,null,null,null,null,null,null,null,null,null,null,null,null,null,null,null,null,null,null,null,null,null,null,null,null,null,null,null,null,null,null,null,null,null,null,null,null,null,null,null,null,"H ITEM SOURCE 10"]
[null,null,null,null,null,null,null,null,null,null,null,null,null,null,null,null,null,null,null,null,null,null,null,null,null,null,null,null,null,null,null,null,null,null,null,null,null,null,null,null,null,null,null,null,null,null,null,null,null,null,null,null,null,null,null,null,null,null,null,null,null,null,null,null,null,null,null,null,null,null,null,null,null,null,null,null,null,null,"H ITEM SOURCE 100"]
[null,null,null,null,null,null,null,null,null,null,null,null,null,null,null,null,null,null,null,null,null,null,null,null,null,null,null,null,null,null,null,null,null,null,null,null,null,null,null,null,null,null,null,null,null,null,null,null,null,null,null,null,null,null,null,null,null,null,null,null,null,null,null,null,null,null,null,null,null,null,null,null,null,null,null,null,null,null,"H ITEM SOURCE 102"]
[null,null,null,null,null,null,null,null,null,null,null,null,null,null,null,null,null,null,null,null,null,null,null,null,null,null,null,null,null,null,null,null,null,null,null,null,null,null,null,null,null,null,null,null,null,null,null,null,null,null,null,null,null,null,null,null,null,null,null,null,null,null,null,null,null,null,null,null,null,null,null,null,null,null,null,null,null,null,"H ITEM SOURCE 200"]
[null,null,null,null,null,null,null,null,null,null,null,null,null,null,null,null,null,null,null,null,null,null,null,null,null,null,null,null,null,null,null,null,null,null,null,null,null,null,null,null,null,null,null,null,null,null,null,null,null,null,null,null,null,null,null,null,null,null,null,null,null,null,null,null,null,null,null,null,null,null,null,null,null,null,null,null,null,null,"H ITEM SOURCE 201"]
[null,null,null,null,null,null,null,null,null,null,null,null,null,null,null,null,null,null,null,null,null,null,null,null,null,null,null,null,null,null,null,null,null,null,null,null,null,null,null,null,null,null,null,null,null,null,null,null,null,null,null,null,null,null,null,null,null,null,null,null,null,null,null,null,null,null,null,null,null,null,null,null,null,null,null,null,null,null,"H ITEM SOURCE 240"]
[null,null,null,null,null,null,null,null,null,null,null,null,null,null,null,null,null,null,null,null,null,null,null,null,null,null,null,null,null,null,null,null,null,null,null,null,null,null,null,null,null,null,null,null,null,null,null,null,null,null,null,null,null,null,null,null,null,null,null,null,null,null,null,null,null,null,null,null,null,null,null,null,null,null,null,null,null,null,"H ITEM SOURCE 300"]
[null,null,null,null,null,null,null,null,null,null,null,null,null,null,null,null,null,null,null,null,null,null,null,null,null,null,null,null,null,null,null,null,null,null,null,null,null,null,null,null,null,null,null,null,null,null,null,null,null,null,null,null,null,null,null,null,null,null,null,null,null,null,null,null,null,null,null,null,null,null,null,null,null,null,null,null,null,null,"H ITEM SOURCE 400"]
[null,null,null,null,null,null,null,null,null,null,null,null,null,null,null,null,null,null,null,null,null,null,null,null,null,null,null,null,null,null,null,null,null,null,null,null,null,null,null,null,null,null,null,null,null,null,null,null,null,null,null,null,null,null,null,null,null,null,null,null,null,null,null,null,null,null,null,null,null,null,null,null,null,null,null,null,null,null,"H ITEM SOURCE 500"]
[null,null,null,null,null,null,null,null,null,null,null,null,null,null,null,null,null,null,null,null,null,null,null,null,null,null,null,null,null,null,null,null,null,null,null,null,null,null,null,null,null,null,null,null,null,null,null,null,null,null,null,null,null,null,null,null,null,null,null,null,null,null,null,null,null,null,null,null,null,null,null,null,null,null,null,null,null,null,"H ITEM SOURCE 600"]
[null,null,null,null,null,null,null,null,null,null,null,null,null,null,null,null,null,null,null,null,null,null,null,null,null,null,null,null,null,null,null,null,null,null,null,null,null,null,null,null,null,null,null,null,null,null,null,null,null,null,null,null,null,null,null,null,null,null,null,null,null,null,null,null,null,null,null,null,null,null,null,null,null,null,null,null,null,null,"H ITEM SOURCE 607"]
[null,null,null,null,null,null,null,null,null,null,null,null,null,null,null,null,null,null,null,null,null,null,null,null,null,null,null,null,null,null,null,null,null,null,null,null,null,null,null,null,null,null,null,null,null,null,null,null,null,null,null,null,null,null,null,null,null,null,null,null,null,null,null,null,null,null,null,null,null,null,null,null,null,null,null,null,null,null,"H ITEM SOURCE 700"]
[null,null,null,null,null,null,null,null,null,null,null,null,null,null,null,null,null,null,null,null,null,null,null,null,null,null,null,null,null,null,null,null,null,null,null,null,null,null,null,null,null,null,null,null,null,null,null,null,null,null,null,null,null,null,null,null,null,null,null,null,null,null,null,null,null,null,null,null,null,null,null,null,null,null,null,null,null,null,"H ITEM SOURCE 800"]
[null,null,null,null,null,null,null,null,null,null,null,null,null,null,null,null,null,null,null,null,null,null,null,null,null,null,null,null,null,null,null,null,null,null,null,null,null,null,null,null,null,null,null,null,null,null,null,null,null,null,null,null,null,null,null,null,null,null,null,null,null,null,null,null,null,null,null,null,null,null,null,null,null,null,null,null,null,null,"H ITEM SOURCE 802"]
[null,null,null,null,null,null,null,null,null,null,null,null,null,null,null,null,null,null,null,null,null,null,null,null,null,null,null,null,null,null,null,null,null,null,null,null,null,null,null,null,null,null,null,null,null,null,null,null,null,null,null,null,null,null,null,null,null,null,null,null,null,null,null,null,null,null,null,null,null,null,null,null,null,null,null,null,null,null,"H ITEM SOURCE 803"]
[null,null,null,null,null,null,null,null,null,null,null,null,null,null,null,null,null,null,null,null,null,null,null,null,null,null,null,null,null,null,null,null,null,null,null,null,null,null,null,null,null,null,null,null,null,null,null,null,null,null,null,null,null,null,null,null,null,null,null,null,null,null,null,null,null,null,null,null,null,null,null,null,null,null,null,null,null,null,"H ITEM SOURCE 804"]
[null,null,null,null,null,null,null,null,null,null,null,null,null,null,null,null,null,null,null,null,null,null,null,null,null,null,null,null,null,null,null,null,null,null,null,null,null,null,null,null,null,null,null,null,null,null,null,null,null,null,null,null,null,null,null,null,null,null,null,null,null,null,null,null,null,null,null,null,null,null,null,null,null,null,null,null,null,null,"H ITEM SOURCE 805"]
[null,null,null,null,null,null,null,null,null,null,null,null,null,null,null,null,null,null,null,null,null,null,null,null,null,null,null,null,null,null,null,null,null,null,null,null,null,null,null,null,null,null,null,null,null,null,null,null,null,null,null,null,null,null,null,null,null,null,null,null,null,null,null,null,null,null,null,null,null,null,null,null,null,null,null,null,null,null,"H ITEM SOURCE 839"]
[null,null,null,null,null,null,null,null,null,null,null,null,null,null,null,null,null,null,null,null,null,null,null,null,null,null,null,null,null,null,null,null,null,null,null,null,null,null,null,null,null,null,null,null,null,null,null,null,null,null,null,null,null,null,null,null,null,null,null,null,null,null,null,null,null,null,null,null,null,null,null,null,null,null,null,null,null,null,"H ITEM SOURCE 900"]
[null,null,null,null,null,null,null,null,null,null,null,null,null,null,null,null,null,null,null,null,null,null,null,null,null,null,null,null,null,null,null,null,null,null,null,null,null,null,null,null,null,null,null,null,null,null,null,null,null,null,null,null,null,null,null,null,null,null,null,null,null,null,null,null,null,null,null,null,null,null,null,null,null,null,null,null,null,null,"H ITEM SOURCE 6062"]
[]
[null,null,null,null,null,null,null,null,null,null,null,null,null,null,null,null,null,null,null,null,null,null,null,null,null,null,null,null,null,null,null,null,null,null,null,null,null,null,null,null,null,null,null,null,null,null,null,null,null,null,null,null,null,null,null,null,null,null,null,null,null,null,null,null,null,null,null,null,null,null,null,null,null,null,null,null,null,null,"NONE"]
[null,null,null,null,null,null,null,null,null,null,null,null,null,null,null,null,null,null,null,null,null,null,null,null,null,null,null,null,null,null,null,null,null,null,null,null,null,null,null,null,null,null,null,null,null,null,null,null,null,null,null,null,null,null,null,null,null,null,null,null,null,null,null,null,null,null,null,null,null,null,null,null,null,null,null,null,null,null,"KeHe Dry"]
[null,null,null,null,null,null,null,null,null,null,null,null,null,null,null,null,null,null,null,null,null,null,null,null,null,null,null,null,null,null,null,null,null,null,null,null,null,null,null,null,null,null,null,null,null,null,null,null,null,null,null,null,null,null,null,null,null,null,null,null,null,null,null,null,null,null,null,null,null,null,null,null,null,null,null,null,null,null,"KeHe Frozen"]

{"sheet":"8 DSD Store Assortment","index":8,"n_rows":6,"n_cols":7,"rows_kept":6,"cut":false,"hidden":false,"merged":[[0,0,0,7],[5,0,5,7],[1,0,2,7]]}
["DSD VENDORS ONLY"]
["Please indicate SEG banners to be serviced:"]
[]
["WINN-DIXIE",null,"BI-LO",null,"HARVEYS",null,"FRESCO Y MAS"]
[]
["Please list store numbers below to be serviced if servicing only a portion of a banner:"]

{"sheet":"DROP DOWN BOX SOURCE","index":9,"n_rows":372,"n_cols":26,"rows_kept":372,"cut":false,"hidden":true,"merged":[]}
["DEPARTMENT (DO NOT SORT LIST)","DAYS TO UPDATE CATEGORY (DO NOT SORT LIST)","PLANOGRAM UPDATE TYPE","CATEGORY OWNER","CATEGORIES","1Temporary Authorization","2Master Assortment Authorization",null,null,null,null,null,null,null,null,null,null,null,null,null,null,null,null,null,null,{"$f":"IF(ISERROR(VLOOKUP(#REF!,'DROP DOWN BOX SOURCE'!$A:$B,2,)),\"N/A\",VLOOKUP(#REF!,'DROP DOWN BOX SOURCE'!$A:$B,2,))","v":"N/A"}]
["N/A","N/A","N/A","AMANDA BLAKESLEE","ADULT INCONTINENCE","N/A","N/A",null,null,null,null,null,null,null,null,null,null,null,null,null,null,null,null,null,null,{"$f":"IF(ISERROR(VLOOKUP('WINN-DIXIE'!$C$14,'DROP DOWN BOX SOURCE'!$A:$B,2,)),\"N/A\",VLOOKUP('WINN-DIXIE'!$C$14,'DROP DOWN BOX SOURCE'!$A:$B,2,))","v":"N/A"}]
["GROCERY",77,"NEW ITEM CUT IN (NICI)","ANDY ANDREWS","ADULT NUTRITION","1 DISCONTINUED_ALL BANNERS & DC'S","2 BAKERY_ALL BANNERS & DC'S",null,null,null,null,null,null,null,null,null,null,null,null,null,null,null,null,null,null,{"$f":"IF(ISERROR(VLOOKUP(#REF!,'DROP DOWN BOX SOURCE'!$A:$B,2,)),\"N/A\",VLOOKUP(#REF!,'DROP DOWN BOX SOURCE'!$A:$B,2,))","v":"N/A"}]
["DAIRY",77,"***CATEGORY BUSINESS PLAN (CBP)","BARBARA TYREE","ADULT PARTY","1 SHIPPER-PALLET_ALL BANNERS & DC'S","2 DELI_ALL BANNERS & DC'S"]
["FROZEN",77,"***VENDOR FUNDED PROJECT","BRAD MULLINAX","AIR CARE","**STORE SPECIFIC ZPOG","2 DSD AIR FILTERS_ALL BANNERS & DC'S"]
["GENERAL MERCHANDISE",105,"CODE and/or UPC CHANGE ONLY (CC)","BRADLEY HANSMAN","AIR FILTERS",null,"2 DSD BEACH_ALL BANNERS & DC'S"]
["MEAT",42,null,"BROOKE LEVER","ANALGESICS",null,"2 DSD BEER_ALL BANNERS & DC'S"]
["DELI",42,null,"CARONLINE CAGE","ASIAN",null,"2 DSD BREAD AND SWEET GOODS_ALL BANNERS & DC'S"]
["BAKERY",42,null,"CASSIE KIRKLAND","AUTOMOTIVE",null,"2 DSD CHIPS_ALL BANNERS & DC'S"]
["PRODUCE",42,null,"CHERI SHULLEK","BABY ACCESSORIES -INFANT",null,"2 DSD CLIPS STRIPS_ALL BANNERS & DC'S"]
["NATURAL/ORGANIC",77,null,"CHERYL SEBER","BABY ACCESSORIES -TODDLER",null,"2 DSD CSD_ALL BANNERS & DC'S"]
["LOCAL",77,null,"CHIRSTOPHER KASZANITS","BABY DIAPERS",null,"2 DSD KOSHER_ALL BANNERS & DC'S"]
["TAXABLE GROCERY",77,null,"CHRIS ATTER","BABY FOOD",null,"2 DSD LOCAL_ALL BANNERS & DC'S"]
[null,null,null,"CHRISOPHER POTESTIO","BABY FORMULA",null,"2 DSD PRODUCE_ALL BANNERS & DC'S"]
[null,null,null,"CORIN OLDHAM","BABY HBC",null,"2 DSD SNACKS_ALL BANNERS & DC'S"]
["dropdown426",null,null,"DANIEL RYNDAK","BABY HYDRATION",null,"2 DSD SPIRITS_ALL BANNERS & DC'S"]
[null,null,null,"DANIELLE PEIRCE","BABY WIPES",null,"2 FIRELOGS_ALL BANNERS & DC'S"]
[null,null,null,"DAVID DAWSON","BADIA SPICES",null,"2 HARVEY DSD_TMM VENDOR_ALL"]
[null,null,null,"DEBORA DEEMS","BAKEWARE",null,"2 HURRICANE EMERGENCY_ALL BANNERS & DC'S"]
[null,null,null,"DEREK FREDERICKSON","BAKING NEEDS",null,"2 INDIAN_ALL BANNERS & DC'S"]
[null,null,null,"DEREK LOTT","BARWARE",null,"2 MARKET SEAFOOD_ALL BANNERS & DC'S"]
[null,null,null,"DEWAYNE RABON","BATH CARE",null,"2 MEAT_ALL BANNERS & DC'S"]
[null,null,null,"DOUG OWENBY","BATH PUFFS",null,"2 OWN BRANDS CC_ALL BANNERS & DCs"]
[null,null,null,"EMISAEL ALVAREZ","BATH TISSUE",null,"2 PHARMACY_ALL BANNERS & DC'S"]
[null,null,null,"FRANK THURLOW","BATTERIES",null,"2 SEASONAL CANDY_ALL BANNERS & DC'S"]
[null,null,null,"GARY EVANS","BEER",null,"2 SEASONAL DAIRY FROZEN_ALL BANNERS & DC'S"]
[null,null,null,"GREGORY MINADEO","BETTER FOR YOU - CHIPS",null,"2 SEASONAL GMD_ALL BANNERS & DC'S"]
[null,null,null,"HEATH NIXON","BETTER FOR YOU - COOKIES & CRACKERS",null,"2 SEASONAL GROCERY_ALL BANNERS AND DC'S"]
[null,null,null,"IAN SCHMID","BLEACH",null,"2 TOBACCO_ALL BANNERS & DC'S"]
[null,null,null,"JAMES BALISTRIERE","BOSNIAN",null,"2 UNFI_ALL BANNERS & DC'S"]
[null,null,null,"JANE HOUGHTON","BOX DINNERS"]
[null,null,null,"JANEL PLITT","BRAZILIAN"]
[null,null,null,"JASON REID","BREAD"]
[null,null,null,"JEFF ZUNICH","BRITISH"]
[null,null,null,"JENNIFER BRYNER","BUTTER & MARGARINE"]
[null,null,null,"JENNYFER DICKENSON","CAJUN SPICES"]
[null,null,null,"JEREMY LATRAVERSE","CAKE & BAKING MIXES"]
[null,null,null,"JERRY WEAVER","CAKE DECORATIONS"]
[null,null,null,"JOHN JANSEN","CANDLES"]
[null,null,null,"JOSH PIATEK","CANDY - CHECKLANE"]
[null,null,null,"KAREN LAGARDE","CANDY - INLINE"]
[null,null,null,"KATIE STOKES","CANDY - SPECIALTY"]
[null,null,null,"KATRINA PETERSON","CANNED & BOTTLED NECTAR"]
[null,null,null,"KELLY FAIRBROTHER","CANNED BEANS"]
[null,null,null,"KRISTINE HOUSEND","CANNED CHILI"]
[null,null,null,"LARRY ISOM","CANNED FISH"]
[null,null,null,"LESLIE MEYER","CANNED FRUIT"]
[null,null,null,"LINDSEY CAHILL","CANNED MEAT"]
[null,null,null,"MICHAEL CARTER","CANNED MILK"]
[null,null,null,"MICHAEL HINKLE","CANNED PASTA"]
[null,null,null,"MICHELLE MORRELL","CANNED TOMATOES"]
[null,null,null,"MIKE BOVE","CANNED VEGETABLES"]
[null,null,null,"MIKE RUSSELL","CANNING"]
[null,null,null,"NATASHA HAMILTON","CANNISTER SNACKS"]
[null,null,null,"NICOLE HATFIELD","CARRIBEAN COOKWARE"]
[null,null,null,"NICOLE LUCIANO","CAT FOOD - BAGGED"]
[null,null,null,"PAIGE LANGENDERFER","CAT FOOD - CANNED"]
[null,null,null,"PAUL TREMBLAY","CAT LITTER"]
[null,null,null,"PAULINA DESSOFFY","CELLPHONES"]
[null,null,null,"PETER REDMOND","CENTRAL AMERICAN"]
[null,null,null,"RICHARD STURGIL","CEREAL - BAGGED & INDIVIDUAL"]
[null,null,null,"ROLAND LARINO","CEREAL - BETTER FOR YOU"]
[null,null,null,"RUTH MCLENNAN","CEREAL - MAINSTREAM"]
[null,null,null,"SARAH GROVES","CHARCOAL & BBQ TOOLS"]
[null,null,null,"SCOTT WYNN","CHEESE"]
[null,null,null,"SEMON CULL","COCKTAILS MIXERS"]
[null,null,null,"SHAWN GARVERICH","COCOA"]
[null,null,null,"SHAWN SAVAGE","COFFEE - MAINSTREAM"]
[null,null,null,"STACEY MCSHANE","COFFEE - PREMIUM"]
[null,null,null,"STEPHANEY GIPSON","COFFEE - SINGLE SERVE"]
[null,null,null,"SUSAN MOORE","COFFEE CREAMERS"]
[null,null,null,"TAYLOR JACKSON","COFFEE FILTERS & ACCESSORIES"]
[null,null,null,"THERESA MUNDER","CONDIMENTS - KETCHUP & HOT SAUCE"]
[null,null,null,"TIFANIE KING","CONDIMENTS - MAYONNAISE & MUSTARD"]
[null,null,null,"TIM HORTON","CONDIMENTS - MEAT SAUCES"]
[null,null,null,"TIM MCNAMARA","CONDIMENTS - SALAD DRESSINGS & CROUTONS"]
[null,null,null,"TRICIA ZYLA","CONVENIENCE BREAKFAST"]
[null,null,null,"TROY BUEHNER","COOKIES"]
[null,null,null,"VERONA MATTHEW","COOKING OILS"]
[null,null,null,"VICTORIA LEVY","COOKWARE"]
[null,null,null,"WALT GROSSMAN","COSMETICS - ASSORTED NAILS"]
[null,null,null,"WHITNEE DASH","COSMETICS - COLORMATES"]
[null,null,null,"WILLIAM ADAIR","COSMETICS - COVER GIRL"]
[null,null,null,null,"COSMETICS - ETHNIC BLACK"]
[null,null,null,null,"COSMETICS - L'OREAL"]
[null,null,null,null,"COSMETICS - MAYBELLINE"]
[null,null,null,null,"COSMETICS - MILANI"]
[null,null,null,null,"COSMETICS - MISCELLANOUS"]
[null,null,null,null,"COSMETICS - PUFFS"]
[null,null,null,null,"COSMETICS - QUEEN"]
[null,null,null,null,"COSMETICS - RIMMEL"]
[null,null,null,null,"COSMETICS - SALLY HANSEN"]
[null,null,null,null,"COSMETICS - STUDIO BASICS"]
[null,null,null,null,"COSMETICS - TOPCARE IMPLEMENTS"]
[null,null,null,null,"COSMETICS - WD COSMETICS"]
[null,null,null,null,"COSMETICS - WET N WILD"]
[null,null,null,null,"CRACKERS"]
[null,null,null,null,"CREAM CHEESE & BAGEL"]
[null,null,null,null,"CSD - CHEK"]
[null,null,null,null,"CSD - COCA-COLA"]
[null,null,null,null,"CSD - DPSG"]
[null,null,null,null,"CSD - PEPSI"]
[null,null,null,null,"CSD - SPECIALTY"]
[null,null,null,null,"CUBAN CRACKERS"]
[null,null,null,null,"CULTURED"]
[null,null,null,null,"CUPS & PLATES"]
[null,null,null,null,"DEODORANT"]
[null,null,null,null,"DIABETIC CARE"]
[null,null,null,null,"DIGESTIVE"]
[null,null,null,null,"DISH DETERGENTS"]
[null,null,null,null,"DOG FOOD - BAGGED"]
[null,null,null,null,"DOG FOOD - CANNED"]
[null,null,null,null,"DOG TREATS"]
[null,null,null,null,"DOLLAR - GMD"]
[null,null,null,null,"DOLLAR - GROCERY"]
[null,null,null,null,"DOLLAR - PET SUPPLIES"]
[null,null,null,null,"DRIED FRUIT"]
[null,null,null,null,"DRINK MIXERS"]
[null,null,null,null,"DRY BEANS"]
[null,null,null,null,"EGGS"]
[null,null,null,null,"ENERGY DRINKS"]
[null,null,null,null,"ENHANCED KITCHEN TOOLS"]
[null,null,null,null,"ETHNIC - AIR FRESHNER"]
[null,null,null,null,"ETHNIC - BEAUTY"]
[null,null,null,null,"ETHNIC - HAIR ACCESSORIES"]
[null,null,null,null,"ETHNIC - HAIR CARE"]
[null,null,null,null,"ETHNIC -NATURAL BEAUTY"]
[null,null,null,null,"EYE & EAR CARE"]
[null,null,null,null,"FABRIC SOFTNER"]
[null,null,null,null,"FACE CARE"]
[null,null,null,null,"FACIAL TISSUE"]
[null,null,null,null,"FAMILY PLANNING"]
[null,null,null,null,"FEMININE HYGIENE"]
[null,null,null,null,"FIRELOGS"]
[null,null,null,null,"FIRST AID"]
[null,null,null,null,"FLOOR CARE"]
[null,null,null,null,"FLOOR CLEANERS"]
[null,null,null,null,"FLOOR WIPES"]
[null,null,null,null,"FLOUR & MEAL"]
[null,null,null,null,"FOILS BAGS WRAPS"]
[null,null,null,null,"FOILWARE"]
[null,null,null,null,"FOOD SERVICE"]
[null,null,null,null,"FOOD STORAGE"]
[null,null,null,null,"FOOT CARE"]
[null,null,null,null,"FRONT END GMD"]
[null,null,null,null,"FROZEN BISCUITS"]
[null,null,null,null,"FROZEN BREAD"]
[null,null,null,null,"FROZEN BREAKFAST"]
[null,null,null,null,"FROZEN CAKES"]
[null,null,null,null,"FROZEN CHICKEN"]
[null,null,null,null,"FROZEN DESSERT TOPPING"]
[null,null,null,null,"FROZEN FRUIT"]
[null,null,null,null,"FROZEN JUICE"]
[null,null,null,null,"FROZEN MARKET - BREAKFAST"]
[null,null,null,null,"FROZEN MARKET - BURGER"]
[null,null,null,null,"FROZEN MARKET - CHICKEN"]
[null,null,null,null,"FROZEN MARKET - SNACKS"]
[null,null,null,null,"FROZEN MEALS - MULTI SERVE"]
[null,null,null,null,"FROZEN MEALS - SINGLE SERVE"]
[null,null,null,null,"FROZEN MEATLESS"]
[null,null,null,null,"FROZEN NATURAL"]
[null,null,null,null,"FROZEN NOVELTIES"]
[null,null,null,null,"FROZEN PASTA"]
[null,null,null,null,"FROZEN PIES"]
[null,null,null,null,"FROZEN PIZZA"]
[null,null,null,null,"FROZEN POTATOES"]
[null,null,null,null,"FROZEN SEAFOOD"]
[null,null,null,null,"FROZEN SNACKS"]
[null,null,null,null,"FROZEN SWEET GOODS"]
[null,null,null,null,"FROZEN VEGETABLES"]
[null,null,null,null,"FRUIT SNACKS"]
[null,null,null,null,"GELATIN & PUDDING"]
[null,null,null,null,"GERMAN"]
[null,null,null,null,"GLASSWARE"]
[null,null,null,null,"GLOVES"]
[null,null,null,null,"GMD CLEANERS"]
[null,null,null,null,"GRAB & GO"]
[null,null,null,null,"GRAVY MIXES"]
[null,null,null,null,"GREEK"]
[null,null,null,null,"GROOMING"]
[null,null,null,null,"GUAVA PASTE"]
[null,null,null,null,"HAIR ACCESSORIES"]
[null,null,null,null,"HAIR APPLIANCES"]
[null,null,null,null,"HAIR CARE - PREMIUM"]
[null,null,null,null,"HAIR CARE - SALON"]
[null,null,null,null,"HAIR COLOR"]
[null,null,null,null,"HAITIAN"]
[null,null,null,null,"HARD BREADS"]
[null,null,null,null,"HARDWARE"]
[null,null,null,null,"HEALTHY LIFESTYLE"]
[null,null,null,null,"HISPANIC"]
[null,null,null,null,"HISPANIC - BEAUTY"]
[null,null,null,null,"HISPANIC - BEVERAGE"]
[null,null,null,null,"HISPANIC - CANDLES"]
[null,null,null,null,"HISPANIC - CHEESE"]
[null,null,null,null,"HISPANIC - FROZEN FOOD"]
[null,null,null,null,"HISPANIC - HBC"]
[null,null,null,null,"HISPANIC - OTC"]
[null,null,null,null,"HISPANIC EXPORT CRACKERS"]
[null,null,null,null,"HOME HEALTHCARE"]
[null,null,null,null,"HOME ORGINZATION"]
[null,null,null,null,"HOSIERY"]
[null,null,null,null,"HOT CEREAL"]
[null,null,null,null,"HOUSEHOLD CLEANERS"]
[null,null,null,null,"HYDRATION SET"]
[null,null,null,null,"ICE - BAGGED"]
[null,null,null,null,"ICE CREAM"]
[null,null,null,null,"ICE CREAM - BLUE BELL"]
[null,null,null,null,"ICE CREAM - BLUE BUNNY"]
[null,null,null,null,"ICE CREAM - BREYERS"]
[null,null,null,null,"ICE CREAM - FRIENDLIES"]
[null,null,null,null,"ICE CREAM - MAYFIELD"]
[null,null,null,null,"ICE CREAM - NESTLE"]
[null,null,null,null,"ICE CREAM - NEW ORLEANS REGIONAL"]
[null,null,null,null,"ICE CREAM - PRESTIGE"]
[null,null,null,null,"ICE CREAM - SEG"]
[null,null,null,null,"ICE CREAM - SEG ESSENTIALS"]
[null,null,null,null,"ICE CREAM - SUPER PREMIUM"]
[null,null,null,null,"ICE CREAM - VALENTINI"]
[null,null,null,null,"ICE CREAM - YOGURT"]
[null,null,null,null,"ICE CREAM CONES & TOPPINGS"]
[null,null,null,null,"INDIAN"]
[null,null,null,null,"INSECTICIDES"]
[null,null,null,null,"INSTANT POTATOES"]
[null,null,null,null,"IRONING"]
[null,null,null,null,"ISOTONICS"]
[null,null,null,null,"ITALIAN UPSCALE"]
[null,null,null,null,"JAMAICAN"]
[null,null,null,null,"JUICE - BOTTLED"]
[null,null,null,null,"JUICE - MULTIPACK"]
[null,null,null,null,"KITCHEN APPLIANCES"]
[null,null,null,null,"KITCHEN GADGETS"]
[null,null,null,null,"KITCHEN TEXTILES"]
[null,null,null,null,"KOSHER"]
[null,null,null,null,"KOSHER - DAIRY"]
[null,null,null,null,"KOSHER - FROZEN"]
[null,null,null,null,"LARGE PLASTICS"]
[null,null,null,null,"LATIN AMERICAN"]
[null,null,null,null,"LAUNDRY DETERGENT"]
[null,null,null,null,"LAWN & GARDEN"]
[null,null,null,null,"LIGHTING & ELECTRICAL"]
[null,null,null,null,"MAKE YOUR OWN PIZZA"]
[null,null,null,null,"MEAL PREPARATION"]
[null,null,null,null,"MEAT GADGETS"]
[null,null,null,null,"MEAT SNACKS"]
[null,null,null,null,"MEXICAN - SPECIALTY"]
[null,null,null,null,"MEXICAN - TEX MEX"]
[null,null,null,null,"MICROWAVE PASTA"]
[null,null,null,null,"MICROWAVE POPCORN"]
[null,null,null,null,"MILK & CREAMERS"]
[null,null,null,null,"MULTI-PACK COOKIES & CRACKERS"]
[null,null,null,null,"NATURAL - ALLERGEN FREE"]
[null,null,null,null,"NATURAL - BAKING"]
[null,null,null,null,"NATURAL - BETTER FOR YOU CHIPS"]
[null,null,null,null,"NATURAL - CANDY"]
[null,null,null,null,"NATURAL - CANNED & DRIED FRUIT"]
[null,null,null,null,"NATURAL - CEREAL"]
[null,null,null,null,"NATURAL - CLEANERS"]
[null,null,null,null,"NATURAL - CONDIMENTS"]
[null,null,null,null,"NATURAL - COOKIES & CRACKERS"]
[null,null,null,null,"NATURAL - DAIRY MEAT & CHEESE ALTERNATIVES"]
[null,null,null,null,"NATURAL - FACE CARE"]
[null,null,null,null,"NATURAL - FRONT END"]
[null,null,null,null,"NATURAL - FROZEN FOOD"]
[null,null,null,null,"NATURAL - FRUIT & NUT SPREADS"]
[null,null,null,null,"NATURAL - FUNCTIONAL BEVERAGES"]
[null,null,null,null,"NATURAL - GLUTEN FREE"]
[null,null,null,null,"NATURAL - GRAINS & ENTREES"]
[null,null,null,null,"NATURAL - HAIR & BODY"]
[null,null,null,null,"NATURAL - HOT CEREAL"]
[null,null,null,null,"NATURAL - JUICE"]
[null,null,null,null,"NATURAL - NON-DAIRY BEVRAGES"]
[null,null,null,null,"NATURAL - NUTRITION BARDS"]
[null,null,null,null,"NATURAL - PACKAGES SNACKS"]
[null,null,null,null,"NATURAL - PASTA & SAUCES"]
[null,null,null,null,"NATURAL - SALTY SNACKS"]
[null,null,null,null,"NATURAL - SHELF STABLE BEVERAGE"]
[null,null,null,null,"NATURAL - SOUP"]
[null,null,null,null,"NATURAL - SPECIALTY ICE CREAM"]
[null,null,null,null,"NATURAL - TEA & COFFEE"]
[null,null,null,null,"NATURAL - VITAMINS & SUPPLEMENTS"]
[null,null,null,null,"NATURAL VITAMINS"]
[null,null,null,null,"NEW AGE BEVERAGE"]
[null,null,null,null,"OLIVE OILS"]
[null,null,null,null,"ON THE GO SNACKS"]
[null,null,null,null,"ORAL CARE"]
[null,null,null,null,"PACKAGED DELI MEATS"]
[null,null,null,null,"PANCAKE MIXES & SYRUP"]
[null,null,null,null,"PAPER NAPKINS"]
[null,null,null,null,"PAPER TOWELS"]
[null,null,null,null,"PASSOVER"]
[null,null,null,null,"PASTA - DRY"]
[null,null,null,null,"PASTA - SPECIALITY"]
[null,null,null,null,"PASTA SAUCE"]
[null,null,null,null,"PEANUT BUTTER, JELLY, JAMS"]
[null,null,null,null,"PEPPERIDGE FARMS"]
[null,null,null,null,"PERSONAL CLEANSING"]
[null,null,null,null,"PERUVIAN"]
[null,null,null,null,"PET GMD - ACCESSORIES"]
[null,null,null,null,"PET GMD - BEDS & PUPPY PADS"]
[null,null,null,null,"PET GMD - RAWHIDE"]
[null,null,null,null,"PET GMD - TOYS"]
[null,null,null,null,"PICKLES & OLIVES"]
[null,null,null,null,"PLASTIC DINNERWARE"]
[null,null,null,null,"POOL CHEMICALS"]
[null,null,null,null,"POWDERED SOFT DRINK"]
[null,null,null,null,"PRODUCE - BAGGED SALAD"]
[null,null,null,null,"PRODUCE - JUICE"]
[null,null,null,null,"PRODUCE - SALAD DRESSING"]
[null,null,null,null,"PUDDING"]
[null,null,null,null,"REFRIGERATED DOUGH"]
[null,null,null,null,"REFRIGERATED JUICE"]
[null,null,null,null,"REGIONAL & LOCAL"]
[null,null,null,null,"RESPIRATORY"]
[null,null,null,null,"RESTRICTED DIET & GLUTEN FREE"]
[null,null,null,null,"RICE"]
[null,null,null,null,"RICE - BOXED"]
[null,null,null,null,"RICE CAKES"]
[null,null,null,null,"RTD COFFEE"]
[null,null,null,null,"RTD TEA"]
[null,null,null,null,"RTE POPCORN"]
[null,null,null,null,"RUG DOCTOR"]
[null,null,null,null,"SAZON"]
[null,null,null,null,"SEAFOOD SEASONING"]
[null,null,null,null,"SEWING & DYES"]
[null,null,null,null,"SHAMPOO & FIXATIVE"]
[null,null,null,null,"SHOE CARE"]
[null,null,null,null,"SKIN CARE"]
[null,null,null,null,"SMALL ANIMAL & AQUATIC"]
[null,null,null,null,"SMOKING CESSATION"]
[null,null,null,null,"SNACKS NUTS"]
[null,null,null,null,"SOAP PADS"]
[null,null,null,null,"SOUP - BROTH"]
[null,null,null,null,"SOUP - CONDENSED"]
[null,null,null,null,"SOUP - DRY"]
[null,null,null,null,"SOUP - RTS"]
[null,null,null,null,"SOUTH AMERICAN"]
[null,null,null,null,"SPECIALITY - COOKIES & CRACKERS"]
[null,null,null,null,"SPECIALTY POPCORN"]
[null,null,null,null,"SPICES"]
[null,null,null,null,"SPORTS MEDICINE"]
[null,null,null,null,"SS RTE ENTRÉE"]
[null,null,null,null,"STATIONARY"]
[null,null,null,null,"STRENGTH & ENERGY"]
[null,null,null,null,"STUFFING"]
[null,null,null,null,"SUGAR"]
[null,null,null,null,"SUN CARE"]
[null,null,null,null,"SUPERBRAND DRINKS"]
[null,null,null,null,"SWEET GOODS"]
[null,null,null,null,"TEA"]
[null,null,null,null,"TOASTER PASTRIES"]
[null,null,null,null,"TOBACCO - CIGARETTES"]
[null,null,null,null,"TOBACCO - OTHER TOBACCO PRODUCT"]
[null,null,null,null,"TOYS"]
[null,null,null,null,"TRASH BAGS"]
[null,null,null,null,"TRAVEL SIZE"]
[null,null,null,null,"VAPORIZER & HUMIDIFIER"]
[null,null,null,null,"VENEZUELAN"]
[null,null,null,null,"VINEGAR"]
[null,null,null,null,"VITAMINS"]
[null,null,null,null,"WAREHOUSE CHIPS"]
[null,null,null,null,"WAREHOUSE SNACKS"]
[null,null,null,null,"WATER - ENHANCED"]
[null,null,null,null,"WATER - GALLON"]
[null,null,null,null,"WATER - PET"]
[null,null,null,null,"WATER - SPARKLING"]
[null,null,null,null,"WATER SOFTNER"]
[null,null,null,null,"WEIGHT MANAGEMENT"]
[null,null,null,null,"WILD BIRD"]
[null,null,null,null,"WINE"]
[null,null,null,null,"YOGURT"]
[null,null,null,null,"YOGURT - SPECIALTY"]

{"sheet":"9 Shipper Componet form","index":10,"n_rows":26,"n_cols":10,"rows_kept":26,"cut":false,"hidden":false,"merged":[[6,9,7,9],[0,0,0,6],[6,0,7,0],[6,1,7,1],[6,2,7,2],[6,3,7,3],[6,4,7,4],[6,5,7,5],[6,6,7,6]]}
["SHIPPER COMPONENT WORKSHEET"]
[null,"Display/Shpr","Display/Shpr",null,null,"Qty per","Display",null,null,"Display"]
[null," CODE","UPC","DISPLAY / PREPACK  DESCRIPTION",null,"Shipper","Cost",null,null,"Retail"]
[null,null,null,null,null,{"$f":"SUM(E9:E24)","v":0},{"$f":"SUM(G9:G24)","v":0},null,null,{"$f":"SUM(J9:J24)","v":0}]
[]
["DISPLAY CONTENTS"]
["Item Bar Code Image","SEG Code #","UPC "," Description","Qty per Display","Item    Cost","Display Cost",null,"Item","Display Retail"]
[null,null,null,null,null,null,null,null,"Retail"]
[null,null,null,null,null,null,{"$f":"E9*F9","v":0},null,null,{"$f":"I9*E9","v":0}]
[null,null,null,null,null,null,{"$f":"E10*F10","v":0},null,null,{"$f":"I10*E10","v":0}]
[null,null,null,null,null,null,0,null,null,0]
[null,null,null,null,null,null,0,null,null,0]
[null,null,null,null,null,null,0,null,null,0]
[null,null,null,null,null,null,0,null,null,0]
[null,null,null,null,null,null,0,null,null,0]
[null,null,null,null,null,null,0,null,null,0]
[null,null,null,null,null,null,0,null,null,0]
[null,null,null,null,null,null,0,null,null,0]
[null,null,null,null,null,null,0,null,null,0]
[null,null,null,null,null,null,0,null,null,0]
[null,null,null,null,null,null,0,null,null,0]
[null,null,null,null,null,null,0,null,null,0]
[null,null,null,null,null,null,0,null,null,0]
[null,null,null,null,null,null,0,null,null,0]
[null,null,null,null,null,null,{"$f":"IF(E25>0,E25*F25,\" \")","v":" "}]
[null,null,null,null,null,null," "]

{"sheet":"10 SLU_Requests","index":11,"n_rows":118,"n_cols":27,"rows_kept":118,"cut":false,"hidden":false,"merged":[[95,26,100,26],[96,8,97,8],[96,9,97,9],[97,17,98,17],[97,18,98,18],[97,19,98,19],[97,20,98,20],[95,17,96,17],[95,18,96,18],[95,19,96,19],[95,20,96,20],[95,21,96,21],[95,22,96,22],[99,20,100,20],[99,21,100,21],[99,22,100,22],[99,23,100,23],[99,24,100,24],[99,25,100,25],[97,21,98,21],[97,22,98,22],[97,23,98,23],[97,24,98,24],[97,25,98,25],[95,23,96,23],[95,24,96,24],[95,25,96,25],[95,0,100,0],[95,1,100,1],[95,2,100,2],[95,3,100,3],[95,4,100,4],[95,5,100,5],[99,8,100,8],[99,9,100,9],[95,6,100,6],[95,7,100,7],[95,11,100,11],[95,12,100,12],[95,13,100,13],[95,14,100,14],[99,17,100,17],[99,18,100,18],[99,19,100,19],[88,26,93,26],[89,8,90,8],[89,9,90,9],[90,17,91,17],[90,18,91,18],[90,19,91,19],[90,20,91,20],[88,17,89,17],[88,18,89,18],[88,19,89,19],[88,20,89,20],[88,21,89,21],[88,22,89,22],[92,20,93,20],[92,21,93,21],[92,22,93,22],[92,24,93,24],[92,25,93,25],[90,21,91,21],[90,22,91,22],[90,23,91,23],[90,24,91,24],[90,25,91,25],[88,0,93,0],[88,1,93,1],[88,2,93,2],[88,3,93,3],[88,4,93,4],[88,5,93,5],[92,8,93,8],[92,9,93,9],[92,17,93,17],[83,22,84,22],[83,23,84,23],[83,24,84,24],[83,25,84,25],[88,6,93,6],[88,7,93,7],[88,11,93,11],[88,12,93,12],[88,13,93,13],[88,14,93,14],[92,18,93,18],[92,19,93,19],[88,23,89,23],[88,24,89,24],[88,25,89,25],[85,17,86,17],[85,18,86,18],[85,19,86,19],[81,6,86,6],[81,7,86,7],[81,14,86,14],[81,23,82,23],[81,24,82,24],[92,23,93,23],[81,25,82,25],[81,26,86,26],[82,8,83,8],[82,9,83,9],[83,17,84,17],[83,18,84,18],[83,19,84,19],[83,20,84,20],[81,17,82,17],[81,18,82,18],[81,19,82,19],[81,20,82,20],[81,21,82,21],[81,22,82,22],[85,20,86,20],[85,21,86,21],[85,22,86,22],[85,23,86,23],[85,24,86,24],[81,11,86,11],[81,12,86,12],[81,13,86,13],[85,25,86,25],[83,21,84,21],[81,0,86,0],[81,1,86,1],[81,2,86,2],[81,3,86,3],[81,4,86,4],[81,5,86,5],[85,8,86,8],[85,9,86,9],[74,26,79,26],[75,8,76,8],[75,9,76,9],[76,17,77,17],[76,18,77,18],[76,19,77,19],[76,20,77,20],[74,17,75,17],[74,18,75,18],[74,19,75,19],[74,20,75,20],[74,21,75,21],[74,22,75,22],[78,20,79,20],[78,21,79,21],[78,22,79,22],[78,24,79,24],[78,25,79,25],[76,21,77,21],[76,22,77,22],[76,23,77,23],[76,24,77,24],[76,25,77,25],[74,0,79,0],[74,1,79,1],[74,2,79,2],[74,3,79,3],[74,4,79,4],[74,5,79,5],[78,8,79,8],[78,9,79,9],[78,17,79,17],[71,25,72,25],[69,21,70,21],[69,22,70,22],[69,23,70,23],[69,24,70,24],[69,25,70,25],[74,6,79,6],[74,7,79,7],[74,11,79,11],[74,12,79,12],[74,13,79,13],[74,14,79,14],[78,18,79,18],[78,19,79,19],[74,23,75,23],[74,24,75,24],[74,25,75,25],[71,17,72,17],[71,18,72,18],[71,19,72,19],[67,6,72,6],[67,7,72,7],[67,14,72,14],[78,23,79,23],[67,23,68,23],[67,24,68,24],[67,25,68,25],[67,26,72,26],[68,8,69,8],[68,9,69,9],[69,17,70,17],[69,18,70,18],[69,19,70,19],[69,20,70,20],[67,17,68,17],[67,18,68,18],[67,19,68,19],[67,20,68,20],[67,21,68,21],[67,22,68,22],[71,20,72,20],[71,21,72,21],[71,22,72,22],[71,23,72,23],[71,24,72,24],[67,11,72,11],[67,12,72,12],[67,13,72,13],[67,0,72,0],[67,1,72,1],[67,2,72,2],[67,3,72,3],[67,4,72,4],[67,5,72,5],[71,8,72,8],[71,9,72,9],[60,26,65,26],[61,8,62,8],[61,9,62,9],[62,17,63,17],[62,18,63,18],[62,19,63,19],[62,20,63,20],[60,17,61,17],[60,18,61,18],[60,19,61,19],[60,20,61,20],[60,21,61,21],[60,22,61,22],[64,20,65,20],[64,21,65,21],[64,22,65,22],[64,24,65,24],[64,25,65,25],[62,21,63,21],[62,22,63,22],[62,23,63,23],[62,24,63,24],[62,25,63,25],[60,0,65,0],[60,1,65,1],[60,2,65,2],[60,3,65,3],[60,4,65,4],[60,5,65,5],[64,8,65,8],[64,9,65,9],[64,17,65,17],[57,25,58,25],[55,21,56,21],[55,22,56,22],[55,23,56,23],[55,24,56,24],[55,25,56,25],[60,6,65,6],[60,7,65,7],[60,11,65,11],[60,12,65,12],[60,13,65,13],[60,14,65,14],[64,18,65,18],[64,19,65,19],[60,23,61,23],[60,24,61,24],[60,25,61,25],[57,17,58,17],[57,18,58,18],[57,19,58,19],[53,6,58,6],[53,7,58,7],[53,14,58,14],[64,23,65,23],[53,23,54,23],[53,24,54,24],[53,25,54,25],[53,26,58,26],[54,8,55,8],[54,9,55,9],[55,17,56,17],[55,18,56,18],[55,19,56,19],[55,20,56,20],[53,17,54,17],[53,18,54,18],[53,19,54,19],[53,20,54,20],[53,21,54,21],[53,22,54,22],[57,20,58,20],[57,21,58,21],[57,22,58,22],[57,23,58,23],[57,24,58,24],[53,11,58,11],[53,12,58,12],[53,13,58,13],[53,0,58,0],[53,1,58,1],[53,2,58,2],[53,3,58,3],[53,4,58,4],[53,5,58,5],[57,8,58,8],[57,9,58,9],[46,26,51,26],[47,8,48,8],[47,9,48,9],[48,17,49,17],[48,18,49,18],[48,19,49,19],[48,20,49,20],[46,17,47,17],[46,18,47,18],[46,19,47,19],[46,20,47,20],[46,21,47,21],[46,22,47,22],[50,20,51,20],[50,21,51,21],[50,22,51,22],[50,24,51,24],[50,25,51,25],[48,21,49,21],[48,22,49,22],[48,23,49,23],[48,24,49,24],[48,25,49,25],[46,0,51,0],[46,1,51,1],[46,2,51,2],[46,3,51,3],[46,4,51,4],[46,5,51,5],[50,8,51,8],[50,9,51,9],[50,17,51,17],[43,25,44,25],[41,21,42,21],[41,22,42,22],[41,23,42,23],[41,24,42,24],[41,25,42,25],[46,6,51,6],[46,7,51,7],[46,11,51,11],[46,12,51,12],[46,13,51,13],[46,14,51,14],[50,18,51,18],[50,19,51,19],[46,23,47,23],[46,24,47,24],[46,25,47,25],[43,17,44,17],[43,18,44,18],[43,19,44,19],[39,6,44,6],[39,7,44,7],[39,14,44,14],[50,23,51,23],[39,23,40,23],[39,24,40,24],[39,25,40,25],[39,26,44,26],[40,8,41,8],[40,9,41,9],[41,17,42,17],[41,18,42,18],[41,19,42,19],[41,20,42,20],[39,17,40,17],[39,18,40,18],[39,19,40,19],[39,20,40,20],[39,21,40,21],[39,22,40,22],[43,20,44,20],[43,21,44,21],[43,22,44,22],[43,23,44,23],[43,24,44,24],[39,11,44,11],[39,12,44,12],[39,13,44,13],[39,0,44,0],[39,1,44,1],[39,2,44,2],[39,3,44,3],[39,4,44,4],[39,5,44,5],[43,8,44,8],[43,9,44,9],[32,26,37,26],[33,8,34,8],[33,9,34,9],[34,17,35,17],[34,18,35,18],[34,19,35,19],[34,20,35,20],[32,17,33,17],[32,18,33,18],[32,19,33,19],[32,20,33,20],[32,21,33,21],[32,22,33,22],[36,20,37,20],[36,21,37,21],[36,22,37,22],[36,24,37,24],[36,25,37,25],[34,21,35,21],[34,22,35,22],[34,23,35,23],[34,24,35,24],[34,25,35,25],[32,0,37,0],[32,1,37,1],[32,2,37,2],[32,3,37,3],[32,4,37,4],[32,5,37,5],[36,8,37,8],[36,9,37,9],[36,17,37,17],[29,25,30,25],[27,21,28,21],[27,22,28,22],[27,23,28,23],[27,24,28,24],[27,25,28,25],[32,6,37,6],[32,7,37,7],[32,11,37,11],[32,12,37,12],[32,13,37,13],[32,14,37,14],[36,18,37,18],[36,19,37,19],[32,23,33,23],[32,24,33,24],[32,25,33,25],[29,17,30,17],[29,18,30,18],[29,19,30,19],[25,6,30,6],[25,7,30,7],[25,14,30,14],[36,23,37,23],[25,23,26,23],[25,24,26,24],[25,25,26,25],[25,26,30,26],[26,8,27,8],[26,9,27,9],[27,17,28,17],[27,18,28,18],[27,19,28,19],[27,20,28,20],[25,17,26,17],[25,18,26,18],[25,19,26,19],[25,20,26,20],[25,21,26,21],[25,22,26,22],[29,20,30,20],[29,21,30,21],[29,22,30,22],[29,23,30,23],[29,24,30,24],[25,11,30,11],[25,12,30,12],[25,13,30,13],[25,0,30,0],[25,1,30,1],[25,2,30,2],[25,3,30,3],[25,4,30,4],[25,5,30,5],[29,8,30,8],[29,9,30,9],[18,26,23,26],[19,8,20,8],[19,9,20,9],[20,17,21,17],[20,18,21,18],[20,19,21,19],[20,20,21,20],[18,17,19,17],[18,18,19,18],[18,19,19,19],[18,20,19,20],[18,21,19,21],[18,22,19,22],[22,20,23,20],[22,21,23,21],[22,22,23,22],[20,23,21,23],[20,24,21,24],[20,25,21,25],[18,0,23,0],[18,1,23,1],[18,2,23,2],[18,3,23,3],[18,4,23,4],[18,5,23,5],[22,8,23,8],[22,9,23,9],[22,17,23,17],[13,23,14,23],[13,24,14,24],[13,25,14,25],[18,6,23,6],[18,7,23,7],[18,11,23,11],[18,12,23,12],[18,13,23,13],[18,14,23,14],[22,18,23,18],[22,19,23,19],[18,23,19,23],[18,24,19,24],[18,25,19,25],[15,8,16,8],[15,9,16,9],[15,17,16,17],[15,18,16,18],[15,19,16,19],[22,23,23,23],[22,24,23,24],[22,25,23,25],[20,21,21,21],[20,22,21,22],[11,23,12,23],[11,24,12,24],[11,25,12,25],[11,26,16,26],[12,8,13,8],[12,9,13,9],[13,17,14,17],[13,18,14,18],[13,19,14,19],[13,20,14,20],[11,17,12,17],[11,18,12,18],[11,19,12,19],[11,20,12,20],[11,21,12,21],[11,22,12,22],[15,20,16,20],[15,21,16,21],[15,22,16,22],[15,23,16,23],[15,24,16,24],[15,25,16,25],[13,21,14,21],[13,22,14,22],[11,0,16,0],[11,1,16,1],[11,2,16,2],[11,3,16,3],[11,4,16,4],[11,5,16,5],[6,22,7,22],[6,23,7,23],[6,24,7,24],[8,8,9,8],[8,9,9,9],[8,17,9,17],[8,18,9,18],[8,19,9,19],[8,20,9,20],[4,5,9,5],[4,6,9,6],[4,7,9,7],[11,6,16,6],[11,7,16,7],[11,11,16,11],[11,12,16,12],[11,13,16,13],[11,14,16,14],[4,20,5,20],[4,21,5,21],[6,20,7,20],[6,21,7,21],[8,21,9,21],[4,11,9,11],[4,12,9,12],[4,13,9,13],[8,25,9,25],[6,25,7,25],[8,22,9,22],[8,23,9,23],[8,24,9,24],[0,0,0,26],[1,0,1,11],[1,12,1,26],[2,15,2,16],[2,17,2,25],[4,0,9,0],[4,1,9,1],[4,2,9,2],[4,3,9,3],[4,4,9,4],[4,22,5,22],[4,23,5,23],[4,24,5,24],[4,25,5,25],[4,26,9,26],[5,8,6,8],[5,9,6,9],[6,17,7,17],[6,18,7,18],[6,19,7,19],[4,14,9,14],[4,17,5,17],[4,18,5,18],[4,19,5,19]]}
["UPC Scale Requests - Complete and submit to UPC Scanning"]
["General Information",null,null,null,null,null,null,null,null,null,null,null,"Production Item Information (For Periscope)"]
[null,"Action Needed","WD \nCode","SLU","Shelf \nLife","Tare","Unit","Fixed\nWeight ","Scale Description","Alternate Scale  Description","Ingredients","Banner","Activate item in Case layout","Model after WD Code #","OR","Applicable Case Layouts",null,"Min & Max Quantity",null,null,null,null,null,null,null,null,"Core or Optional "]
[]
[1,null,null,null,null,null,null,null,"Line 1:","Line 1:","Will item have ingredients?",null,null,null,null,null,"Affluent Families",null,"Defaults","M","T","W","T","F","S","S"]
[null,null,null,null,null,null,null,null,null,null,null,null,null,null,null,null,"Hispanic"]
[null,null,null,null,null,null,null,null,null,null,"Ingredients submitted to QS?",null,null,null,null,null,"Rural Working","Min:"]
[null,null,null,null,null,null,null,null,"Line 2:","Line 2:",null,null,null,null,null," ","All"]
[null,null,null,null,null,null,null,null,null,null,"Will ingredients be pre printed?",null,null,null,null,null,null,"Max:",99]
[]
[]
[1,null,null,null,null,null,null,null,"Line 1:","Line 1:","Will item have ingredients?",null,null,null,null,null,"Affluent Families",null,"Defaults","M","T","W","T","F","S","S"]
[null,null,null,null,null,null,null,null,null,null,null,null,null,null,null,null,"Hispanic"]
[null,null,null,null,null,null,null,null,null,null,"Ingredients submitted to QS?",null,null,null,null,null,"Rural Working","Min:"]
[null,null,null,null,null,null,null,null,"Line 2:","Line 2:",null,null,null,null,null," ","All"]
[null,null,null,null,null,null,null,null,null,null,"Will ingredients be pre printed?",null,null,null,null,null,null,"Max:",99]
[]
[]
[1,null,null,null,null,null,null,null,"Line 1:","Line 1:","Will item have ingredients?",null,null,null,null,null,"Affluent Families",null,"Defaults","M","T","W","T","F","S","S"]
[null,null,null,null,null,null,null,null,null,null,null,null,null,null,null,null,"Hispanic"]
[null,null,null,null,null,null,null,null,null,null,"Ingredients submitted to QS?",null,null,null,null,null,"Rural Working","Min:"]
[null,null,null,null,null,null,null,null,"Line 2:","Line 2:",null,null,null,null,null," ","All"]
[null,null,null,null,null,null,null,null,null,null,"Will ingredients be pre printed?",null,null,null,null,null,null,"Max:",99]
[]
[]
[1,null,null,null,null,null,null,null,"Line 1:","Line 1:","Will item have ingredients?",null,null,null,null,null,"Affluent Families",null,"Defaults","M","T","W","T","F","S","S"]
[null,null,null,null,null,null,null,null,null,null,null,null,null,null,null,null,"Hispanic"]
[null,null,null,null,null,null,null,null,null,null,"Ingredients submitted to QS?",null,null,null,null,null,"Rural Working","Min:"]
[null,null,null,null,null,null,null,null,"Line 2:","Line 2:",null,null,null,null,null," ","All"]
[null,null,null,null,null,null,null,null,null,null,"Will ingredients be pre printed?",null,null,null,null,null,null,"Max:",99]
[]
[]
[1,null,null,null,null,null,null,null,"Line 1:","Line 1:","Will item have ingredients?",null,null,null,null,null,"Affluent Families",null,"Defaults","M","T","W","T","F","S","S"]
[null,null,null,null,null,null,null,null,null,null,null,null,null,null,null,null,"Hispanic"]
[null,null,null,null,null,null,null,null,null,null,"Ingredients submitted to QS?",null,null,null,null,null,"Rural Working","Min:"]
[null,null,null,null,null,null,null,null,"Line 2:","Line 2:",null,null,null,null,null," ","All"]
[null,null,null,null,null,null,null,null,null,null,"Will ingredients be pre printed?",null,null,null,null,null,null,"Max:",99]
[]
[]
[1,null,null,null,null,null,null,null,"Line 1:","Line 1:","Will item have ingredients?",null,null,null,null,null,"Affluent Families",null,"Defaults","M","T","W","T","F","S","S"]
[null,null,null,null,null,null,null,null,null,null,null,null,null,null,null,null,"Hispanic"]
[null,null,null,null,null,null,null,null,null,null,"Ingredients submitted to QS?",null,null,null,null,null,"Rural Working","Min:"]
[null,null,null,null,null,null,null,null,"Line 2:","Line 2:",null,null,null,null,null," ","All"]
[null,null,null,null,null,null,null,null,null,null,"Will ingredients be pre printed?",null,null,null,null,null,null,"Max:",99]
[]
[]
[1,null,null,null,null,null,null,null,"Line 1:","Line 1:","Will item have ingredients?",null,null,null,null,null,"Affluent Families",null,"Defaults","M","T","W","T","F","S","S"]
[null,null,null,null,null,null,null,null,null,null,null,null,null,null,null,null,"Hispanic"]
[null,null,null,null,null,null,null,null,null,null,"Ingredients submitted to QS?",null,null,null,null,null,"Rural Working","Min:"]
[null,null,null,null,null,null,null,null,"Line 2:","Line 2:",null,null,null,null,null," ","All"]
[null,null,null,null,null,null,null,null,null,null,"Will ingredients be pre printed?",null,null,null,null,null,null,"Max:",99]
[]
[]
[1,null,null,null,null,null,null,null,"Line 1:","Line 1:","Will item have ingredients?",null,null,null,null,null,"Affluent Families",null,"Defaults","M","T","W","T","F","S","S"]
[null,null,null,null,null,null,null,null,null,null,null,null,null,null,null,null,"Hispanic"]
[null,null,null,null,null,null,null,null,null,null,"Ingredients submitted to QS?",null,null,null,null,null,"Rural Working","Min:"]
[null,null,null,null,null,null,null,null,"Line 2:","Line 2:",null,null,null,null,null," ","All"]
[null,null,null,null,null,null,null,null,null,null,"Will ingredients be pre printed?",null,null,null,null,null,null,"Max:",99]
[]
[]
[1,null,null,null,null,null,null,null,"Line 1:","Line 1:","Will item have ingredients?",null,null,null,null,null,"Affluent Families",null,"Defaults","M","T","W","T","F","S","S"]
[null,null,null,null,null,null,null,null,null,null,null,null,null,null,null,null,"Hispanic"]
[null,null,null,null,null,null,null,null,null,null,"Ingredients submitted to QS?",null,null,null,null,null,"Rural Working","Min:"]
[null,null,null,null,null,null,null,null,"Line 2:","Line 2:",null,null,null,null,null," ","All"]
[null,null,null,null,null,null,null,null,null,null,"Will ingredients be pre printed?",null,null,null,null,null,null,"Max:",99]
[]
[]
[1,null,null,null,null,null,null,null,"Line 1:","Line 1:","Will item have ingredients?",null,null,null,null,null,"Affluent Families",null,"Defaults","M","T","W","T","F","S","S"]
[null,null,null,null,null,null,null,null,null,null,null,null,null,null,null,null,"Hispanic"]
[null,null,null,null,null,null,null,null,null,null,"Ingredients submitted to QS?",null,null,null,null,null,"Rural Working","Min:"]
[null,null,null,null,null,null,null,null,"Line 2:","Line 2:",null,null,null,null,null," ","All"]
[null,null,null,null,null,null,null,null,null,null,"Will ingredients be pre printed?",null,null,null,null,null,null,"Max:",99]
[]
[]
[1,null,null,null,null,null,null,null,"Line 1:","Line 1:","Will item have ingredients?",null,null,null,null,null,"Affluent Families",null,"Defaults","M","T","W","T","F","S","S"]
[null,null,null,null,null,null,null,null,null,null,null,null,null,null,null,null,"Hispanic"]
[null,null,null,null,null,null,null,null,null,null,"Ingredients submitted to QS?",null,null,null,null,null,"Rural Working","Min:"]
[null,null,null,null,null,null,null,null,"Line 2:","Line 2:",null,null,null,null,null," ","All"]
[null,null,null,null,null,null,null,null,null,null,"Will ingredients be pre printed?",null,null,null,null,null,null,"Max:",99]
[]
[]
[1,null,null,null,null,null,null,null,"Line 1:","Line 1:","Will item have ingredients?",null,null,null,null,null,"Affluent Families",null,"Defaults","M","T","W","T","F","S","S"]
[null,null,null,null,null,null,null,null,null,null,null,null,null,null,null,null,"Hispanic"]
[null,null,null,null,null,null,null,null,null,null,"Ingredients submitted to QS?",null,null,null,null,null,"Rural Working","Min:"]
[null,null,null,null,null,null,null,null,"Line 2:","Line 2:",null,null,null,null,null," ","All"]
[null,null,null,null,null,null,null,null,null,null,"Will ingredients be pre printed?",null,null,null,null,null,null,"Max:",99]
[]
[]
[1,null,null,null,null,null,null,null,"Line 1:","Line 1:","Will item have ingredients?",null,null,null,null,null,"Affluent Families",null,"Defaults","M","T","W","T","F","S","S"]
[null,null,null,null,null,null,null,null,null,null,null,null,null,null,null,null,"Hispanic"]
[null,null,null,null,null,null,null,null,null,null,"Ingredients submitted to QS?",null,null,null,null,null,"Rural Working","Min:"]
[null,null,null,null,null,null,null,null,"Line 2:","Line 2:",null,null,null,null,null," ","All"]
[null,null,null,null,null,null,null,null,null,null,"Will ingredients be pre printed?",null,null,null,null,null,null,"Max:",99]
[]
[]
[1,null,null,null,null,null,null,null,"Line 1:","Line 1:","Will item have ingredients?",null,null,null,null,null,"Affluent Families",null,"Defaults","M","T","W","T","F","S","S"]
[null,null,null,null,null,null,null,null,null,null,null,null,null,null,null,null,"Hispanic"]
[null,null,null,null,null,null,null,null,null,null,"Ingredients submitted to QS?",null,null,null,null,null,"Rural Working","Min:"]
[null,null,null,null,null,null,null,null,"Line 2:","Line 2:",null,null,null,null,null," ","All"]
[null,null,null,null,null,null,null,null,null,null,"Will ingredients be pre printed?",null,null,null,null,null,null,"Max:",99]
[]
[]
["Action needed",null,"Attach SLU code, Delete SLU code, Update fields",null,null,null,null,null,null,null,null,null,null,null,null," "]
["WD code",null,"Code to attach, delete or update scale info"]
["SLU",null,"SLU to attach, delete or update"]
["Shelf life",null,"Shelf life of product"]
["Tare",null,"Tare to default at scale"]
["Unit",null,"Enter EA (each), LB (pound), or fixed wieght"]
["Fixed weight",null,"Weight in OZ that is Guaranteed to be in the package"]
["Scale description",null,"Description that will print on the label"]
["Alternate description",null,"Description that will print on the label for Hispanic stores"]
["Text",null,"Text that will print as the ingredient statement"]
[]
["Production Item Information (for periscope)"]
["Applicable case layouts",null,"Select layouts to attach, delete SLU code"]
["MIN & MAX quantity ",null,"Min & mix to produce daily (default will be 1 - 99 if not provided)"]
["Core or optional",null,"Specify core or optional (option items stores can lower min amount)"]
["Model after WD code",null,"WD code from which to copy general and production info"]